{"text_format":"1","workbook":"xlsx","n_sheets":23,"sheets":["BemVindos","Início","Quarto-de-Banho","Cozinha","Equipamento","Limpeza","Espaços Verdes","Piscina","Outros","Fugas","Síntese","Custos AdRA","Sabia que","Sabia que.Real","Real vs Simulado","Resumo","PerRetorno","Final","Escalas","Custos AdRA (2)","Dispositivos Preço ANQIP.Real","Apoio","ApoioAdRA"],"not_rendered":{"charts":2,"images":18,"macros":1,"external_links":1,"defined_names":5,"comments":12,"pivot_tables":0},"unopened":[],"bounds":{"document_bytes":16777216,"sheet_cells":100000,"rows_first":2000,"rows_last":500,"rows_between":2000,"halvings":0,"cell_chars":16384,"cell_head_chars":4096},"cells_cut":0,"cells_raw":0,"read":"whole","date_system":"1900"}

{"sheet":"BemVindos","index":0,"n_rows":31,"n_cols":22,"rows_kept":31,"cut":false,"hidden":false,"merged":[[38,6,42,24],[0,6,0,24],[35,0,35,24],[0,25,35,25],[29,13,34,24],[1,6,6,24],[13,6,18,24],[29,6,29,12],[7,6,7,24],[30,6,30,12],[8,6,12,24],[19,21,19,22],[20,6,27,24]]}
[]
[null,null,null,null,null,null,"Eficiência Hídrica"]
[]
[]
[]
[]
[]
[]
[]
[]
[]
[]
[]
[null,null,null,null,null,null,"Simulador de Consumo de Água"]
[]
[]
[]
[]
[]
[null,null,null,null,null,null,null,null,null,null,null,null,null,null,null,null,null,null,null,null,null,"(Versão EH 2014.01.01)"]
[]
[]
[]
[]
[]
[]
[]
[]
[]
[null,null,null,null,null,null,null,null,null,null,null,null,null,"Poupe Água… Seja Eficiente!!!"]
[null,null,null,null,null,null,"Projeto Co-Financiado pela União Europeia"]

{"sheet":"Início","index":1,"n_rows":59,"n_cols":21,"rows_kept":59,"cut":false,"hidden":false,"merged":[[0,25,35,25],[30,6,34,24],[13,7,13,14],[15,7,15,14],[18,7,18,14],[23,7,24,23],[6,7,6,23],[19,7,19,14],[14,7,14,14],[16,7,16,14],[12,6,12,24],[17,7,17,14],[25,6,29,24],[1,7,3,23],[20,6,20,24],[4,7,5,23],[7,7,7,23],[8,7,9,23],[10,7,10,23]]}
[]
[null,null,null,null,null,null,null,"A Comunidade Intermunicipal (CI) da Região de Aveiro lidera o projeto \"Eficiência Hídrica em Edifícios e Espaços Públicos - O Caminho para a Gestão Sustentável da Água…\". Como complemento do projeto decidiu-se desenvolver um Simulador de Consumo de Água que pretende ser uma ferramenta didática, permitindo aos cidadãos terem noção de que forma estão a gastar a água, sensibilizando-os para a temática e contribuindo para se tornarem mais eficientes no seu uso!!!                                                                                                   "]
[]
[]
[null,null,null,null,null,null,null,"Poderá consultar igualmente o Guia de Boas Práticas \"Uso Sustentável da Água\" na página da CI Região de Aveiro!!!"]
[]
[]
[null,null,null,null,null,null,null,"O preenchimento dos dados do Simulador de Consumo de Água deverá ser representativo de todos os moradores/utilizadores. "]
[null,null,null,null,null,null,null,"Nas questões com o símbolo       , o valor que inserir será multiplicado pelo n.º de residentes, em média. As respostas deverão ser representativas de todos os residentes."]
[]
[null,null,null,null,null,null,null," Também tem notas informativas em algumas questões        ."]
[]
[]
[null,null,null,null,null,null,null,null,null,null,null,null,null,null,null,null,null,4,null,30,"dias"]
[null,null,null,null,null,null,null,"N.º Total de Residentes"]
[null,null,null,null,null,null,null,"N.º Médio de Residentes que não estão em casa todos os dias"]
[null,null,null,null,null,null,null,"N.º Médio de Dias numa Semana em que o(s) residente(s) não esteja(m) em casa",null,null,null,null,null,null,null,null,5,1]
[null,null,null,null,null,null,null,"N.º de Residentes em Média por Semana",null,null,null,null,null,null,null,null,{"$f":"IF(AND(Q16=1,R17=1),Q15,(((Q15*7)-((Q16)*(R17-1)))/7))","v":0}]
[null,null,null,null,null,null,null,"Qual o calibre do seu contador/totalizador?",null,null,null,null,null,null,null,null,null,1]
[null,null,null,null,null,null,null,"É cobrada a Tarifa RSU Variável?",null,null,null,null,null,null,null,null,null,2]
[]
[]
[]
[null,null,null,null,null,null,null,"A informação resultante do Simulador pretende mostrar o consumo de Água e o custo associado para o período de um mês!!!"]
[]
[]
[]
[]
[]
[]
[null,null,null,null,null,null,"Poupe Água… Seja Eficiente!!!"]
[]
[]
[]
[]
[]
[]
[null,null,null,0,null,"Sim"]
["Águeda",null,null,1,5,"Não"]
["Albergaria-a-Velha",null,null,2,10]
["Aveiro",null,null,3,15]
["Estarreja",null,null,4,20]
["Ílhavo",null,null,5,25]
["Murtosa",null,null,6,30]
["Oliveira do Bairro",null,null,null,35]
["Ovar",null,null,null,40]
["Sever do Vouga",null,null,null,45]
["Vagos",null,null,null,50]
["Outro",null,null,null,60]
[null,null,null,null,70]
[null,null,null,null,80]
[null,null,null,null,90]
[null,null,null,null,100]
[null,null,null,null,150]
[null,null,null,null,200]
[null,null,null,null,250]
[null,null,null,null,300]
[null,null,null,null,400]
[null,null,null,null,500]

{"sheet":"Quarto-de-Banho","index":2,"n_rows":74,"n_cols":19,"rows_kept":74,"cut":false,"hidden":false,"merged":[[72,2,72,5],[71,2,71,5],[73,2,73,5],[74,2,74,5],[64,2,64,5],[66,2,66,5],[67,2,67,5],[69,2,69,5],[68,2,68,5],[70,2,70,5],[20,0,38,5],[1,6,3,6],[65,2,65,5],[45,13,53,13],[4,11,4,12],[23,7,30,7],[55,8,56,8],[55,10,56,10],[55,13,59,13],[8,8,8,9],[5,8,7,8],[10,8,10,9],[17,8,17,9],[33,8,33,9],[48,8,48,9],[23,8,24,8],[4,8,4,9],[5,6,59,6],[31,7,54,7],[31,8,31,9],[32,8,32,9],[39,8,39,9],[9,8,9,9],[11,7,14,7],[11,8,12,8],[5,7,10,7],[15,7,22,7],[14,8,14,9],[27,8,30,8],[34,8,38,8],[55,7,59,7],[58,8,58,9],[23,10,24,10],[23,11,24,11],[23,12,24,12],[23,13,30,13],[13,8,13,9],[11,13,14,13],[18,8,22,8],[26,8,26,9],[16,8,16,9],[25,8,25,9],[15,8,15,9],[0,15,63,15],[63,0,63,10],[5,13,10,13],[34,11,38,11],[34,12,38,12],[5,11,7,11],[5,12,7,12],[11,11,12,11],[11,12,12,12],[18,11,22,11],[18,12,22,12],[5,14,59,14],[40,11,44,11],[40,12,44,12],[55,11,56,11],[55,12,56,12],[1,7,3,8],[32,13,38,13],[39,13,44,13],[40,8,44,8],[59,8,59,9],[49,8,53,8],[47,8,47,9],[57,8,57,9],[45,8,46,8],[45,11,46,11],[45,12,46,12],[45,10,46,10],[54,8,54,9],[5,10,7,10],[11,10,12,10],[15,13,22,13]]}
[]
[null,null,null,null,null,null,null,"Quarto de Banho / Balneário"]
[]
[]
[null,null,null,null,null,null,"Local / Atividade","Onde Gasta?","Questões",null,"Dados",null,null,"Consumo por Utilização (litros por mês)","Consumo por Local (Litros por Mês)"]
[null,null,null,null,null,null,"Quarto de Banho / Balneário","Autoclismo","Que tipo de Autoclismo tem?",null,{"$f":"IF(H65=1,\"Dupla Descarga\",IF(H65=2,\"C/ Interrupção de Descarga\",\"Descarga Completa\"))","v":"Descarga Completa"},null,null,{"$f":"(((K10*K9))*Apoio!H3+((K9/2*(K11)))*Apoio!H3)*Início!Q18","v":0},{"$f":"SUM(N6,N12,N16,N24,N33,N40,N46,N55,N56)","v":0}]
[]
[]
[null,null,null,null,null,null,null,null,"Qual a capacidade/quantidade de água por descarga (em litros)?"]
[null,null,null,null,null,null,null,null,"Qual o n.º de descargas completas que fazem por dia?"]
[null,null,null,null,null,null,null,null,{"$f":"IF(OR(K6=\"Dupla Descarga\",K6=\"C/ Interrupção de Descarga\"),\"Qual o n.º de meias descargas que fazem por dia?\",\"\")","v":""}]
[null,null,null,null,null,null,null,"Fluxómetro / Mictório","Tem Fluxómetro ou Mictório?",null,{"$f":"IF(H71=1,\"Sim\",\"Não\")","v":"Não"},null,null,{"$f":"IF(K12=\"Sim\",(K14*K15*Apoio!H3)*Início!Q18,0)","v":0}]
[]
[null,null,null,null,null,null,null,null,{"$f":"IF(K12=\"Sim\",\"Quantas vezes se utiliza por dia?\",\"\")","v":""}]
[null,null,null,null,null,null,null,null,{"$f":"IF(K12=\"Sim\",\"Qual a quantidade de água por descarga (em litros)?\",\"\")","v":""}]
[null,null,null,null,null,null,null,"Chuveiro / Duche","Quantos duches se tomam por semana?",null,null,null,null,{"$f":"IF(K16>0,MAX(K19,K20,K21,K22,K23),0)","v":0}]
[null,null,null,null,null,null,null,null,"Quanto tempo se demoram, em média, por cada duche (em minutos)?"]
[null,null,null,null,null,null,null,null,"Qual o caudal médio do chuveiro (litros por minuto)?"]
[null,null,null,null,null,null,null,null,"Fecha-se a água enquanto se ensaboam? ",null,{"$f":"IF(H66=1,K16*K17*K18*(1)*Apoio!H2*Apoio!H5*Início!Q18,0)","v":0}]
[null,null,null,null,null,null,null,null,null,null,{"$f":"IF(H66=2,K16*K17*K18*(1.25)*Apoio!H2*Apoio!H5*Início!Q18,0)","v":0}]
["Vamos Juntos...                                                                                           Valorizar a Água!                                                                                                                                                                                                                                                ",null,null,null,null,null,null,null,null,null,{"$f":"IF(H66=3,K16*K17*K18*(1.5)*Apoio!H2*Apoio!H5*Início!Q18,0)","v":0}]
[null,null,null,null,null,null,null,null,null,null,{"$f":"IF(H66=4,K16*K17*K18*(1.75)*Apoio!H2*Apoio!H5*Início!Q18,0)","v":0}]
[null,null,null,null,null,null,null,null,null,null,{"$f":"IF(H66=5,K16*K17*K18*1*Apoio!H2*Início!Q18,0)","v":0}]
[null,null,null,null,null,null,null,"Banho de Imersão","Toma-se banhos de imersão?",null,{"$f":"IF(H72=1,\"Sim\",\"Não\")","v":"Não"},null,null,{"$f":"IF(K24=\"Sim\",MAX(K28,K29,K30,K31)*K26,0)","v":0}]
[]
[null,null,null,null,null,null,null,null,{"$f":"IF(K24=\"Sim\",\"Quantos banhos de imersão se tomam no total, por mês?\",\"\")","v":""}]
[null,null,null,null,null,null,null,null,{"$f":"IF(K24=\"Sim\",\"Qual o volume aproximado da banheira?\",\"\")","v":""},null,200]
[null,null,null,null,null,null,null,null,{"$f":"IF(K24=\"Sim\",\"Toma-se com a banheira, em média, …\",\"\")","v":""}]
[null,null,null,null,null,null,null,null,null,null,{"$f":"IF(H67=2,K27*0.75,0)","v":0}]
[null,null,null,null,null,null,null,null,null,null,{"$f":"IF(H67=3,K27*0.5,0)","v":0}]
[null,null,null,null,null,null,null,null,null,null,{"$f":"IF(H67=4,K27*0.25,0)","v":0}]
[null,null,null,null,null,null,null,"Lavatório","Qual o caudal médio da torneira (litros por minuto)?",null,null,null,null,"NA"]
[null,null,null,null,null,null,null,null,"Quantas vezes se lavam os dentes, por dia?",null,null,null,null,{"$f":"IF(K33>0,MAX(K35,K36,K37,K38,K39),0)","v":0}]
[null,null,null,null,null,null,null,null,"Quanto tempo se demoram, em média, a lavar os dentes (em minutos)?"]
[null,null,null,null,null,null,null,null,"Fecha-se a água enquanto se lavam os dentes?",null,{"$f":"IF(H69=1,K32*K33*K34*(1)*Apoio!H3*Apoio!H5*Início!Q18,0)","v":0}]
[null,null,null,null,null,null,null,null,null,null,{"$f":"IF(H69=2,K32*K33*K34*(1.25)*Apoio!H3*Apoio!H5*Início!Q18,0)","v":0}]
[null,null,null,null,null,null,null,null,null,null,{"$f":"IF(H69=3,K32*K33*K34*(1.5)*Apoio!H3*Apoio!H5*Início!Q18,0)","v":0}]
[null,null,null,null,null,null,null,null,null,null,{"$f":"IF(H69=4,K32*K33*K34*(1.75)*Apoio!H3*Apoio!H5*Início!Q18,0)","v":0}]
[null,null,null,null,null,null,null,null,null,null,{"$f":"IF(H69=5,K32*K33*K34*1*Apoio!H3*Início!Q18,0)","v":0}]
[null,null,null,null,null,null,null,null,"Quantas vezes se lavam as mãos, por dia?",null,null,null,null,{"$f":"IF(K40>0,MAX(K41,K42,K43,K44,K45)*Início!Q18,0)","v":0}]
[null,null,null,null,null,null,null,null,"Fecha-se a água enquanto ensaboa as mãos?",null,{"$f":"IF(H70=1,K32*K40*(1)*Apoio!H3*Apoio!H5*(1/2.5),0)","v":0},null,null,null,null,null,null,null,"e"]
[null,null,null,null,null,null,null,null,null,null,{"$f":"IF(H70=2,K32*K40*(1.25)*Apoio!H3*Apoio!H5*(1/2.5),0)","v":0}]
[null,null,null,null,null,null,null,null,null,null,{"$f":"IF(H70=3,K32*K40*(1.5)*Apoio!H3*Apoio!H5*(1/2.5),0)","v":0}]
[null,null,null,null,null,null,null,null,null,null,{"$f":"IF(H70=4,K32*K40*(1.75)*Apoio!H3*Apoio!H5*(1/2.5),0)","v":0}]
[null,null,null,null,null,null,null,null,null,null,{"$f":"IF(H70=5,K32*K40*1*Apoio!H3*(1/2.5),0)","v":0}]
[null,null,null,null,null,null,null,null,"Faz-se a barba?                          (assinale \"Não\" caso todos façam com máquina de barbear)",null,{"$f":"IF(H73=1,\"Sim\",\"Não\")","v":"Não"},null,null,{"$f":"IF(K46=\"Sim\",MAX(K50,K51,K52,K53,K54)*Início!Q18,0)","v":0}]
[]
[null,null,null,null,null,null,null,null,{"$f":"IF(K46=\"Sim\",\"Quantas vezes a fazem por semana? \",\"\")","v":""}]
[null,null,null,null,null,null,null,null,{"$f":"IF(AND(K46=\"Sim\",K48<>0),\"Quanto tempo se demoram, em média, a fazer a barba (em minutos)?\",\"\")","v":""}]
[null,null,null,null,null,null,null,null,{"$f":"IF(K46=\"Sim\",\"Se sim, como?\",\"\")","v":""},null,{"$f":"IF(H68=1,K32*K48*K49*(1)*Apoio!H2,0)","v":0}]
[null,null,null,null,null,null,null,null,null,null,{"$f":"IF(H68=2,K32*K48*K49*(0.75)*Apoio!H2,0)","v":0}]
[null,null,null,null,null,null,null,null,null,null,{"$f":"IF(H68=3,K32*K48*K49*(0.5)*Apoio!H2,0)","v":0}]
[null,null,null,null,null,null,null,null,null,null,{"$f":"IF(H68=4,K32*K48*K49*(0.25)*Apoio!H2,0)","v":0}]
[null,null,null,null,null,null,null,null,null,null,{"$f":"IF(H68=5,20*K48,0)","v":0}]
[null,null,null,null,null,null,null,null,"Quantas vezes se utiliza o lavatório para outros usos (p. ex., lavar os óculos), além das já referidas, por dia?",null,null,null,null,{"$f":"(K55*Apoio!H6*Apoio!H3)*Início!Q18","v":0}]
[null,null,null,null,null,null,null,"Bidés","Utiliza o bidé?",null,{"$f":"IF(H74=1,\"Sim\",\"Não\")","v":"Não"},null,null,{"$f":"IF(K56=\"Sim\",(K58*K59*K60*Apoio!H2)*Início!Q18,0)","v":0}]
[]
[null,null,null,null,null,null,null,null,{"$f":"IF(K56=\"Sim\",\"Quantas vezes se utiliza por semana?\",\"\")","v":""}]
[null,null,null,null,null,null,null,null,{"$f":"IF(K56=\"Sim\",\"Qual o caudal médio da torneira (litros por minuto)?\",\"\")","v":""}]
[null,null,null,null,null,null,null,null,{"$f":"IF(K56=\"Sim\",\"Quanto tempo se demoram, em média, por cada vez que se utiliza o bidé (em minutos)?\",\"\")","v":""}]
[]
[]
[]
[]
[null,null,"Que tipo de Autoclismo tem?",null,null,null,"Que tipo de Autoclismo tem?",3]
[null,null,"Fecha a água enquanto se ensaboa?",null,null,null,"Fecha a água enquanto se ensaboa?",5]
[null,null,"Toma com a banheira…",null,null,null,"Toma com a banheira…",1]
[null,null,"Se sim, como?",null,null,null,"Se sim, como?",3]
[null,null,"Fecha a água enquanto lava os dentes?",null,null,null,"Fecha a água enquanto lava os dentes?",3]
[null,null,"Fecha a água enquanto esfrega as mãos?",null,null,null,"Fecha a água enquanto esfrega as mãos?",5]
[null,null,"Tem Fluxómetro ou Mictório?",null,null,null,"Tem Fluxómetro ou Mictório?",2]
[null,null,"Toma banho de imersão?",null,null,null,"Toma banho de imersão?",2]
[null,null,"Faz a barba?",null,null,null,"Faz a barba?",2]
[null,null,"Utiliza o bidé?",null,null,null,"Utiliza o bidé?",2]

{"sheet":"Cozinha","index":3,"n_rows":26,"n_cols":15,"rows_kept":26,"cut":false,"hidden":false,"merged":[[4,8,4,9],[17,8,17,9],[15,8,15,9],[1,7,3,8],[5,6,17,6],[5,7,16,7],[8,8,8,9],[9,8,9,9],[10,8,14,8],[5,8,5,9],[18,7,21,10],[15,13,16,13],[16,8,16,9],[6,13,14,13],[5,14,17,14],[6,8,7,8],[6,10,7,10],[6,11,7,11],[6,12,7,12]]}
[]
[null,null,null,null,null,null,null,"Cozinha"]
[]
[]
[null,null,null,null,null,null,{"$f":"'Quarto-de-Banho'!G5","v":"Local / Atividade"},"Onde Gasta?","Questões",null,"Dados",null,null,"Consumo por Utilização (litros por mês)","Consumo por Local (Litros por Mês)"]
[null,null,null,null,null,null,"Cozinha","Lava-louça","Qual o caudal médio da torneira (litros por minuto)?",null,null,null,null,"NA",{"$f":"SUM(N7,N16,N18)","v":0}]
[null,null,null,null,null,null,null,null,"Lava-se a Louça à mão?",null,{"$f":"IF(I26=1,\"Sim\",\"Não\")","v":"Sim"},null,null,{"$f":"IF(K7=\"Sim\",MAX(K11,K12,K13,K14,K15)*Apoio!H2,0)","v":0}]
[]
[null,null,null,null,null,null,null,null,{"$f":"IF(K7=\"Sim\",\"Quantas vezes se lava a louça à mão por semana?\",\"\")","v":"Quantas vezes se lava a louça à mão por semana?"}]
[null,null,null,null,null,null,null,null,{"$f":"IF(K7=\"Sim\",\"Quanto tempo se demoram, em média, por lavagem (em minutos)?\",\"\")","v":"Quanto tempo se demoram, em média, por lavagem (em minutos)?"}]
[null,null,null,null,null,null,null,null,{"$f":"IF(K7=\"Sim\",\"Lava-se a louça…\",\"\")","v":"Lava-se a louça…"},null,{"$f":"IF(I25=1,K6*K9*K10,0)","v":0}]
[null,null,null,null,null,null,null,null,null,null,{"$f":"IF(I25=2,K9*K10*K6*(0.75),0)","v":0}]
[null,null,null,null,null,null,null,null,null,null,{"$f":"IF(I25=3,K6*K9*K10*(0.5),0)","v":0}]
[null,null,null,null,null,null,null,null,null,null,{"$f":"IF(I25=4,K6*K9*K10*(0.25),0)","v":0}]
[null,null,null,null,null,null,null,null,null,null,{"$f":"IF(I25=5,K9*20,0)","v":0}]
[null,null,null,null,null,null,null,null,"Qual o n.º de outros usos diários (p. ex., lavar vegetais)?",null,null,null,null,{"$f":"(K16*K17*K6*Apoio!H3)*Início!Q18","v":0}]
[null,null,null,null,null,null,null,null,"Quanto tempo se demoram, em média por dia, com esses outros usos (em minutos)?"]
[null,null,null,null,null,null,null,"Beber e Cozinhar","Qual a quantidade de água da rede pública que se utiliza, por dia, para cozinhar e beber (em litros)?",null,null,null,null,{"$f":"(K18*Apoio!H3)*Início!Q18","v":0}]
[]
[]
[]
[]
[]
[]
[null,null,null,null,null,null,null,"Lava a louça…",3]
[null,null,null,null,null,null,null,"Lava a Louça à mão?",1]

{"sheet":"Equipamento","index":4,"n_rows":28,"n_cols":15,"rows_kept":28,"cut":false,"hidden":false,"merged":[[1,6,3,6],[10,10,11,10],[10,13,13,13],[5,11,6,11],[5,12,6,12],[10,11,11,11],[10,12,11,12],[1,7,3,8],[0,15,24,15],[24,0,24,10],[4,8,4,9],[7,8,7,9],[10,8,11,8],[8,8,8,9],[9,8,9,9],[5,6,13,6],[5,7,9,7],[5,8,6,8],[5,14,13,14],[5,13,9,13],[5,10,6,10],[10,7,13,7],[12,8,12,9],[13,8,13,9]]}
[]
[null,null,null,null,null,null,null,"Equipamento"]
[]
[]
[null,null,null,null,null,null,"Local","Onde Gasta?","Questões",null,"Dados",null,null,"Consumo por Utilização (litros por mês)","Consumo por Local (Litros por Mês)"]
[null,null,null,null,null,null,"Equipamento","Máquina Lavar Roupa","Usa-se Máquina de Lavar-Roupa?",null,{"$f":"IF(I27=1,\"Sim\",\"Não\")","v":"Não"},null,null,{"$f":"IF(K6=\"Não\",0,K8*K10*Apoio!H2)","v":0},{"$f":"SUM(N6,N11)","v":0}]
[]
[null,null,null,null,null,null,null,null,{"$f":"IF(K6=\"Sim\",\"Quantas máquinas de lavar-roupa se colocam a lavar durante a semana em sua casa?\",\"\")","v":""}]
[null,null,null,null,null,null,null,null,{"$f":"IF(K6=\"Sim\",\"Qual a capacidade de carga (Kg)? (ver Ficha Técnica)\",\"\")","v":""}]
[null,null,null,null,null,null,null,null,{"$f":"IF(K6=\"Sim\",\"Qual o consumo de Água (Litros por ciclo de lavagem)?  (ver Ficha Técnica)\",\"\")","v":""}]
[null,null,null,null,null,null,null,"Máquina Lavar Loiça","Usa-se Máquina de Lavar-Loiça?",null,{"$f":"IF(I28=1,\"Sim\",\"Não\")","v":"Não"},null,null,{"$f":"IF(K11=\"Não\",0,K13*K14*Apoio!H2)","v":0}]
[]
[null,null,null,null,null,null,null,null,{"$f":"IF(K11=\"Não\",\"\",\"Quantas máquinas de lavar loiça se colocam a lavar durante a semana em sua casa?\")","v":""}]
[null,null,null,null,null,null,null,null,{"$f":"IF(K11=\"Não\",\"\",\"Qual o consumo da máquina de lavar loiça (Litros por Ciclo de Lavagem)? (ver Ficha Técnica)\")","v":""}]
[]
[]
[]
[]
[]
[]
[]
[]
[]
[]
[]
[]
[null,null,null,null,null,null,null,"Usa Máquina de Lavar-Roupa?",2]
[null,null,null,null,null,null,null,"Usa Máquina de Lavar-Loiça?",2]

{"sheet":"Limpeza","index":5,"n_rows":28,"n_cols":15,"rows_kept":28,"cut":false,"hidden":false,"merged":[[0,6,0,10],[0,15,24,15],[24,0,24,10],[4,8,4,9],[12,8,12,9],[5,6,13,6],[5,8,5,9],[5,14,13,14],[8,8,8,9],[9,8,11,8],[13,8,13,9],[6,7,13,7],[6,8,7,8],[6,13,13,13],[6,10,7,10],[1,6,3,6],[6,11,7,11],[6,12,7,12],[1,7,3,8]]}
[]
[null,null,null,null,null,null,null,"Limpeza"]
[]
[]
[null,null,null,null,null,null,"Local","Onde Gasta?","Questões",null,"Dados",null,null,"Consumo por Utilização (litros por mês)","Consumo por Local (Litros por Mês)"]
[null,null,null,null,null,null,"Limpeza","Casa","Qual o volume de água que se gasta por semana para lavar a sua casa (em litros)?",null,null,null,null,{"$f":"K6*Apoio!H2","v":0},{"$f":"SUM(N6,N7)","v":0}]
[null,null,null,null,null,null,null,"Carro","Lava-se o carro em casa?",null,{"$f":"IF(I28=1,\"Sim\",\"Não\")","v":"Não"},null,null,{"$f":"IF(K7=\"Não\",0,MAX(K10,K11,K12))","v":0}]
[]
[null,null,null,null,null,null,null,null,{"$f":"IF(K7=\"Sim\",\"Quantas vezes, por mês, se lava o carro em sua casa?\",\"\")","v":""}]
[null,null,null,null,null,null,null,null,{"$f":"IF(K7=\"Sim\",\"Lava-se o carro com…\",\"\")","v":""},null,{"$f":"IF(I27=1,K9*K13*K14,0)","v":0},{"$f":"IF(K10>0,\"Com mangueira e água sempre a correr\",\"\")","v":""},{"$f":"CONCATENATE(L10)","v":""}]
[null,null,null,null,null,null,null,null,null,null,{"$f":"IF(I27=2,(K9*K13*K14)/2,0)","v":0},{"$f":"IF(K11>0,\"Com mangueira e água a correr metade do tempo médio de lavagem\",\"\")","v":""},{"$f":"CONCATENATE(L11)","v":""}]
[null,null,null,null,null,null,null,null,null,null,{"$f":"IF(I27=3,K9*10+(K14*K13),0)","v":0},{"$f":"IF(K12>0,\"Usa um balde e esponja\",\"\")","v":""},""]
[null,null,null,null,null,null,null,null,{"$f":"IF(K7=\"Sim\",\"Caso se utilize a mangueira, quantos minutos, em média, demora?\",\"\")","v":""}]
[null,null,null,null,null,null,null,null,{"$f":"IF(AND(K7=\"Sim\",K13=0),\"\",\"Qual o caudal médio da mangueira que se usa (litros por minuto)?\")","v":"Qual o caudal médio da mangueira que se usa (litros por minuto)?"}]
[]
[]
[]
[]
[]
[]
[]
[]
[]
[]
[]
[]
[null,null,null,null,null,null,null,"Lava o carro com…",3]
[null,null,null,null,null,null,null,"Lava o seu carro em casa?",2]

{"sheet":"Espaços Verdes","index":6,"n_rows":26,"n_cols":15,"rows_kept":26,"cut":false,"hidden":false,"merged":[[0,15,22,15],[4,8,4,9],[5,8,6,8],[5,10,6,10],[5,14,16,14],[5,13,16,13],[5,11,6,11],[5,12,6,12],[9,11,11,11],[9,12,11,12],[12,8,12,9],[13,8,13,9],[15,8,15,9],[9,10,11,10],[9,8,11,8],[17,7,21,10],[16,8,16,9],[7,8,7,9],[8,8,8,9],[0,6,0,10],[5,6,16,6],[5,7,16,7],[1,6,3,6],[14,8,14,9],[1,7,3,8]]}
[]
[null,null,null,null,null,null,null,"Jardins / Espaços Verdes"]
[]
[]
[null,null,null,null,null,null,"Local","Onde Gasta?","Questões",null,"Dados",null,null,"Consumo por Utilização (litros por mês)","Consumo por Local (Litros por Mês)"]
[null,null,null,null,null,null,"Jardins / Espaços Verdes","Rega","Consome-se água da rede pública no Jardim/Espaços Verdes/Vasos?",null,{"$f":"IF(I26=1,\"Sim\",\"Não\")","v":"Não"},null,null,{"$f":"IF(K6=\"Não\",0,IF(K10=\"Mangueira\",((K8/12)*K9*K13*K15*Apoio!H2),IF(K10=\"Rega Automática\",((K8/12)*K9*K14*K15*Apoio!H2),((K8/12)*K9*K16*Apoio!H2))))","v":0},{"$f":"SUM(N6)","v":0}]
[]
[null,null,null,null,null,null,null,null,{"$f":"IF(K6=\"Sim\",\"Quantos meses, em média, se rega por ano?\",\"\")","v":""}]
[null,null,null,null,null,null,null,null,{"$f":"IF(K6=\"Sim\",\"Durante esse período, quantas vezes, em média, se rega por semana?\",\"\")","v":""}]
[null,null,null,null,null,null,null,null,{"$f":"IF(K6=\"Sim\",\"Qual o método de rega?\",\"\")","v":""},null,{"$f":"IF(K6=\"Não\",\"\",IF(I25=1,\"Mangueira\",IF(I25=2,\"Rega Automática\",IF(I25=3,\"Regador\",\"\"))))","v":""}]
[]
[]
[null,null,null,null,null,null,null,null,{"$f":"IF(K6=\"Não\",\"\",IF(K10=\"Mangueira\",\"Caso, se regue o jardim com Mangueira, qual o caudal médio da mangueira que se usa (litros por minuto)?\",\"\"))","v":""}]
[null,null,null,null,null,null,null,null,{"$f":"IF(K6=\"Não\",\"\",IF(K10=\"Rega Automática\",\"Caso, se regue o jardim através da Rega Automática,qual o caudal médio (litros por minuto)?\",\"\"))","v":""}]
[null,null,null,null,null,null,null,null,{"$f":"IF(K6=\"Não\",\"\",IF(OR(K10=\"Mangueira\",K10=\"Rega Automática\"),\"Caso se regue por Mangueira ou Rega Automática, quanto tempo, em média, se demora por cada rega (em minutos)?\",\"\"))","v":""}]
[null,null,null,null,null,null,null,null,{"$f":"IF(K6=\"Não\",\"\",IF(K10=\"Regador\",\"Caso, se regue o jardim com Regador, quanto se gasta por cada vez que se rega (em litros)?\",\"\"))","v":""}]
[null,null,null,null,null,null,null,null,{"$f":"IF(K6=\"Sim\",\"Qual a área de espaços verdes do jardim que necessita de rega (m2)?\",\"\")","v":""}]
[]
[]
[]
[]
[]
[]
[]
[null,null,null,null,null,null,null,"Qual o método de rega?",0]
[null,null,null,null,null,null,null,"Consome água no Jardim/Espaços Verdes/Vasos?",2]

{"sheet":"Piscina","index":7,"n_rows":28,"n_cols":15,"rows_kept":28,"cut":false,"hidden":false,"merged":[[5,7,17,7],[5,14,17,14],[1,6,3,6],[17,8,17,9],[9,8,10,8],[5,13,17,13],[5,10,6,10],[14,8,14,9],[7,8,8,8],[7,10,8,10],[11,8,12,8],[11,10,12,10],[9,10,10,10],[5,11,6,11],[5,12,6,12],[7,11,7,12],[1,7,3,8],[18,7,21,10],[0,6,0,10],[22,0,22,10],[0,15,22,15],[9,11,10,11],[9,12,10,12],[8,11,8,12],[11,11,11,12],[12,11,12,12],[4,8,4,9],[13,8,13,9],[15,8,15,9],[16,8,16,9],[5,8,6,8],[5,6,17,6]]}
[]
[null,null,null,null,null,null,null,"Piscina"]
[]
[]
[null,null,null,null,null,null,"Local","Onde Gasta?","Questões",null,"Dados",null,null,"Consumo por Utilização (litros por mês)","Consumo por Local (Litros por Mês)"]
[null,null,null,null,null,null,"Piscina","Tanque","Tem Piscina?",null,{"$f":"IF(I25=1,\"Sim\",\"Não\")","v":"Não"},null,null,{"$f":"IF(K8=\"Pública\",L9,L8)","v":0},{"$f":"SUM(N6)","v":0}]
[]
[null,null,null,null,null,null,null,null,{"$f":"IF(K6=\"Sim\",\"Se sim, é…\",\"\")","v":""},null,{"$f":"IF(I26=1,\"Particular\",\"Pública\")","v":"Pública"},{"$f":"IF(K6=\"Não\",0,IF(AND(K8=\"Particular\",K10=\"Aquecida Interior\",K12=\"Sim\"),((K14*K15*Apoio!H14*Apoio!H3)+(((K14*K15*K16*K17)/12)*1000)),IF(AND(K8=\"Particular\",K10=\"Aquecida Interior\",K12=\"Não\"),(K14*K15*Apoio!H13*Apoio!H3)+(((K14*K15*K16*K17)/12)*1000),IF(AND(K8=\"Particular\",K10=\"Não Aquecida Exterior\",K12=\"Sim\"),(K14*K15*Apoio!H12*Apoio!H3)+(((K14*K15*K16*K17)/12)*1000),IF(AND(K8=\"Particular\",K10=\"Não Aquecida Exterior\",K12=\"Não\"),(K14*K15*Apoio!H11*Apoio!H3)+(((K14*K15*K16*K17)/12)*1000))))))","v":0}]
[null,null,null,null,null,null,null,null,null,null,null,{"$f":"IF(K6=\"Não\",0,IF(AND(K8=\"Pública\",K10=\"Aquecida Interior\",K12=\"Sim\"),(K14*K15*Apoio!H14*Apoio!H3)+(((K14*K15*K16*K17)/12)*1000)+((Piscina!K14*Piscina!K15*Piscina!K16*1000)*K18*Apoio!H3),IF(AND(K8=\"Pública\",K10=\"Aquecida Interior\",K12=\"Não\"),(K14*K15*Apoio!H13*Apoio!H3)+(((K14*K15*K16*K17)/12)*1000)+((Piscina!K14*Piscina!K15*Piscina!K16*1000)*K18*Apoio!H3),IF(AND(K8=\"Pública\",K10=\"Não Aquecida Exterior\",K12=\"Sim\"),(K14*K15*Apoio!H12*Apoio!H3)+(((K14*K15*K16*K17)/12)*1000)+((Piscina!K14*Piscina!K15*Piscina!K16*1000)*K18*Apoio!H3),IF(AND(K8=\"Pública\",K10=\"Não Aquecida Exterior\",K12=\"Não\"),(K14*K15*Apoio!H11*Apoio!H3)+(((K14*K15*K16*K17)/12)*1000)+((Piscina!K14*Piscina!K15*Piscina!K16*1000)*K18*Apoio!H3))))))","v":0}]
[null,null,null,null,null,null,null,null,{"$f":"IF(K6=\"Sim\",\"A Piscina é...?\",\"\")","v":""},null,{"$f":"IF(I27=1,\"Aquecida Interior\",\"Não Aquecida Exterior\")","v":"Não Aquecida Exterior"}]
[]
[null,null,null,null,null,null,null,null,{"$f":"IF(K6=\"Sim\",\"Tem cobertura isotérmica (para cobrir o plano de água)?\",\"\")","v":""},null,{"$f":"IF(I28=1,\"Sim\",\"Não\")","v":"Não"}]
[]
[null,null,null,null,null,null,null,null,{"$f":"IF(K6=\"Sim\",\"Qual o comprimento da piscina (m)?\",\"\")","v":""}]
[null,null,null,null,null,null,null,null,{"$f":"IF(K6=\"Sim\",\"Qual a largura da piscina (m)?\",\"\")","v":""}]
[null,null,null,null,null,null,null,null,{"$f":"IF(K6=\"Sim\",\"Diga também a profundidade média da piscina (m)?\",\"\")","v":""}]
[null,null,null,null,null,null,null,null,{"$f":"IF(K6=\"Sim\",\"Quantas vezes se muda a água da piscina por ano?\",\"\")","v":""}]
[null,null,null,null,null,null,null,null,{"$f":"IF(OR(K6=\"Não\",K8=\"Particular\"),\"\",\"Se é Pública, qual a taxa de renovação diária? (em percentagem)\")","v":""}]
[]
[]
[]
[]
[]
[]
[null,null,null,null,null,null,null,"Tem Piscina?",2]
[null,null,null,null,null,null,null,"Se sim, é…",0]
[null,null,null,null,null,null,null,"A Piscina é aquecida?",0]
[null,null,null,null,null,null,null,"Tem cobertura isotérmica (cobrir a superfície da água)?",0]

{"sheet":"Outros","index":8,"n_rows":30,"n_cols":15,"rows_kept":30,"cut":false,"hidden":false,"merged":[[0,6,0,10],[0,15,21,15],[21,0,21,10],[4,8,4,9],[5,14,17,14],[8,8,8,9],[5,11,6,11],[5,12,6,12],[12,11,13,11],[12,12,13,12],[4,11,4,12],[9,8,10,8],[11,8,11,9],[1,6,3,6],[5,13,11,13],[5,6,17,6],[1,7,3,8],[5,10,6,10],[9,10,10,10],[15,8,16,8],[12,13,17,13],[12,10,13,10],[15,10,16,10],[14,8,14,9],[17,8,17,9],[7,8,7,9],[5,8,6,8],[12,7,17,7],[12,8,13,8],[5,7,11,7]]}
[]
[null,null,null,null,null,null,null,"Outros Consumos"]
[]
[]
[null,null,null,null,null,null,"Local","Onde Gasta?","Questões",null,"Dados",null,null,"Consumo por Utilização (litros por mês)","Consumo por Local (Litros por Mês)"]
[null,null,null,null,null,null,"Outros","Lago","Tem lago?",null,{"$f":"IF(I27=1,\"Sim\",\"Não\")","v":"Não"},null,null,{"$f":"IF(K6=\"Não\",0,IF(K9=0,(((K8-(K8*K12)))/12)*1000,(((K8*K9-(K8*K9*K12)))/12)*1000))","v":0},{"$f":"SUM(N6,N13)","v":0}]
[]
[null,null,null,null,null,null,null,null,{"$f":"IF(K6=\"Sim\",\"Qual o volume de água necessário para o encher  (m3)?\",\"\")","v":""}]
[null,null,null,null,null,null,null,null,{"$f":"IF(K6=\"Sim\",\"Quantas vezes se muda a água do lago por ano?\",\"\")","v":""}]
[null,null,null,null,null,null,null,null,{"$f":"IF(K6=\"Sim\",\"Aproveita-se a água da chuva (p.ex.), em vez de só utilizar a água da rede?\",\"\")","v":""},null,{"$f":"IF(I29=1,\"Sim\",\"Não\")","v":"Não"}]
[]
[null,null,null,null,null,null,null,null,{"$f":"IF(AND(K10=\"Sim\",K6=\"Sim\"),\"Qual a percentagem que aproveita (%)? \",\"\")","v":""}]
[null,null,null,null,null,null,null,"Sistemas de Aquecimento / Arrefecimento (AVAC)","Tem este equipamento?",null,{"$f":"IF(I28=1,\"Sim\",\"Não\")","v":"Não"},null,null,{"$f":"IF(K13=\"Não\",0,((K15*Apoio!H3)*1000)-(K15*Apoio!H3*K18*1000))","v":0}]
[]
[null,null,null,null,null,null,null,null,{"$f":"IF(K13=\"Sim\",\"Qual o volume médio diário gasto (m3)?\",\"\")","v":""}]
[null,null,null,null,null,null,null,null,{"$f":"IF(K13=\"Sim\",\"Aproveita-se a água da chuva ou reutiliza águas cinzentas, p.ex., em vez de só utilizar a água da rede?\",\"\")","v":""},null,{"$f":"IF(I30=1,\"Sim\",\"Não\")","v":"Não"}]
[]
[null,null,null,null,null,null,null,null,{"$f":"IF(AND(K16=\"Sim\",K13=\"Sim\"),\"Qual a percentagem que aproveita (%)? \",\"\")","v":""}]
[]
[]
[]
[]
[]
[]
[]
[]
[null,null,null,null,null,null,null,"Tem lago?",2]
[null,null,null,null,null,null,null,"Tem este equipamento?",2]
[null,null,null,null,null,null,null,"Aproveita a água da chuva (p.ex.), em vez de só utilizar a água da rede?",0]
[null,null,null,null,null,null,null,"Aproveita a água da chuva ou reutiliza águas cinzentas, p.ex., em vez de só utilizar a água da rede?",0]

{"sheet":"Fugas","index":9,"n_rows":29,"n_cols":15,"rows_kept":29,"cut":false,"hidden":false,"merged":[[1,7,3,8],[0,6,0,10],[26,0,26,10],[0,15,26,15],[5,14,8,14],[5,13,8,13],[5,6,8,6],[5,7,8,7],[4,8,4,9],[7,8,8,8],[5,8,6,8],[5,10,6,10],[5,11,6,11],[5,12,6,12],[1,6,3,6],[9,7,25,10]]}
[]
[null,null,null,null,null,null,null,"Fugas"]
[]
[]
[null,null,null,null,null,null,"Local","Onde Gasta?","Questões",null,"Dados",null,null,"Consumo por Utilização (litros por mês)","Consumo por Local (Litros por Mês)"]
[null,null,null,null,null,null,"Fugas","Fugas","Tem fugas nas torneiras, autoclismos, etc.?",null,{"$f":"IF(I29=1,\"Sim\",\"Não\")","v":"Não"},null,null,{"$f":"IF(K6=\"Não\",0,(K8*2)*(((0.000173611+0.000125+0.000378472+0.000532407+0.000270967636+0.000234742+0.000204082)/7)*60*24)*Apoio!H3*K9)","v":0},{"$f":"SUM(N6)","v":0}]
[]
[null,null,null,null,null,null,null,null,{"$f":"IF(K6=\"Sim\",\"Se vê a pingar… toca a arranjar!!!\",\"\")","v":""},{"$f":"IF(K6=\"Sim\",\"Quantos dispositivos pingam?\",\"\")","v":""}]
[null,null,null,null,null,null,null,null,null,{"$f":"IF(K6=\"Sim\",\"Quantos pingos são, em média, por dispositivo, a cada 30 segundos?\",\"\")","v":""}]
[]
[]
[]
[]
[]
[]
[]
[]
[]
[]
[]
[]
[]
[]
[]
[]
[]
[]
[]
[null,null,null,null,null,null,null,"Tem fugas nas suas torneiras, autoclismos, etc.?",2]

{"sheet":"Síntese","index":10,"n_rows":128,"n_cols":10,"rows_kept":128,"cut":false,"hidden":false,"merged":[[2,1,2,7],[3,2,4,2],[3,1,4,1],[3,3,3,7],[7,6,9,6],[5,1,11,1],[7,2,8,2],[7,5,8,5],[5,6,6,6],[1,13,122,16],[21,9,22,10],[14,9,14,10],[0,11,24,11],[0,1,0,10],[1,1,1,7],[1,8,23,8],[14,7,15,7],[10,6,11,6],[14,1,15,1],[24,0,24,10],[20,1,21,1],[7,3,8,3],[1,9,8,10],[10,9,12,10],[12,6,13,6],[23,1,23,2],[5,7,11,7],[16,7,17,7],[20,7,21,7],[7,4,8,4],[16,1,17,1],[12,7,13,7],[12,1,13,1]]}
[]
[null,"CONSUMO DE ÁGUA - Resultados"]
[]
[null,{"$f":"'Quarto-de-Banho'!G5","v":"Local / Atividade"},{"$f":"'Quarto-de-Banho'!H5","v":"Onde Gasta?"},"Consumo Atual"]
[null,null,null,"Por Utilização (litros/mês)","Por Utilização (m3/mês)","Por Utilização (%)","Por Tipo de Utilização (%)","Por Local (%)"]
[null,{"$f":"'Quarto-de-Banho'!G6","v":"Quarto de Banho / Balneário"},{"$f":"'Quarto-de-Banho'!H6","v":"Autoclismo"},{"$f":"'Quarto-de-Banho'!N6","v":0},{"$f":"D6/1000","v":0},{"$f":"IF(D6=0,0,E6/$E$24)","v":0},{"$f":"SUM(F6:F7)","v":0},{"$f":"SUM(F6:F12)","v":0}]
[null,null,{"$f":"'Quarto-de-Banho'!H12","v":"Fluxómetro / Mictório"},{"$f":"'Quarto-de-Banho'!N12","v":0},0,{"$f":"IF(D7=0,0,E7/$E$24)","v":0}]
[null,null,{"$f":"'Quarto-de-Banho'!H16","v":"Chuveiro / Duche"},{"$f":"'Quarto-de-Banho'!N16","v":0},0,{"$f":"IF(D8=0,0,E8/$E$24)","v":0},{"$f":"SUM(F8:F10)","v":0}]
[]
[null,null,{"$f":"'Quarto-de-Banho'!H24","v":"Banho de Imersão"},{"$f":"'Quarto-de-Banho'!N24","v":0},0,{"$f":"IF(D10=0,0,E10/$E$24)","v":0}]
[null,null,{"$f":"'Quarto-de-Banho'!H32","v":"Lavatório"},{"$f":"'Quarto-de-Banho'!N46+'Quarto-de-Banho'!N33+'Quarto-de-Banho'!N40+'Quarto-de-Banho'!N55","v":0},0,0,{"$f":"SUM(F11:F12)","v":0},null,null,{"$f":"IF(D122=0,\"\",CONCATENATE(Síntese!C122,Síntese!D122,Síntese!E122,Síntese!C123,ROUND(Síntese!D123,0),Síntese!E123))","v":""}]
[null,null,{"$f":"'Quarto-de-Banho'!H56","v":"Bidés"},{"$f":"'Quarto-de-Banho'!N56","v":0},0,0]
[null,{"$f":"Cozinha!G6","v":"Cozinha"},{"$f":"Cozinha!H6","v":"Lava-louça"},{"$f":"Cozinha!N7+Cozinha!N16","v":0},0,0,0,{"$f":"SUM(F13:F14)","v":0}]
[null,null,{"$f":"Cozinha!H18","v":"Beber e Cozinhar"},{"$f":"Cozinha!N18","v":0},0,0]
[null,{"$f":"Equipamento!G6","v":"Equipamento"},{"$f":"Equipamento!H6","v":"Máquina Lavar Roupa"},{"$f":"Equipamento!N6","v":0},0,0,{"$f":"SUM(F15)","v":0},{"$f":"SUM(F15:F16)","v":0}]
[null,null,{"$f":"Equipamento!H11","v":"Máquina Lavar Loiça"},{"$f":"Equipamento!N11","v":0},0,0,{"$f":"SUM(F16)","v":0}]
[null,{"$f":"Limpeza!G6","v":"Limpeza"},{"$f":"Limpeza!H6","v":"Casa"},{"$f":"Limpeza!N6","v":0},0,0,{"$f":"SUM(F17)","v":0},{"$f":"SUM(F17:F18)","v":0}]
[null,null,{"$f":"Limpeza!H7","v":"Carro"},{"$f":"Limpeza!N7","v":0},0,0,0]
[null,{"$f":"'Espaços Verdes'!G6","v":"Jardins / Espaços Verdes"},"Rega",{"$f":"'Espaços Verdes'!N6","v":0},0,0,{"$f":"SUM(F19)","v":0},{"$f":"SUM(F19)","v":0}]
[null,{"$f":"Piscina!G6","v":"Piscina"},{"$f":"Piscina!H6","v":"Tanque"},{"$f":"Piscina!O6","v":0},0,0,{"$f":"SUM(F20)","v":0},{"$f":"SUM(F20)","v":0}]
[null,{"$f":"Outros!G6","v":"Outros"},{"$f":"Outros!H6","v":"Lago"},{"$f":"Outros!N6","v":0},0,0,0,{"$f":"SUM(F21:F22)","v":0}]
[null,null,{"$f":"Outros!H13","v":"Sistemas de Aquecimento / Arrefecimento (AVAC)"},{"$f":"Outros!N13","v":0},0,0,0]
[null,{"$f":"Fugas!G6","v":"Fugas"},{"$f":"Fugas!H6","v":"Fugas"},{"$f":"Fugas!N6","v":0},0,0,0,{"$f":"SUM(F23)","v":0}]
[null,"Consumo Total",null,{"$f":"SUM(D6:D23)","v":0},{"$f":"SUM(E6:E23)","v":0},{"$f":"SUM(F6:F23)","v":0},{"$f":"SUM(G6:G23)","v":0},{"$f":"SUM(H6:H23)","v":0}]
[]
[]
[null,null,null,null,null,null,"Autoclismo",{"$f":"G6","v":0}]
[null,null,null,null,null,null,"Duche/Banho",{"$f":"G8","v":0}]
[null,null,null,null,null,null,"Torneiras",{"$f":"G11+G13+G17","v":0}]
[null,null,null,null,null,null,"Máquina de Lavar Louça",{"$f":"G15","v":0}]
[null,null,null,null,null,null,"Máquina de Lavar Roupa",{"$f":"G16","v":0}]
[null,null,null,null,null,null,"Fugas",{"$f":"G23","v":0}]
[null,null,null,null,null,null,"Usos Exteriores (Limpeza Carro, Rega, Piscina, Outros)",{"$f":"G19+G20+G21+G22+G18","v":0}]
[]
[]
[]
[]
[]
[]
[]
[]
[]
[]
[]
[]
[]
[]
[]
[]
[]
[]
[]
[]
[]
[]
[]
[]
[]
[]
[]
[]
[]
[]
[]
[]
[]
[]
[]
[]
[]
[]
[]
[]
[]
[]
[]
[]
[]
[]
[]
[]
[]
[]
[]
[]
[]
[]
[]
[]
[]
[]
[]
[]
[]
[]
[]
[]
[]
[]
[]
[]
[]
[]
[]
[]
[]
[]
[]
[]
[]
[]
[]
[]
[]
[]
[]
[]
[]
[]
[]
[]
[null,null,{"$f":"IF(D24=\"\",\"\",\"SABIA QUE consome \")","v":"SABIA QUE consome "},{"$f":"IF(E24=\"\",\"\",ROUNDUP(E24,1))","v":0},{"$f":"IF(F24=\"\",\"\",\" m3 por mês, o que corresponde a um consumo \")","v":" m3 por mês, o que corresponde a um consumo "},null,null,"O seu consumo",{"$f":"D123","v":{"$error":"#DIV/0!"}}]
[null,null,{"$f":"IF(E24=\"\",\"\",\"por pessoa por dia de cerca de \")","v":"por pessoa por dia de cerca de "},{"$f":"IF(E24=\"\",\"\",(E24*1000)/Início!Q18/Apoio!H3)","v":{"$error":"#DIV/0!"}},{"$f":"IF(F24=\"\",\"\",\" Litros!!!\")","v":" Litros!!!"},null,null,"Consumo Médio em Portugal",140]
[null,null,null,null,null,null,null,"Valor a Atingir",80]
[]
[null,null,{"$f":"IF(F24=\"\",\"\",\"SABIA QUE o consumo médio por pessoa dia, em Portugal, é cerca de\")","v":"SABIA QUE o consumo médio por pessoa dia, em Portugal, é cerca de"},{"$f":"IF(E24=\"\",\"\",\" 140 Litros!!!\")","v":" 140 Litros!!!"}]
[]
[null,null,{"$f":"IF(F24=\"\",\"\",\"Isto significa que o seu Consumo de Água é\")","v":"Isto significa que o seu Consumo de Água é"},{"$f":"IF(E24=\"\",\"\",IF(D123<Apoio!H22,Apoio!J22,IF(AND(D123>=Apoio!H22,D123<Apoio!H21),Apoio!J21,IF(AND(D123>=Apoio!H21,D123<Apoio!H20),Apoio!J20,IF(AND(D123>=Apoio!H20,D123<Apoio!H19),Apoio!J19,Apoio!J18)))))","v":{"$error":"#DIV/0!"}}]

{"sheet":"Custos AdRA","index":11,"n_rows":21,"n_cols":15,"rows_kept":21,"cut":false,"hidden":false,"merged":[[1,10,1,14],[32,0,32,14],[19,1,19,3],[19,5,19,9],[20,1,20,3],[20,5,20,14],[21,1,28,14],[0,0,31,0],[2,5,2,14],[2,1,2,3],[0,1,0,14],[1,1,1,3],[15,2,15,3],[15,14,18,14],[16,2,16,3],[17,2,17,3],[18,2,18,3],[29,1,31,14],[3,1,3,3],[3,6,3,9],[5,1,9,1],[5,2,8,2],[5,13,8,13],[5,14,9,14],[9,2,9,3],[15,1,18,1],[10,1,14,1],[10,2,13,2],[10,13,13,13],[10,14,14,14],[14,2,14,3],[15,13,18,13]]}
[]
[null,"Quantidade de Água Consumida ",null,null,null,{"$f":"'Real vs Simulado'!E24","v":0},null,"m3",null,"m3","Poupe Água… Seja Eficiente!!!"]
[]
[null,"Descrição",null,null,"Escalão","Quantidade (Dias)","Quantidade (m3)",null,null,null,"Valor Unitário - Preço por m3 (Euros)","Valor (Euros)","IVA (%)","Total Parcial s/ IVA (Euros)","Total s/ IVA (Euros)"]
[null,null,null,null,null,null,"Real","Arredondado",null,"Final"]
[null,"ÁGUA","Água (Tarifa Variável)","1.º Escalão (0 a 5 m3/30,42 dias)",{"$f":"IF(F2=\"\",\"\",IF(Síntese!$D$122>0,\"1º Escalão\",\"\"))","v":""},null,{"$f":"IF(E6=\"\",\"\",(IF(AND(F2<=5,Início!T14<ApoioAdRA!B44),ApoioAdRA!$B$41*F2,IF(Síntese!$D$122>5,5*ApoioAdRA!$B$41,IF(Síntese!$D$122<=5,Síntese!$D$122*ApoioAdRA!$B$41,\"\")))))","v":""},{"$f":"IF(AND(G6>0,G6<1),1,G6)","v":""},{"$f":"IF(G6=\"\",\"\",H6)","v":""},{"$f":"IF(G6=I6,I6,I6)","v":""},{"$f":"IF(E6=\"\",\"\",VLOOKUP(Início!R14,ApoioAdRA!C56:H66,3,0))","v":""},{"$f":"IF(G6=\"\",\"\",J6*K6)","v":""},{"$f":"IF(J6=\"\",\"\",6%)","v":""},{"$f":"IF(L6=\"\",\"\",SUM(L6:L9))","v":""},{"$f":"IF(AND(N6=\"\",N10=\"\"),\"\",SUM(N6,N10))","v":""}]
[null,null,null,"2.º Escalão (6 a 15 m3/30,42 dias)",{"$f":"IF(F2=\"\",\"\",IF(Síntese!$D$122>5,\"2º Escalão\",\"\"))","v":""},null,{"$f":"IF(E7=\"\",\"\",(IF(AND(F2<=5,Início!T14<ApoioAdRA!B44),ApoioAdRA!$B$41*F2,IF(Síntese!$D$122>15,10*ApoioAdRA!$B$41,IF(Síntese!$D$122<=5,\"\",Síntese!$D$122-5)))))","v":""},{"$f":"IF(AND(G7>0,G7<1),1,G7)","v":""},{"$f":"IF(G7=\"\",\"\",IF((H6+H7)>=F2,(F2-H6),G7))","v":""},{"$f":"IF(G7=I7,I7,I7)","v":""},{"$f":"IF(E7=\"\",\"\",VLOOKUP(Início!R14,ApoioAdRA!C56:H66,4,0))","v":""},{"$f":"IF(G7=\"\",\"\",J7*K7)","v":""},{"$f":"IF(J7=\"\",\"\",6%)","v":""}]
[null,null,null,"3.º Escalão (16 a 25 m3/30,42 dias)",{"$f":"IF(F2=\"\",\"\",IF(Síntese!$D$122>15,\"3º Escalão\",\"\"))","v":""},null,{"$f":"IF(E8=\"\",\"\",IF(Síntese!$D$122>25,10*ApoioAdRA!$B$41,IF(Síntese!$D$122<=25,Síntese!$D$122-15,\"\")))","v":""},{"$f":"IF(AND(G8>0,G8<1),1,G8)","v":""},{"$f":"IF(G8=\"\",\"\",IF((H6+H7+H8)>=F2,H8+(F2-(H6+H7+H8)),G8))","v":""},{"$f":"IF(G8=I8,I8,I8)","v":""},{"$f":"IF(E8=\"\",\"\",VLOOKUP(Início!R14,ApoioAdRA!C56:H66,5,0))","v":""},{"$f":"IF(G8=\"\",\"\",J8*K8)","v":""},{"$f":"IF(J8=\"\",\"\",6%)","v":""}]
[null,null,null,"4.º Escalão (> 26 m3/30,42 dias)",{"$f":"IF(F2=\"\",\"\",IF(Síntese!$D$122>25,\"4º Escalão\",\"\"))","v":""},null,{"$f":"IF(E9=\"\",\"\",IF(Síntese!$D$122>25,((Síntese!$D$122-25)*ApoioAdRA!$B$41),IF(Síntese!$D$122<=25,Síntese!$D$122-25,\"\")))","v":""},{"$f":"IF(AND(G9>0,G9<1),1,G9)","v":""},{"$f":"H9","v":""},{"$f":"IF(G9=I9,I9,I9)","v":""},{"$f":"IF(E9=\"\",\"\",VLOOKUP(Início!R14,ApoioAdRA!C56:H66,6,0))","v":""},{"$f":"IF(G9=\"\",\"\",J9*K9)","v":""},{"$f":"IF(J9=\"\",\"\",6%)","v":""}]
[null,null,"Água (Tarifa Fixa)",null,null,{"$f":"IF(Início!R14=1,\"\",Início!T14)","v":30},null,null,null,null,{"$f":"IF(Início!R19=1,\"\",IF(AND(Início!R19>1,Início!R19<=6),(IF(Início!$R$14=2,ApoioAdRA!F13,(IF(Início!$R$14=3,ApoioAdRA!I13,(IF(Início!$R$14=4,ApoioAdRA!C13,(IF(Início!$R$14=5,ApoioAdRA!L13,(IF(Início!$R$14=6,ApoioAdRA!O13,(IF(Início!$R$14=7,ApoioAdRA!R13,(IF(Início!$R$14=8,ApoioAdRA!U13,(IF(Início!$R$14=9,ApoioAdRA!X13,(IF(Início!$R$14=10,ApoioAdRA!AA13,(IF(Início!$R$14=11,ApoioAdRA!AD13)))))))))))))))))))),IF(AND(Início!R19>6,Início!R19<=7),(IF(Início!$R$14=2,ApoioAdRA!F14,(IF(Início!$R$14=3,ApoioAdRA!I14,(IF(Início!$R$14=4,ApoioAdRA!C14,(IF(Início!$R$14=5,ApoioAdRA!L14,(IF(Início!$R$14=6,ApoioAdRA!O14,(IF(Início!$R$14=7,ApoioAdRA!R14,(IF(Início!$R$14=8,ApoioAdRA!U14,(IF(Início!$R$14=9,ApoioAdRA!X14,(IF(Início!$R$14=10,ApoioAdRA!AA14,(IF(Início!$R$14=11,ApoioAdRA!AD14)))))))))))))))))))),IF(AND(Início!R19>7,#REF!<=111),(IF(Início!$R$14=2,ApoioAdRA!F15,(IF(Início!$R$14=3,ApoioAdRA!I15,(IF(Início!$R$14=4,ApoioAdRA!C15,(IF(Início!$R$14=5,ApoioAdRA!L15,(IF(Início!$R$14=6,ApoioAdRA!O15,(IF(Início!$R$14=7,ApoioAdRA!R15,(IF(Início!$R$14=8,ApoioAdRA!U15,(IF(Início!$R$14=9,ApoioAdRA!X15,(IF(Início!$R$14=10,ApoioAdRA!AA15,(IF(Início!$R$14=11,ApoioAdRA!AD15)))))))))))))))))))),IF(AND(Início!R19>11,Início!R19<=16),(IF(Início!$R$14=2,ApoioAdRA!F16,(IF(Início!$R$14=3,ApoioAdRA!I16,(IF(Início!$R$14=4,ApoioAdRA!C16,(IF(Início!$R$14=5,ApoioAdRA!L16,(IF(Início!$R$14=6,ApoioAdRA!O16,(IF(Início!$R$14=7,ApoioAdRA!R16,(IF(Início!$R$14=8,ApoioAdRA!U16,(IF(Início!$R$14=9,ApoioAdRA!X16,(IF(Início!$R$14=10,ApoioAdRA!AA16,(IF(Início!$R$14=11,ApoioAdRA!AD16)))))))))))))))))))),IF(AND(Início!R19>16,Início!R19<=20),(IF(Início!$R$14=2,ApoioAdRA!F17,(IF(Início!$R$14=3,ApoioAdRA!I17,(IF(Início!$R$14=4,ApoioAdRA!C17,(IF(Início!$R$14=5,ApoioAdRA!L17,(IF(Início!$R$14=6,ApoioAdRA!O17,(IF(Início!$R$14=7,ApoioAdRA!R17,(IF(Início!$R$14=8,ApoioAdRA!U17,(IF(Início!$R$14=9,ApoioAdRA!X17,(IF(Início!$R$14=10,ApoioAdRA!AA17,(IF(Início!$R$14=11,ApoioAdRA!AD17)))))))))))))))))))),IF(Início!R19>20,(IF(Início!$R$14=2,ApoioAdRA!F18,(IF(Início!$R$14=3,ApoioAdRA!I18,(IF(Início!$R$14=4,ApoioAdRA!C18,(IF(Início!$R$14=5,ApoioAdRA!L18,(IF(Início!$R$14=6,ApoioAdRA!O18,(IF(Início!$R$14=7,ApoioAdRA!R18,(IF(Início!$R$14=8,ApoioAdRA!U18,(IF(Início!$R$14=9,ApoioAdRA!X18,(IF(Início!$R$14=10,ApoioAdRA!AA18,(IF(Início!$R$14=11,ApoioAdRA!AD18)))))))))))))))))))),0)))))))","v":""},null,{"$f":"IF(F10=\"\",\"\",F20)","v":""},{"$f":"IF(K10=\"\",\"\",ROUNDUP(F10*K10,2))","v":""}]
[null,"SANEAMENTO","Saneamento (Tarifa Variável)","1.º Escalão (0 a 5 m3/30,42 dias)",{"$f":"E6","v":""},null,{"$f":"G6","v":""},"","","",{"$f":"IF(E11=\"\",\"\",K6*ApoioAdRA!B25)","v":""},{"$f":"IF(G11=\"\",\"\",J11*K11)","v":""},{"$f":"M6","v":""},{"$f":"IF(L11=\"\",\"\",ROUNDDOWN(SUM(L11:L14),2))","v":""},{"$f":"IF(AND(N11=\"\",N15=\"\"),\"\",SUM(N11,N15))","v":{"$error":"#VALUE!"}}]
[null,null,null,"2.º Escalão (6 a 15 m3/30,42 dias)",{"$f":"E7","v":""},null,"","","","",{"$f":"IF(E12=\"\",\"\",K7*ApoioAdRA!B25)","v":""},{"$f":"IF(G12=\"\",\"\",J12*K12)","v":""},{"$f":"M7","v":""}]
[null,null,null,"3.º Escalão (16 a 25 m3/30,42 dias)",{"$f":"E8","v":""},null,"","","","",{"$f":"IF(E13=\"\",\"\",K8*ApoioAdRA!B25)","v":""},{"$f":"IF(G13=\"\",\"\",J13*K13)","v":""},{"$f":"M8","v":""}]
[null,null,null,"4.º Escalão (> 26 m3/30,42 dias)",{"$f":"E9","v":""},null,"","","","",{"$f":"IF(E14=\"\",\"\",K9*ApoioAdRA!B25)","v":""},{"$f":"IF(G14=\"\",\"\",J14*K14)","v":""},{"$f":"M9","v":""}]
[null,null,"Saneamento (Tarifa Fixa)",null,null,{"$f":"F10","v":30},null,null,null,null,{"$f":"IF(F2=0,\"\",VLOOKUP(Início!R14,ApoioAdRA!C56:L66,7,0))","v":""},null,{"$f":"IF(F2=0,\"\",F20)","v":""},{"$f":"IF(F15=\"\",\"\",F15*K15)","v":{"$error":"#VALUE!"}}]
[null,"COBRANÇA OUTRAS ENTIDADES","Taxa Recursos Hídricos (Água)",null,null,null,{"$f":"IF(F2=0,\"\",F2)","v":""},null,null,{"$f":"G16","v":""},{"$f":"IF(F2=0,\"\",VLOOKUP(Início!R14,ApoioAdRA!C56:L66,8,0))","v":""},{"$f":"IF(G16=\"\",\"\",G16*K16)","v":""},{"$f":"IF(K16=\"\",\"\",F20)","v":""},{"$f":"IF(L18=\"\",\"\",ROUNDDOWN(SUM(L16:L19),2))","v":{"$error":"#VALUE!"}},{"$f":"IF(N16=\"\",\"\",SUM(N16))","v":{"$error":"#VALUE!"}}]
[null,null,"Taxa Recursos Hídricos (SAN)",null,null,null,{"$f":"IF(F2=0,\"\",F2)","v":""},null,null,{"$f":"G17","v":""},{"$f":"IF(F2=0,\"\",VLOOKUP(Início!R14,ApoioAdRA!C56:L66,9,0))","v":""},{"$f":"IF(G17=\"\",\"\",G17*K17)","v":""},{"$f":"IF(K17=\"\",\"\",F20)","v":""}]
[null,null,"RSU Fixo",null,null,{"$f":"F15","v":30},null,null,null,null,{"$f":"IF(F2=0,\"\",VLOOKUP(Início!R14,ApoioAdRA!C56:L66,10,0))","v":""},{"$f":"IF(F18=\"\",\"\",F18*K18)","v":{"$error":"#VALUE!"}},{"$f":"IF(F18=\"\",\"\",\"\")","v":""}]
[null,null,"RSU (Variável)",null,null,null,{"$f":"IF(Início!R20=1,F2,\"\")","v":""},null,null,{"$f":"IF(G19=0,\"\",G19)","v":""},{"$f":"IF(Início!R20=\"2\",\"\",VLOOKUP(Início!R14,ApoioAdRA!C56:M66,11,0))","v":0.9},{"$f":"IF(G19=\"\",\"\",G19*K19)","v":""},{"$f":"IF(J19=\"\",\"\",\"\")","v":""}]
[null,"IVA",null,null,null,{"$f":"IF(F2=0,\"\",ApoioAdRA!B46)","v":""},null,null,null,null,{"$f":"IF(F20=\"\",\"\",N6+N10+N11+N15+L16+L17)","v":""},{"$f":"IF(K20=\"\",\"\",F20*K20)","v":""},null,{"$f":"IF(L20=\"\",\"\",L20)","v":""},{"$f":"IF(N20=\"\",\"\",SUM(N20))","v":""}]
[null,"VALOR TOTAL A PAGAR c/ IVA (Euros)",null,null,null,{"$f":"IF(F2=0,\"\",SUM(O6,O11,O16,O20))","v":""}]

{"sheet":"Sabia que","index":12,"n_rows":51,"n_cols":14,"rows_kept":51,"cut":false,"hidden":false,"merged":[[1,1,2,1],[1,2,2,2],[7,6,7,8],[8,6,8,8],[10,2,12,2],[3,1,3,3],[11,6,11,8],[46,2,47,2],[47,6,47,8],[48,6,48,8],[33,6,33,8],[34,6,34,8],[50,6,50,8],[29,6,29,8],[30,6,30,8],[39,6,39,8],[49,6,49,8],[38,6,38,8],[40,6,40,8],[41,6,41,8],[46,6,46,8],[35,6,35,8],[36,6,36,8],[14,6,14,8],[15,6,15,8],[27,6,27,8],[26,6,26,8],[22,6,22,8],[18,6,18,8],[19,6,19,8],[20,6,20,8],[24,6,24,8],[0,1,0,3],[55,0,55,3],[28,1,32,1],[19,2,20,2],[21,2,27,2],[13,2,16,2],[17,2,18,2],[33,1,42,1],[43,1,44,1],[46,1,47,1],[48,1,49,1],[4,1,27,1],[4,2,9,2],[28,2,31,2],[33,2,37,2],[38,2,42,2]]}
[]
[null,"Local","Onde Gasta?","Sabia que… podia Poupar???"]
[null,null,null,{"$f":"G3","v":"Sabia que os Autoclismos, Fluxómetros/Mictórios, Torneiras de Lavatório, Torneiras de Cozinha, Chuveiros ou Sistemas de Duche são classificados quanto à sua Eficiência Hídrica pela Associação Nacional para a Qualidade das Instalações Prediais (ANQIP) numa Escala de A++ a E, sendo A++ o mais Eficiente e E o menos (A++; A+; A; B; C; D; E)."},null,null,"Sabia que os Autoclismos, Fluxómetros/Mictórios, Torneiras de Lavatório, Torneiras de Cozinha, Chuveiros ou Sistemas de Duche são classificados quanto à sua Eficiência Hídrica pela Associação Nacional para a Qualidade das Instalações Prediais (ANQIP) numa Escala de A++ a E, sendo A++ o mais Eficiente e E o menos (A++; A+; A; B; C; D; E)."]
[]
[null,{"$f":"'Quarto-de-Banho'!G6","v":"Quarto de Banho / Balneário"},{"$f":"'Quarto-de-Banho'!H6","v":"Autoclismo"},{"$f":"IF(OR('Quarto-de-Banho'!K9=\"\",'Quarto-de-Banho'!K6<>\"Dupla Descarga\"),\"\",CONCATENATE(G5,H5,I5))","v":""},null,null,{"$f":"IF(OR('Quarto-de-Banho'!K9=\"\",'Quarto-de-Banho'!K6<>\"Dupla Descarga\"),\"\",\"Sabia que o Autoclismo de Dupla Descarga é classificado pela ANQIP com… \")","v":""},{"$f":"IF(ISBLANK('Quarto-de-Banho'!K9),\"\",IF(AND('Quarto-de-Banho'!K6=\"Dupla Descarga\",'Quarto-de-Banho'!K9<=Escalas!AC5),\"A++\",IF(AND('Quarto-de-Banho'!K6=\"Dupla Descarga\",'Quarto-de-Banho'!K9>Escalas!$AB$6,'Quarto-de-Banho'!K9<=Escalas!$AC$6),\"A+\",IF(AND('Quarto-de-Banho'!K6=\"Dupla Descarga\",'Quarto-de-Banho'!K9>Escalas!$AB$7,'Quarto-de-Banho'!K9<=Escalas!$AC$7),\"A\",IF(AND('Quarto-de-Banho'!K6=\"Dupla Descarga\",'Quarto-de-Banho'!K9>Escalas!$AB$8,'Quarto-de-Banho'!K9<=Escalas!$AC$8),\"B\",IF(AND('Quarto-de-Banho'!K6=\"Dupla Descarga\",'Quarto-de-Banho'!K9>Escalas!$AB$9,'Quarto-de-Banho'!K9<=Escalas!$AC$9),\"C\",\"\"))))))","v":""},{"$f":"IF(OR('Quarto-de-Banho'!K9=\"\",'Quarto-de-Banho'!K6<>\"Dupla Descarga\"),\"\",\" ???\")","v":""}]
[null,null,null,{"$f":"CONCATENATE(G6,H6,I6)","v":""},null,null,{"$f":"IF(OR('Quarto-de-Banho'!K9=\"\",'Quarto-de-Banho'!K6<>\"C/ Interrupção de Descarga\"),\"\",\"Sabia que o Autoclismo c/ Interrupção de Descarga é classificado pela ANQIP com… \")","v":""},{"$f":"IF(ISBLANK('Quarto-de-Banho'!K9),\"\",IF(AND('Quarto-de-Banho'!K6=\"C/ Interrupção de Descarga\",'Quarto-de-Banho'!K9<=Escalas!$AA$6),\"A+\",IF(AND('Quarto-de-Banho'!K6=\"C/ Interrupção de Descarga\",'Quarto-de-Banho'!K9>Escalas!$Y$7,'Quarto-de-Banho'!K9<=Escalas!$AA$7),\"A\",IF(AND('Quarto-de-Banho'!K6=\"C/ Interrupção de Descarga\",'Quarto-de-Banho'!K9>Escalas!$Y$8,'Quarto-de-Banho'!K9<=Escalas!$AA$8),\"B\",IF(AND('Quarto-de-Banho'!K6=\"C/ Interrupção de Descarga\",'Quarto-de-Banho'!K9>Escalas!$Y$9,'Quarto-de-Banho'!K9<=Escalas!$AA$9),\"C\",IF(AND('Quarto-de-Banho'!K6=\"C/ Interrupção de Descarga\",'Quarto-de-Banho'!K9>Escalas!$Y$10,'Quarto-de-Banho'!K9<=Escalas!$AA$10),\"D\",\"\"))))))","v":""},{"$f":"IF(G6=\"\",\"\",\" ???\")","v":""}]
[null,null,null,{"$f":"CONCATENATE(G7,H7,I7)","v":""},null,null,{"$f":"IF(OR('Quarto-de-Banho'!K9=\"\",'Quarto-de-Banho'!K6<>\"Descarga Completa\"),\"\",\"Sabia que o Autoclismo de Descarga Completa é classificado pela ANQIP com… \")","v":""},{"$f":"IF(ISBLANK('Quarto-de-Banho'!K9),\"\",IF(AND('Quarto-de-Banho'!K6=\"Descarga Completa\",'Quarto-de-Banho'!K9<=Escalas!$Y$7),\"A\",IF(AND('Quarto-de-Banho'!K6=\"Descarga Completa\",'Quarto-de-Banho'!K9>Escalas!$X$8,'Quarto-de-Banho'!K9<=Escalas!$Y$8),\"B\",IF(AND('Quarto-de-Banho'!K6=\"Descarga Completa\",'Quarto-de-Banho'!K9>Escalas!$X$9,'Quarto-de-Banho'!K9<=Escalas!$Y$9),\"C\",IF(AND('Quarto-de-Banho'!K6=\"Descarga Completa\",'Quarto-de-Banho'!K9>Escalas!$X$10,'Quarto-de-Banho'!K9<=Escalas!$Y$10),\"D\",IF(AND('Quarto-de-Banho'!K6=\"Descarga Completa\",'Quarto-de-Banho'!K9>Escalas!$X$11,'Quarto-de-Banho'!K9<=Escalas!$Y$11),\"E\",\"NA\"))))))","v":""},{"$f":"IF(G7=\"\",\"\",\" ???\")","v":""}]
[null,null,null,{"$f":"CONCATENATE(G8,M8,N8,I8)","v":"Sabia que existem autoclismos de Dupla Descarga ou autoclismos C/ Interrupção de Descarga que permitem poupar muita água???"},null,null,{"$f":"IF('Quarto-de-Banho'!K6=\"Dupla Descarga\",\"\",IF('Quarto-de-Banho'!K6=\"C/ Interrupção de Descarga\",\"Sabia que existem autoclismos de Dupla Descarga que permitem poupar aindas mais água???\",IF('Quarto-de-Banho'!K6=\"Descarga Completa\",\"Sabia que existem autoclismos de Dupla Descarga ou autoclismos C/ Interrupção de Descarga que permitem poupar muita água???\",\"\")))","v":"Sabia que existem autoclismos de Dupla Descarga ou autoclismos C/ Interrupção de Descarga que permitem poupar muita água???"}]
[null,null,null,{"$f":"CONCATENATE(G9,M9,N9,I9)","v":""},null,null,{"$f":"IF(AND('Quarto-de-Banho'!K9>Apoio!E2,'Quarto-de-Banho'!K6=\"Dupla Descarga\"),\"Sabia que existem autoclismos que consomem menos água???\",IF(AND('Quarto-de-Banho'!K9>Apoio!E2,'Quarto-de-Banho'!K6=\"C/ Interrupção de Descarga\"),\"Sabia que existem autoclismos que consomem menos água???\",IF(AND('Quarto-de-Banho'!K9>Apoio!E2,'Quarto-de-Banho'!K6=\"Descarga Completa\"),\"Sabia que existem autoclismos que consomem menos água???\",\"\")))","v":""}]
[null,null,null,{"$f":"IF(G10=\"\",\"\",CONCATENATE(G10,M10,N10,I10))","v":""},null,null,{"$f":"IF(J10=\"\",\"\",\"Sabia que poderá poupar até… \")","v":""},{"$f":"IF(J10=\"\",\"\",J10)","v":""},{"$f":"IF(J10=\"\",\"\",\" … de água por descarga???\")","v":""},{"$f":"IF('Quarto-de-Banho'!K9>Apoio!E2,1-(Apoio!E2/'Quarto-de-Banho'!K9),\"\")","v":""},{"$f":"H10","v":""},{"$f":"K10","v":""},{"$f":"ROUND(L10*100,2)","v":{"$error":"#VALUE!"}},"%"]
[null,null,{"$f":"'Quarto-de-Banho'!H12","v":"Fluxómetro / Mictório"},{"$f":"CONCATENATE(G11,H11,I11)","v":" "},null,null,{"$f":"IF('Quarto-de-Banho'!K15=\"\",\"\",\"Sabia que o Fluxómetro de Mictório é classificado pela ANQIP com… \")","v":""},{"$f":"IF(ISBLANK('Quarto-de-Banho'!K15),\" \",IF('Quarto-de-Banho'!K15<=1,\"A++\",IF(AND('Quarto-de-Banho'!K15>1,'Quarto-de-Banho'!K15<=2),\"A+\",IF(AND('Quarto-de-Banho'!K15>2,'Quarto-de-Banho'!K15<=4),\"A\",IF(AND('Quarto-de-Banho'!K15>4,'Quarto-de-Banho'!K15<=6),\"B\",IF(AND('Quarto-de-Banho'!K15>6,'Quarto-de-Banho'!K15<=8),\"C\",IF(AND('Quarto-de-Banho'!K15>8,'Quarto-de-Banho'!K15<10),\"D\",\"E\")))))))","v":" "},{"$f":"IF(G11=\"\",\"\",\" ???\")","v":""}]
[null,null,null,{"$f":"G12","v":""},null,null,{"$f":"IF(OR('Quarto-de-Banho'!K15>Apoio!E3,'Quarto-de-Banho'!K12=\"\"),\"Sabia que poderá diminuir a quantidade que gasta por descarga para um valor menor do que 1 litro???\",\"\")","v":""}]
[null,null,null,{"$f":"IF(G13=\"\",\"\",CONCATENATE(G13,M13,N13,I13))","v":""},null,null,{"$f":"IF(J13=\"\",\"\",\"Sabia que poderá poupar até… \")","v":""},{"$f":"IF(J13=\"\",\"\",J13)","v":""},{"$f":"IF(J13=\"\",\"\",\" … de água por descarga???\")","v":""},{"$f":"IF('Quarto-de-Banho'!K15>Apoio!E3,1-(Apoio!E3/'Quarto-de-Banho'!K15),\"\")","v":""},{"$f":"H13","v":""},{"$f":"K13","v":""},{"$f":"ROUND(L13*100,2)","v":{"$error":"#VALUE!"}},"%"]
[null,null,{"$f":"'Quarto-de-Banho'!H56","v":"Bidés"},{"$f":"CONCATENATE(G14,H14,I14)","v":" "},null,null,{"$f":"IF('Quarto-de-Banho'!K59=\"\",\"\",\"Sabia que o Bidé é classificado pela ANQIP com… \")","v":""},{"$f":"IF(ISBLANK('Quarto-de-Banho'!K59),\" \",IF('Quarto-de-Banho'!K59<=2,\"A+\",IF(AND('Quarto-de-Banho'!K59>2,'Quarto-de-Banho'!K59<=4),\"A\",IF(AND('Quarto-de-Banho'!K59>4,'Quarto-de-Banho'!K59<=6),\"B\",IF(AND('Quarto-de-Banho'!K59>6,'Quarto-de-Banho'!K59<=9),\"C\",IF(AND('Quarto-de-Banho'!K59>9,'Quarto-de-Banho'!K59<=12),\"D\",\"E\"))))))","v":" "},{"$f":"IF(G14=\"\",\"\",\" ???\")","v":""}]
[null,null,null,{"$f":"G15","v":""},null,null,{"$f":"IF('Quarto-de-Banho'!K59=\"\",\"\",\"Sabia que existem torneiras de lavatório com arejador e/ou eco-stop que permitem reduzir a quantidade de água gasta???\")","v":""}]
[null,null,null,{"$f":"CONCATENATE(G16,M16,N16,I16)","v":"Sabia que poderá diminuir a quantidade que gasta por minuto para valores inferiores a 2 litros???"},null,null,{"$f":"IF(OR('Quarto-de-Banho'!K59>Apoio!E12,'Quarto-de-Banho'!K59=\"\"),\"Sabia que poderá diminuir a quantidade que gasta por minuto para valores inferiores a 2 litros???\",\"\")","v":"Sabia que poderá diminuir a quantidade que gasta por minuto para valores inferiores a 2 litros???"}]
[null,null,null,{"$f":"IF(G17=\"\",\"\",CONCATENATE(G17,M17,N17,I17))","v":""},null,null,{"$f":"IF(J17=\"\",\"\",\"Sabia que poderá poupar até… \")","v":""},{"$f":"IF(J17=\"\",\"\",J17)","v":""},{"$f":"IF(J17=\"\",\"\",\"… de água por minuto!!!\")","v":""},{"$f":"IF('Quarto-de-Banho'!K59>Apoio!E12,1-(Apoio!E12/'Quarto-de-Banho'!K59),\"\")","v":""},{"$f":"H17","v":""},"",{"$f":"ROUND(L17*100,2)","v":{"$error":"#VALUE!"}},"%"]
[null,null,{"$f":"'Quarto-de-Banho'!H16","v":"Chuveiro / Duche"},{"$f":"CONCATENATE(G18,H18,I18)","v":" "},null,null,{"$f":"IF('Quarto-de-Banho'!K18=\"\",\"\",\"Sabia que o Chuveiro é classificado pela ANQIP com… \")","v":""},{"$f":"IF(ISBLANK('Quarto-de-Banho'!K18),\" \",IF(('Quarto-de-Banho'!K18<=5),\"A++\",IF(AND('Quarto-de-Banho'!K18>5,'Quarto-de-Banho'!K18<=7.2),\"A++\",IF(AND('Quarto-de-Banho'!K18>7.2,'Quarto-de-Banho'!K18<=9),\"A+\",IF(AND('Quarto-de-Banho'!K18>9,'Quarto-de-Banho'!K18<=15),\"A\",IF(AND('Quarto-de-Banho'!K18>15,'Quarto-de-Banho'!K18<=30),\"B\",IF('Quarto-de-Banho'!K18>30,\"C\")))))))","v":" "},{"$f":"IF(G18=\"\",\"\",\" ???\")","v":""}]
[null,null,null,{"$f":"CONCATENATE(G19,M19,N19,I19)","v":""},null,null,{"$f":"IF('Quarto-de-Banho'!K19=\"Não\",\"Sabia que ao tomar duche se fechar a água enquanto se ensaboa poderá diminuir o consumo de água até aos 75%???\",\"\")","v":""}]
[null,null,{"$f":"'Quarto-de-Banho'!H24","v":"Banho de Imersão"},{"$f":"CONCATENATE(G20,M20,N20,I20)","v":""},null,null,{"$f":"IF('Quarto-de-Banho'!K26=\"\",\"\",\"Sabia ao tomar banho de imersão irá gastar muito mais água do que tomando um duche???\")","v":""}]
[null,null,null,{"$f":"CONCATENATE(G21,M21,N21,I21)","v":""},null,null,{"$f":"IF('Quarto-de-Banho'!K28>0,\"Ao encher a banheira está a desperdiçar um recurso muito importante. Tome banho de duche ou, pelo menos, reduza para metade o volume da sua banheira!!!\",IF('Quarto-de-Banho'!K29>0,\"Como toma banho de imersão e enche metade da banheira, tente reduzir para cerca de 1/4, mas o duche é sem dúvida a melhor alternativa!!!\",IF('Quarto-de-Banho'!K31>0,\"Como toma banho de imersão faz muito bem em só encher 1/4 da banheira, mas experimente o duche!!!\",\"\")))","v":""}]
[null,null,{"$f":"'Quarto-de-Banho'!H32","v":"Lavatório"},{"$f":"CONCATENATE(G22,H22,I22)","v":" "},null,null,{"$f":"IF('Quarto-de-Banho'!K32=\"\",\"\",\"Sabia que a Torneira de Lavatório é classificado pela ANQIP com… \")","v":""},{"$f":"IF(ISBLANK('Quarto-de-Banho'!K32),\" \",IF('Quarto-de-Banho'!K32<=2,\"A++\",IF(AND('Quarto-de-Banho'!K32>2,'Quarto-de-Banho'!K32<=4),\"A++\",IF(AND('Quarto-de-Banho'!K32>4,'Quarto-de-Banho'!K32<=6),\"A+\",IF(AND('Quarto-de-Banho'!K32>6,'Quarto-de-Banho'!K32<=9),\"A\",IF(AND('Quarto-de-Banho'!K32>9,'Quarto-de-Banho'!K32<=12),\"B\",\"C\"))))))","v":" "},{"$f":"IF(G22=\"\",\"\",\" ???\")","v":""}]
[null,null,null,{"$f":"CONCATENATE(G23,M23,N23,I23)","v":"Sabia que poderá diminuir a quantidade que gasta por minuto para valores inferiores a 2 litros???"},null,null,{"$f":"IF(OR('Quarto-de-Banho'!K32>Apoio!E8,'Quarto-de-Banho'!K32=\"\"),\"Sabia que poderá diminuir a quantidade que gasta por minuto para valores inferiores a 2 litros???\",\"\")","v":"Sabia que poderá diminuir a quantidade que gasta por minuto para valores inferiores a 2 litros???"}]
[null,null,null,{"$f":"IF(G24=\"\",\"\",CONCATENATE(G24,M24,N24,I24))","v":""},null,null,{"$f":"IF(J24=\"\",\"\",\"Sabia que poderá poupar até… \")","v":""},{"$f":"IF(J24=\"\",\"\",J24)","v":""},{"$f":"IF(J24=\"\",\"\",\" … de água por minuto???\")","v":""},{"$f":"IF('Quarto-de-Banho'!K32>Apoio!E8,1-(Apoio!E8/'Quarto-de-Banho'!K32),\"\")","v":""},{"$f":"H24","v":""},"",{"$f":"ROUND(L24*100,2)","v":{"$error":"#VALUE!"}},"%"]
[null,null,null,{"$f":"CONCATENATE(G25)","v":""},null,null,{"$f":"IF('Quarto-de-Banho'!K50>0,\"Sabia que poderia fazer a barba sem estar a água sempre a correr???\",IF('Quarto-de-Banho'!K51>0,\"Sabia que ainda poderia ter menos tempo com a água a correr???\",\"\"))","v":""}]
[null,null,null,{"$f":"IF(G26=\"\",\"\",CONCATENATE(G26,M26,N26,I26))","v":""},null,null,{"$f":"IF(J26=\"\",\"\",\"Sabia que poderá poupar até… \")","v":""},{"$f":"IF(J26=\"\",\"\",J26)","v":""},{"$f":"IF(J26=\"\",\"\",\" … de água por minuto???\")","v":""},{"$f":"IF('Quarto-de-Banho'!K49>Apoio!E9,1-(Apoio!E9/'Quarto-de-Banho'!K49),\"\")","v":""},{"$f":"H26","v":""},"",{"$f":"ROUND(L26*100,2)","v":{"$error":"#VALUE!"}},"%"]
[null,null,null,{"$f":"CONCATENATE(G27,M27,N27,I27)","v":""},null,null,{"$f":"IF('Quarto-de-Banho'!K35=\"Não\",\"Sabia que poderá diminuir o consumo de água em pelo menos 75% caso feche a torneira enquanto lava os dentes???\",\"\")","v":""}]
[null,null,null,{"$f":"CONCATENATE(G28,M28,N28,I28)","v":""},null,null,{"$f":"IF('Quarto-de-Banho'!K41=\"Não\",\"Sabia que poderá diminuir o consumo de água em pelo menos 50% caso feche a torneira enquanto lava as mãos???\",\"\")","v":""}]
[null,{"$f":"Cozinha!G6","v":"Cozinha"},{"$f":"Cozinha!H6","v":"Lava-louça"},{"$f":"CONCATENATE(G29,H29,I29)","v":" "},null,null,{"$f":"IF(Cozinha!K6=\"\",\"\",\"Sabia que a Torneira de Lavatório é classificado pela ANQIP com… \")","v":""},{"$f":"IF(ISBLANK(Cozinha!K6),\" \",IF(Cozinha!K6<=4,\"A++\",IF(AND(Cozinha!K6>4,Cozinha!K6<=6),\"A++\",IF(AND(Cozinha!K6>6,Cozinha!K6<=9),\"A+\",IF(AND(Cozinha!K6>9,Cozinha!K6<=12),\"A\",IF(AND(Cozinha!K6>12,Cozinha!K6<=15),\"B\",\"C\"))))))","v":" "},{"$f":"IF(G29=\"\",\"\",\" ???\")","v":""}]
[null,null,null,{"$f":"CONCATENATE(G30,M30,N30,I30)","v":""},null,null,{"$f":"IF(Cozinha!K6=\"\",\"\",\"Sabia que existem torneiras de cozinha com arejador e/ou eco-stop???\")","v":""}]
[null,null,null,{"$f":"CONCATENATE(G31,M31,N31,I31)","v":"Sabia que poderá diminuir a quantidade que gasta por minuto para valores inferiores que 4 litros???"},null,null,{"$f":"IF(OR(Cozinha!K6>Apoio!E13,Cozinha!K6=\"\"),\"Sabia que poderá diminuir a quantidade que gasta por minuto para valores inferiores que 4 litros???\",\"\")","v":"Sabia que poderá diminuir a quantidade que gasta por minuto para valores inferiores que 4 litros???"}]
[null,null,null,{"$f":"IF(G32=\"\",\"\",CONCATENATE(G32,M32,N32,I32))","v":""},null,null,{"$f":"IF(J32=\"\",\"\",\"Sabia que poderá poupar até… \")","v":""},{"$f":"IF(J32=\"\",\"\",J32)","v":""},{"$f":"IF(J32=\"\",\"\",\"… de água por minuto???\")","v":""},{"$f":"IF(Cozinha!K6>Apoio!E13,1-(Apoio!E13/Cozinha!K6),\"\")","v":""},{"$f":"H32","v":""},"",{"$f":"ROUND(L32*100,2)","v":{"$error":"#VALUE!"}},"%"]
[null,null,{"$f":"Cozinha!H18","v":"Beber e Cozinhar"}]
[null,{"$f":"Equipamento!G6","v":"Equipamento"},{"$f":"Equipamento!H6","v":"Máquina Lavar Roupa"},{"$f":"CONCATENATE(G34,M34,N34,I34)","v":""},null,null,{"$f":"IF(Equipamento!K10=\"\",\"\",\"Sabia que o valor de referência para as Máquinas de Lavar Roupa são 5 litros de consumo de água por Kg de Roupa???\")","v":""}]
[null,null,null,"",null,null,{"$f":"IF(Equipamento!K10=\"\",\"\",\"Sabia que existem Máquinas de Lavar Roupa Eficientes em termos de consumo de água e energia e que actualmente na EU é obrigatório que o nível mínimo de Eficiência Energética seja a de Classificação A+???\")","v":""}]
[null,null,null,"Sabia que existe no mercado Máquinas de Lavar Roupa que consomem menos quantidade de água por Kg de Roupa chegando estes valores aos 6 litros???",null,null,{"$f":"IF(OR(Equipamento!K10>Apoio!E14,Equipamento!K10=\"\"),\"Sabia que existe no mercado Máquinas de Lavar Roupa que consomem menos quantidade de água por Kg de Roupa chegando estes valores aos 6 litros???\",\"\")","v":"Sabia que existe no mercado Máquinas de Lavar Roupa que consomem menos quantidade de água por Kg de Roupa chegando estes valores aos 6 litros???"}]
[null,null,null,{"$f":"IF(G37=\"\",\"\",CONCATENATE(G37,M37,N37,I37))","v":""},null,null,{"$f":"IF(Equipamento!K8=\"\",\"\",\"Sabia que deverá apenas dar início à Lavagem caso tenha a Máquina cheia???\")","v":""}]
[null,null,null,{"$f":"IF(G38=\"\",\"\",CONCATENATE(G38,M38,N38,I38))","v":""},null,null,{"$f":"IF(J38=\"\",\"\",\"Sabia que poderá poupar até… \")","v":""},{"$f":"IF(J38=\"\",\"\",J38)","v":""},{"$f":"IF(J38=\"\",\"\",\" … de água por Kg de Roupa Lavada???\")","v":""},{"$f":"IF(Equipamento!K10>Apoio!E14,1-(Apoio!E14/Equipamento!K10),\"\")","v":""},{"$f":"H38","v":""},"",{"$f":"ROUND(L38*100,2)","v":{"$error":"#VALUE!"}},"%"]
[null,null,{"$f":"Equipamento!H11","v":"Máquina Lavar Loiça"},"",null,null,{"$f":"IF(Equipamento!K14=\"\",\"\",\"Sabia que o valor de referência para as Máquinas de Lavar-Louça são 6 litros de consumo de água por ciclo de lavagem???\")","v":""}]
[null,null,null,"",null,null,{"$f":"IF(Equipamento!K14=\"\",\"\",\"Sabia que existem Máquinas de Lavar Louça Eficientes em termos de consumo de água e energia e que actualmente na EU é obrigatório que o nível mínimo de Eficiência Energética seja a de Classficiação A+???\")","v":""}]
[null,null,null,"Sabia que existe no mercado Máquinas de Lavar Louça que consomem menos de 12 litros de água por ciclo de lavagem???",null,null,{"$f":"IF(OR(Equipamento!K14>Apoio!E15,Equipamento!K14=\"\"),\"Sabia que existe no mercado Máquinas de Lavar Louça que consomem menos de 12 litros de água por ciclo de lavagem???\",\"\")","v":"Sabia que existe no mercado Máquinas de Lavar Louça que consomem menos de 12 litros de água por ciclo de lavagem???"}]
[null,null,null,"",null,null,{"$f":"IF(Equipamento!K14=\"\",\"\",\"Sabia que deverá apenas dar início à Lavagem caso tenha a Máquina cheia???\")","v":""}]
[null,null,null,{"$f":"IF(G43=\"\",\"\",CONCATENATE(G43,M43,N43,I43))","v":""},null,null,{"$f":"IF(J43=\"\",\"\",\"Sabia que poderá poupar até… \")","v":""},{"$f":"IF(J43=\"\",\"\",J43)","v":""},{"$f":"IF(J43=\"\",\"\",\" … de água por ciclo de lavagem???\")","v":""},{"$f":"IF(Equipamento!K14>Apoio!E15,1-(Apoio!E15/Equipamento!K14),\"\")","v":""},{"$f":"H43","v":""},"",{"$f":"ROUND(L43*100,2)","v":{"$error":"#VALUE!"}},"%"]
[null,{"$f":"Limpeza!G6","v":"Limpeza"},{"$f":"Limpeza!H6","v":"Casa"},{"$f":"IF(G44=\"\",\"\",CONCATENATE(G44,M44,N44,I44))","v":""},null,null,{"$f":"IF(J44=\"\",\"\",\"Sabia que poderá poupar até… \")","v":""},{"$f":"IF(J44=\"\",\"\",J44)","v":""},{"$f":"IF(J44=\"\",\"\",\" … de água na lavagem de sua casa???\")","v":""},{"$f":"IF(Limpeza!K6>Apoio!E16,1-(Apoio!E16/Limpeza!K6),\"\")","v":""},{"$f":"H44","v":""},{"$f":"K44","v":""},{"$f":"ROUND(L44*100,2)","v":{"$error":"#VALUE!"}},"%"]
[null,null,{"$f":"Limpeza!H7","v":"Carro"},{"$f":"IF(G45=\"\",\"\",CONCATENATE(G45,M45,N45,I45))","v":""},null,null,{"$f":"IF(J45=\"\",\"\",\"Sabia que poderá poupar até… \")","v":""},{"$f":"IF(J45=\"\",\"\",J45)","v":""},{"$f":"IF(J45=\"\",\"\",\" … de água por minuto???\")","v":""},{"$f":"IF(Limpeza!K14>Apoio!E17,1-(Apoio!E17/Limpeza!K14),\"\")","v":""},{"$f":"H45","v":""},"",{"$f":"ROUND(L45*100,2)","v":{"$error":"#VALUE!"}},"%"]
[null,{"$f":"'Espaços Verdes'!G6","v":"Jardins / Espaços Verdes"},{"$f":"'Espaços Verdes'!H6","v":"Rega"},{"$f":"IF(G46=\"\",\"\",CONCATENATE(G46,M46,I46))","v":""},null,null,{"$f":"IF('Espaços Verdes'!K6=\"Sim\",\"Sabia que o consumo de água por m2 no espaço público é de… \",\"\")","v":""},{"$f":"IF('Espaços Verdes'!K6=\"Sim\",('Espaços Verdes'!N6/'Espaços Verdes'!K17)/Apoio!H3,\"\")","v":""},{"$f":"IF('Espaços Verdes'!K6=\"Sim\",\" … litros/m2.dia???\",\"\")","v":""},null,{"$f":"H46","v":""},"",{"$f":"ROUND(L46*100,2)","v":{"$error":"#VALUE!"}},"%"]
[null,{"$f":"Piscina!G6","v":"Piscina"},{"$f":"Piscina!H6","v":"Tanque"},{"$f":"CONCATENATE(G47,M47,N47,I47)","v":""},null,null,{"$f":"IF(Piscina!N6>0,\"Sabia que a evaporação é responsável por 30% do consumo de água numa piscina???\",\"\")","v":""}]
[null,null,null,"Sabia que uma boa forma de diminuir o consumo de água da sua piscina é cobri-la com uma tela nas horas de maior calor, impedindo também que possíveis poeiras e afins se acumulem na água, evitando a sujidade???",null,null,{"$f":"IF(Piscina!K12=\"Não\",\"Sabia que uma boa forma de diminuir o consumo de água da sua piscina é cobri-la com uma tela nas horas de maior calor, impedindo também que possíveis poeiras e afins se acumulem na água, evitando a sujidade???\",\"\")","v":"Sabia que uma boa forma de diminuir o consumo de água da sua piscina é cobri-la com uma tela nas horas de maior calor, impedindo também que possíveis poeiras e afins se acumulem na água, evitando a sujidade???"}]
[null,{"$f":"Outros!G6","v":"Outros"},{"$f":"Outros!H6","v":"Lago"},"",null,null,{"$f":"IF(Outros!K10<Apoio!E23,\"Sabia que poderia aproveitar a água da chuva para encher o seu lago???\",\"\")","v":""}]
[null,null,{"$f":"Outros!H13","v":"Sistemas de Aquecimento / Arrefecimento (AVAC)"},"Sabia que poderia aproveitar as águas cinzentas ou água da chuva para os sistemas de aquecimento/arrefecimento???",null,null,{"$f":"IF(Outros!N13=\"\",\"\",\"Sabia que poderia aproveitar as águas cinzentas ou água da chuva para os sistemas de aquecimento/arrefecimento???\")","v":"Sabia que poderia aproveitar as águas cinzentas ou água da chuva para os sistemas de aquecimento/arrefecimento???"}]
[null,{"$f":"Fugas!G6","v":"Fugas"},{"$f":"Fugas!H6","v":"Fugas"},"",null,null,{"$f":"IF(Fugas!K6=\"Sim\",\"Se vê a pingar… toca a arranjar!!!\",\"\")","v":""}]

{"sheet":"Sabia que.Real","index":13,"n_rows":5,"n_cols":3,"rows_kept":5,"cut":false,"hidden":false,"merged":[[4,2,24,9],[0,1,0,10],[0,11,34,11],[34,0,34,10],[1,1,3,10],[4,1,33,1],[25,2,33,9],[4,10,33,10]]}
[]
[]
[]
[]
[null,null,"Na próxima página seleccione as                              alternativas disponíveis na Coluna VALOR para                                   a(s) utilização(ões) em que deseje alterar                            ou testar novos dispositivos, apurando o                              Período de Retorno do Investimento e                                             a Poupança que pode alcançar."]

{"sheet":"Real vs Simulado","index":14,"n_rows":141,"n_cols":39,"rows_kept":141,"cut":false,"hidden":false,"merged":[[64,3,64,5],[66,1,68,1],[0,28,28,28],[20,25,21,25],[0,1,0,27],[3,1,4,1],[7,24,9,24],[10,24,11,24],[10,6,11,6],[3,21,3,25],[5,24,6,24],[5,13,6,13],[7,21,8,21],[5,25,11,25],[14,1,15,1],[16,1,17,1],[3,8,4,8],[3,20,23,20],[7,3,8,3],[3,18,4,18],[3,12,4,12],[3,10,4,10],[7,4,8,4],[7,5,8,5],[13,14,13,15],[23,14,23,15],[5,6,6,6],[23,16,23,19],[16,27,17,27],[20,27,21,27],[10,13,11,13],[20,7,21,7],[16,14,16,15],[12,25,13,25],[14,25,15,25],[16,25,17,25],[7,22,8,22],[7,23,8,23],[12,24,13,24],[3,26,23,26],[3,2,4,2],[3,3,3,7],[3,9,4,9],[3,11,4,11],[3,19,4,19],[3,14,3,15],[3,16,4,16],[3,17,4,17],[7,6,9,6],[7,2,8,2],[16,7,17,7],[23,9,23,13],[0,0,28,0],[2,1,2,27],[1,1,1,27],[3,27,4,27],[5,27,11,27],[12,27,13,27],[14,27,15,27],[3,13,4,13],[12,1,13,1],[5,7,11,7],[12,7,13,7],[14,7,15,7],[12,6,13,6],[5,1,11,1],[20,1,21,1],[23,1,23,2]]}
[]
[null,"ALTERAÇÃO DE DISPOSITIVOS/COMPORTAMENTO "]
[]
[null,{"$f":"'Quarto-de-Banho'!G5","v":"Local / Atividade"},{"$f":"'Quarto-de-Banho'!H5","v":"Onde Gasta?"},"Consumo Atual",null,null,null,null,null," Consumo do Equipamento / Atividade ou Período de Tempo Atual","Rotulagem Eficiência Hídrica (A++, A+, A, B, C, D, E)"," Consumo do Equipamento / Atividade ou Período de Tempo de Referência","Rotulagem Eficiência Hídrica (A++, A+, A, B, C, D, E)","Unidades","Teste as possíveis alterações / hipóteses para aumentar a Eficiência Hídrica",null,"Auxiliar","Valor Seleccionado","Rotulagem Eficiência Hídrica que passará a dispôr (A++, A+, A, B, C, D, E)","Percentagem de Poupança (%)",null,"Consumo Simulado",null,null,null,null,null,"Redução por Local / Atividade (%)"]
[null,null,null,"Por Utilização (litros/mês)","Por Utilização (m3/mês)","Por Utilização (%)","Por Tipo de Utilização (%)","Por Local (%)",null,null,null,null,null,null,"Questão","Valor",null,null,null,null,null,"Por Utilização (litros/mês)","Por Utilização (m3/mês)","Por Utilização (%)","Por Tipo de Utilização (%)","Por Local (%)"]
[null,{"$f":"'Quarto-de-Banho'!G6","v":"Quarto de Banho / Balneário"},{"$f":"'Quarto-de-Banho'!H6","v":"Autoclismo"},{"$f":"'Quarto-de-Banho'!N6","v":0},{"$f":"D6/1000","v":0},{"$f":"IF(D6=0,0,E6/$E$24)","v":0},{"$f":"SUM(F6:F7)","v":0},{"$f":"SUM(F6:F12)","v":0},null,{"$f":"'Quarto-de-Banho'!K9","v":0},{"$f":"IF(J6=0,\"-\",IF('Quarto-de-Banho'!K6=\"Dupla Descarga\",IF(J6<=Escalas!AC5,Escalas!A5,IF(AND(J6>Escalas!AB6,J6<=Escalas!AC6),Escalas!A6,IF(AND(J6>Escalas!AB7,J6<=Escalas!AC7),Escalas!A7,IF(AND(J6>Escalas!AB8,J6<=Escalas!AC8),Escalas!A8,IF(AND(J6>Escalas!AB9,J6<=Escalas!AC9),Escalas!A9,\"-\"))))),IF('Quarto-de-Banho'!K6=\"C/ Interrupção de Descarga\",IF(J6<=Escalas!AA6,Escalas!A6,IF(AND(J6>Escalas!Z7,J6<=Escalas!AA7),Escalas!A7,IF(AND(J6>Escalas!Z8,J6<=Escalas!AA8),Escalas!A8,IF(AND(J6>Escalas!Z9,J6<=Escalas!AA9),Escalas!A9,IF(AND(J6>Escalas!Z10,J6<=Escalas!AA10),Escalas!A10,\"-\"))))),IF('Quarto-de-Banho'!K6=\"Descarga Completa\",IF(J6<=Escalas!Y7,Escalas!A7,IF(AND(J6>Escalas!Z7,J6<=Escalas!AA7),Escalas!A8,IF(AND(J6>Escalas!X9,J6<=Escalas!Y9),Escalas!A9,IF(AND(J6>Escalas!X10,J6<=Escalas!Y10),Escalas!A10,IF(AND(J6>Escalas!X11,J6<=Escalas!Y11),Escalas!A11,\"-\")))))))))","v":"-"},{"$f":"Apoio!E2","v":4.5},{"$f":"IF('Quarto-de-Banho'!K6=\"Dupla Descarga\",IF(L6<=Escalas!AC5,Escalas!A6,IF(AND(L6>Escalas!AB6,L6<=Escalas!AC6),Escalas!A6,IF(AND(L6>Escalas!AB7,L6<=Escalas!AC7),Escalas!A7,IF(AND(L6>Escalas!AB8,L6<=Escalas!AC8),Escalas!A8,IF(AND(L6>Escalas!AB9,L6<=Escalas!AC9),Escalas!A9,\"-\"))))),IF('Quarto-de-Banho'!K6=\"C/ Interrupção de Descarga\",IF(L6<=Escalas!AA6,Escalas!A6,IF(AND(L6>Escalas!Z7,L6<=Escalas!AA7),Escalas!A7,IF(AND(L6>Escalas!Z8,L6<=Escalas!AA8),Escalas!A8,IF(AND(L6>Escalas!Z9,L6<=Escalas!AA9),Escalas!A9,IF(AND(L6>Escalas!Z10,L6<=Escalas!AA10),Escalas!A10,\"-\"))))),IF('Quarto-de-Banho'!K6=\"Descarga Completa\",IF(L6<=Escalas!Y7,Escalas!A7,IF(AND(L6>Escalas!Z7,L6<=Escalas!AA7),Escalas!A8,IF(AND(L6>Escalas!X9,L6<=Escalas!Y9),Escalas!A9,IF(AND(L6>Escalas!X10,L6<=Escalas!Y10),Escalas!A10,IF(AND(L6>Escalas!X11,L6<=Escalas!Y11),Escalas!A11,\"-\"))))))))","v":"A"},"Litros por descarga",{"$f":"IF('Quarto-de-Banho'!K9=\"\",\"\",\"Selecione o valor de descarga pretendido.\")","v":""},null,1,{"$f":"VLOOKUP(Q6,B41:T58,2,FALSE)","v":0},{"$f":"IF(T75=0,\"–\",T75)","v":"–"},{"$f":"IF(J6=0,0,1-(R6/J6))","v":0},null,{"$f":"D6-(D6*T6)","v":0},{"$f":"V6/1000","v":0},{"$f":"IF(V6=0,0,W6/$W$24)","v":0},{"$f":"SUM(X6:X7)","v":0},{"$f":"SUM(X6:X12)","v":0},null,{"$f":"IF(AND(W6=0,W7=0,W8=0,W9=0,W10=0,W11=0,W12=0),0,(1-(SUM(W6:W12)/SUM(E6:E12))))","v":0}]
[null,null,{"$f":"'Quarto-de-Banho'!H12","v":"Fluxómetro / Mictório"},{"$f":"'Quarto-de-Banho'!N12","v":0},0,{"$f":"IF(D7=0,0,E7/$E$24)","v":0},null,null,null,{"$f":"'Quarto-de-Banho'!K15","v":0},{"$f":"IF(J7=0,\"-\",IF(J7<=Escalas!AE5,Escalas!A5,IF(AND(J7>Escalas!AD6,J7<=Escalas!AE6),Escalas!A6,IF(AND(J7>Escalas!AD7,J7<=Escalas!AE7),Escalas!A7,IF(AND(J7>Escalas!AD8,J7<=Escalas!AE8),Escalas!A8,IF(AND(J7>Escalas!AD9,J7<=Escalas!AE9),Escalas!A9,IF(AND(J7>Escalas!AD10,J7<=Escalas!AE10),Escalas!A10,\"E\")))))))","v":"-"},{"$f":"Apoio!E3","v":2},{"$f":"IF(L7<>0,IF(L7<=Escalas!AE5,Escalas!A5,IF(AND(L7>Escalas!AD6,L7<=Escalas!AE6),Escalas!A6,IF(AND(L7>Escalas!AD7,L7<=Escalas!AE7),Escalas!A7,IF(AND(L7>Escalas!AD8,L7<=Escalas!AE8),Escalas!A8,IF(AND(L7>Escalas!AD9,L7<=Escalas!AE9),Escalas!A9,IF(AND(L7>Escalas!AD10,L7<=Escalas!AE10),Escalas!A10,\"E\")))))))","v":"A+"},null,{"$f":"IF('Quarto-de-Banho'!K12=\"Sim\",\"Selecione o valor de descarga pretendido.\",\"\")","v":""},null,1,{"$f":"VLOOKUP(Q7,B41:T58,3,FALSE)","v":0},{"$f":"IF(T115=0,\"–\",T115)","v":"–"},{"$f":"IF(J7=0,0,(1-(R7/J7)))","v":0},null,{"$f":"D7-(D7*T7)","v":0},0,{"$f":"IF(V7=0,0,W7/$W$24)","v":0}]
[null,null,{"$f":"'Quarto-de-Banho'!H16","v":"Chuveiro / Duche"},{"$f":"'Quarto-de-Banho'!N16","v":0},0,{"$f":"IF(D8=0,0,E8/$E$24)","v":0},{"$f":"SUM(F8:F10)","v":0},null,null,{"$f":"'Quarto-de-Banho'!K18","v":0},{"$f":"IF(J8=0,\"-\",IF(J8<=Escalas!G6,Escalas!A6,IF(AND(J8>Escalas!F7,J8<=Escalas!G7),Escalas!A7,IF(AND(J8>Escalas!F8,J8<=Escalas!G8),Escalas!A8,IF(AND(J8>Escalas!F9,J8<=Escalas!G9),Escalas!A9,IF(AND(J8>Escalas!F10,J8<=Escalas!G10),Escalas!A10,IF(AND(J8>Escalas!F11,J8<=Escalas!G11),Escalas!A11,\"E\")))))))","v":"-"},{"$f":"Apoio!E4","v":7.2},{"$f":"IF(L8<>0,IF(L8<=Escalas!G6,Escalas!A6,IF(AND(L8>Escalas!F7,L8<=Escalas!G7),Escalas!A7,IF(AND(L8>Escalas!F8,L8<=Escalas!G8),Escalas!A8,IF(AND(L8>Escalas!F9,L8<=Escalas!G9),Escalas!A9,IF(AND(L8>Escalas!F10,L8<=Escalas!G10),Escalas!A10,IF(AND(L8>Escalas!F11,L8<=Escalas!G11),Escalas!A11,\"E\")))))))","v":"A"},"Litros por minuto",{"$f":"IF('Quarto-de-Banho'!K18=\"\",\"\",\"Selecione o caudal pretendido.\")","v":""},null,1,{"$f":"VLOOKUP(Q8,B41:T61,4,0)","v":0},{"$f":"IF(T83=0,\"–\",T83)","v":"–"},{"$f":"IF(J8=0,0,(1-(R8/J8)))","v":0},null,{"$f":"IF(AND(T8=0,T9=0),D8,IF(AND(T8=0,T9<0),D8+D8*ABS(T9),IF(AND(T8=0,T9>0),D8-(D8*ABS(T9)),IF(AND(T9=0,T8<0),D8+(D8*ABS(T8)),IF(AND(T9=0,T8>0),D8-(D8*ABS(T8)),IF(AND(T8>0,T9>0),((R8*R9)/(J8*J9))*D8,IF(AND(T8<0,T9<0),((R8*R9)/(J8*J9))*D8,IF(AND(T8<0,T9>0),((R8*R9)/(J8*J9))*D8,IF(AND(T8>0,T9<0),((R8*R9)/(J8*J9))*D8,\"XPTO\")))))))))","v":0},0,{"$f":"IF(V8=0,0,W8/$W$24)","v":0},{"$f":"SUM(X8:X10)","v":0}]
[null,null,null,null,null,null,null,null,null,{"$f":"'Quarto-de-Banho'!K17","v":0},"-",{"$f":"Apoio!H15","v":7},"-","Minutos por duche",{"$f":"IF('Quarto-de-Banho'!K17=\"\",\"\",\"Selecione a duração.\")","v":""},null,1,{"$f":"VLOOKUP(Q9,B41:W61,22,FALSE)","v":0},"–",{"$f":"IF(J9=0,0,(1-(R9/J9)))","v":0}]
[null,null,{"$f":"'Quarto-de-Banho'!H24","v":"Banho de Imersão"},{"$f":"'Quarto-de-Banho'!N24","v":0},0,{"$f":"IF(D10=0,0,E10/$E$24)","v":0},null,null,null,{"$f":"IF('Quarto-de-Banho'!K24=\"Não\",0,'Quarto-de-Banho'!K27)","v":0},"-",{"$f":"Apoio!H16","v":0},"-","Litros por banho",{"$f":"IF('Quarto-de-Banho'!K24=\"Sim\",\"Selecione `Sim` se pretende mudar de banho de imersão para duche.\",\"\")","v":""},null,1,{"$f":"VLOOKUP(Q10,B41:V42,21,FALSE)","v":"Não"},"–",{"$f":"IF(Q10=1,0,(('Quarto-de-Banho'!K26*'Real vs Simulado'!J10)/('Quarto-de-Banho'!K26*'Quarto-de-Banho'!K17*'Quarto-de-Banho'!K18)))","v":0},null,{"$f":"IF(Q10=1,'Real vs Simulado'!D10,D10/T10)","v":0},{"$f":"V10/1000","v":0},{"$f":"IF(V10=0,0,W10/$W$24)","v":0}]
[null,null,{"$f":"'Quarto-de-Banho'!H32","v":"Lavatório"},{"$f":"'Quarto-de-Banho'!N46+'Quarto-de-Banho'!N33+'Quarto-de-Banho'!N40+'Quarto-de-Banho'!N55","v":0},0,0,{"$f":"SUM(F11:F12)","v":0},null,null,{"$f":"'Quarto-de-Banho'!K32","v":0},{"$f":"IF(J11=0,\"-\",IF(J11<=Escalas!S6,Escalas!A6,IF(AND(J11>Escalas!R7,J11<=Escalas!S7),Escalas!A7,IF(AND(J11>Escalas!R8,J11<=Escalas!S8),Escalas!A8,IF(AND(J11>Escalas!R9,J11<=Escalas!S9),Escalas!A9,IF(AND(J11>Escalas!R10,J11<=Escalas!S10),Escalas!A10,IF(AND(J11>Escalas!R11,J11<=Escalas!S11),Escalas!A11,\"E\")))))))","v":"-"},{"$f":"Apoio!E8","v":2},{"$f":"IF(L11<>0,IF(L11<=Escalas!S6,Escalas!A6,IF(AND(L11>Escalas!R7,L11<=Escalas!S7),Escalas!A7,IF(AND(L11>Escalas!R8,L11<=Escalas!S8),Escalas!A8,IF(AND(L11>Escalas!R9,L11<=Escalas!S9),Escalas!A9,IF(AND(L11>Escalas!R10,L11<=Escalas!S10),Escalas!A10,IF(AND(L11>Escalas!R11,L11<=Escalas!S11),Escalas!A11,\"E\")))))))","v":"A+"},"Litros por minuto",{"$f":"IF('Quarto-de-Banho'!K32=\"\",\"\",\"Selecione o caudal pretendido.\")","v":""},null,1,{"$f":"VLOOKUP(Q11,B41:T58,5,FALSE)","v":0},{"$f":"IF(T91=0,\"–\",T91)","v":"–"},{"$f":"IF(J11=0,0,(1-(R11/J11)))","v":0},null,{"$f":"D11-(D11*T11)","v":0},0,0,{"$f":"SUM(X11:X12)","v":0}]
[null,null,{"$f":"'Quarto-de-Banho'!H56","v":"Bidés"},{"$f":"'Quarto-de-Banho'!N56","v":0},{"$f":"D12/1000","v":0},{"$f":"IF(D12=0,0,E12/$E$24)","v":0},null,null,null,{"$f":"'Quarto-de-Banho'!K59","v":0},{"$f":"IF(J12=0,\"-\",IF(J12<=Escalas!S6,Escalas!A6,IF(AND(J12>Escalas!R7,J12<=Escalas!S7),Escalas!A7,IF(AND(J12>Escalas!R8,J12<=Escalas!S8),Escalas!A8,IF(AND(J12>Escalas!R9,J12<=Escalas!S9),Escalas!A9,IF(AND(J12>Escalas!R10,J12<=Escalas!S10),Escalas!A10,IF(AND(J12>Escalas!R11,J12<=Escalas!S11),Escalas!A11,\"E\")))))))","v":"-"},{"$f":"Apoio!E12","v":2},{"$f":"IF(L12<>0,IF(L12<=Escalas!S6,Escalas!A6,IF(AND(L12>Escalas!R7,L12<=Escalas!S7),Escalas!A7,IF(AND(L12>Escalas!R8,L12<=Escalas!S8),Escalas!A8,IF(AND(L12>Escalas!R9,L12<=Escalas!S9),Escalas!A9,IF(AND(L12>Escalas!R10,L12<=Escalas!S10),Escalas!A10,IF(AND(L12>Escalas!R11,L12<=Escalas!S11),Escalas!A11,\"E\")))))))","v":"A+"},null,{"$f":"IF('Quarto-de-Banho'!K56=\"Sim\",\"Selecione o caudal pretendido.\",\"\")","v":""},null,1,{"$f":"VLOOKUP(Q12,B41:T58,6,FALSE)","v":0},{"$f":"IF(T99=0,\"–\",T99)","v":"–"},{"$f":"IF(J12=0,0,(1-(R12/J12)))","v":0},null,0,0,0]
[null,{"$f":"Cozinha!G6","v":"Cozinha"},{"$f":"Cozinha!H6","v":"Lava-louça"},{"$f":"Cozinha!N7+Cozinha!N16","v":0},{"$f":"D13/1000","v":0},{"$f":"IF(D13=0,0,E13/$E$24)","v":0},0,{"$f":"SUM(F13:F14)","v":0},null,{"$f":"Cozinha!K6","v":0},{"$f":"IF(J13=0,\"-\",IF(J13<=Escalas!M6,Escalas!A6,IF(AND(J13>Escalas!L7,J13<=Escalas!M7),Escalas!A7,IF(AND(J13>Escalas!L8,J13<=Escalas!M8),Escalas!A8,IF(AND(J13>Escalas!L9,J13<=Escalas!M9),Escalas!A9,IF(AND(J13>Escalas!L10,J13<=Escalas!M10),Escalas!A10,IF(AND(J13<=Escalas!M10,J13>Escalas!L10),Escalas!A10,Escalas!A11)))))))","v":"-"},{"$f":"Apoio!E13","v":4},{"$f":"IF(L13<>0,IF(L13<=Escalas!M6,Escalas!A6,IF(AND(L13>Escalas!L7,L13<=Escalas!M7),Escalas!A7,IF(AND(L13>Escalas!L8,L13<=Escalas!M8),Escalas!A8,IF(AND(L13>Escalas!L9,L13<=Escalas!M9),Escalas!A9,IF(AND(L13>Escalas!L10,L13<=Escalas!M10),Escalas!A10,IF(AND(L13<=Escalas!M10,L13>Escalas!L10),Escalas!A10,Escalas!A11)))))))","v":"A+"},"Litros por minuto",{"$f":"IF(Cozinha!K6=\"\",\"\",\"Selecione o caudal pretendido.\")","v":""},null,1,{"$f":"VLOOKUP(Q13,B41:T58,7,FALSE)","v":0},{"$f":"IF(T107=0,\"–\",T107)","v":"–"},{"$f":"IF(J13=0,0,(1-(R13/J13)))","v":0},null,0,0,0,0,{"$f":"SUM(X13:X14)","v":0},null,{"$f":"IF(AND(W13=0,W14=0),0,(1-(SUM(W13:W14)/SUM(E13:E14))))","v":0}]
[null,null,{"$f":"Cozinha!H18","v":"Beber e Cozinhar"},{"$f":"Cozinha!N18","v":0},0,0,null,null,null,{"$f":"D14","v":0},"-",{"$f":"J14","v":0},"-","Litros","N/A",null,null,null,"N/A",null,null,0,0,0]
[null,{"$f":"Equipamento!G6","v":"Equipamento"},{"$f":"Equipamento!H6","v":"Máquina Lavar Roupa"},{"$f":"Equipamento!N6","v":0},0,0,{"$f":"SUM(F15)","v":0},{"$f":"SUM(F15:F16)","v":0},null,{"$f":"IF(Equipamento!K6=\"Não\",0,Equipamento!K10/Equipamento!K9)","v":0},{"$f":"IF(J15=0,\"-\",IF(J15<=Escalas!AN5,Escalas!A5,IF(AND(J15>Escalas!AM6,J15<=Escalas!AN6),Escalas!A6,IF(AND(J15>Escalas!AM7,J15<=Escalas!AN7),Escalas!A7,IF(AND(J15>Escalas!AM8,J15<=Escalas!AN8),Escalas!A8,IF(AND(J15>Escalas!AM9,J15<=Escalas!AN9),Escalas!A9,IF(AND(J15>Escalas!AM10,J15<=Escalas!AN10),Escalas!A10,\"E\")))))))","v":"-"},{"$f":"Apoio!E14","v":6},{"$f":"IF(L15<>0,IF(L15<=Escalas!AN5,Escalas!A5,IF(AND(L15>Escalas!AM6,L15<=Escalas!AN6),Escalas!A6,IF(AND(L15>Escalas!AM7,J15<=Escalas!AN7),Escalas!A7,IF(AND(L15>Escalas!AM8,L15<=Escalas!AN8),Escalas!A8,IF(AND(L15>Escalas!AM9,L15<=Escalas!AN9),Escalas!A9,IF(AND(L15>Escalas!AM10,L15<=Escalas!AN10),Escalas!A10,\"E\")))))))","v":"A+"},"Litros por kg",{"$f":"IF(Equipamento!K6=\"Sim\",\"Selecione o consumo por Kg de roupa\",\"\")","v":""},null,1,{"$f":"VLOOKUP(Q15,B41:T58,8,FALSE)","v":0},{"$f":"IF(T124=0,\"–\",T124)","v":"–"},{"$f":"IF(J15=0,0,(1-(R15/J15)))","v":0},null,0,0,{"$f":"IF(V15=0,0,W15/$W$24)","v":0},{"$f":"SUM(X15)","v":0},{"$f":"SUM(X15:X16)","v":0},null,{"$f":"IF(AND(W15=0,W16=0),0,(1-(SUM(W15:W16)/SUM(E15:E16))))","v":0}]
[null,null,{"$f":"Equipamento!H11","v":"Máquina Lavar Loiça"},{"$f":"Equipamento!N11","v":0},0,0,{"$f":"SUM(F16)","v":0},null,null,{"$f":"IF(Equipamento!K11=\"Não\",0,Equipamento!K14)","v":0},{"$f":"IF(J16=0,\"-\",IF(J16<=Escalas!AP5,Escalas!A5,IF(AND(J16>Escalas!AO6,J16<=Escalas!AP6),Escalas!A6,IF(AND(J16>Escalas!AO7,J16<=Escalas!AP7),Escalas!A7,IF(AND(J16>Escalas!AO8,J16<=Escalas!AP8),Escalas!A8,IF(AND(J16>Escalas!AO9,J16<=Escalas!AP9),Escalas!A9,IF(AND(J16>Escalas!AO10,J16<=Escalas!AP10),Escalas!AP11,\"E\")))))))","v":"-"},{"$f":"Apoio!E15","v":12},{"$f":"IF(L16<>0,IF(L16<=Escalas!AP5,Escalas!A5,IF(AND(L16>Escalas!AO6,L16<=Escalas!AP6),Escalas!A6,IF(AND(L16>Escalas!AO7,L16<=Escalas!AP7),Escalas!A7,IF(AND(L16>Escalas!AO8,L16<=Escalas!AP8),Escalas!A8,IF(AND(L16>Escalas!AO9,L16<=Escalas!AP9),Escalas!A9,IF(AND(L16>Escalas!AO10,L16<=Escalas!AP10),Escalas!AP11,\"E\")))))))","v":"A+"},"Litros por ciclo de lavagem",{"$f":"IF(Equipamento!K11=\"Sim\",\"Selecione o consumo por Ciclo de Lavagem.\",\"\")","v":""},null,1,{"$f":"VLOOKUP(Q16,B41:T58,9,FALSE)","v":0},{"$f":"IF(T132=0,\"–\",T132)","v":"–"},{"$f":"IF(J16=0,0,(1-(R16/J16)))","v":0},null,0,0,0,{"$f":"SUM(X16)","v":0}]
[null,{"$f":"Limpeza!G6","v":"Limpeza"},{"$f":"Limpeza!H6","v":"Casa"},{"$f":"Limpeza!N6","v":0},0,0,{"$f":"SUM(F17)","v":0},{"$f":"SUM(F17:F18)","v":0},null,{"$f":"G17","v":0},{"$f":"IF(J17<=Escalas!AL5,Escalas!A5,IF(AND(J17>Escalas!AK6,J17<=Escalas!AL6),Escalas!A6,IF(AND(J17>Escalas!AK7,J17<=Escalas!AL7),Escalas!A7,IF(AND(J17>Escalas!AK8,J17<=Escalas!AL8),Escalas!A8,IF(AND(J17>Escalas!AK9,J17<=Escalas!AL9),Escalas!A9,IF(AND(J17>Escalas!AK10,J17<=Escalas!AL10),Escalas!AL11,\"E\"))))))","v":"A++"},{"$f":"Apoio!E25","v":0.02},{"$f":"IF(L17<>0,IF(L17<=Escalas!AL5,Escalas!A5,IF(AND(L17>Escalas!AK6,L17<=Escalas!AL6),Escalas!A6,IF(AND(L17>Escalas!AK7,L17<=Escalas!AL7),Escalas!A7,IF(AND(L17>Escalas!AK8,L17<=Escalas!AL8),Escalas!A8,IF(AND(L17>Escalas!AK9,L17<=Escalas!AL9),Escalas!A9,IF(AND(L17>Escalas!AK10,L17<=Escalas!AL10),Escalas!AL11,\"E\")))))))","v":"A+"},"Litros","N/A",null,null,null,"N/A",null,null,{"$f":"D17-(D17*T17)","v":0},{"$f":"V17/1000","v":0},0,{"$f":"SUM(X17)","v":0},{"$f":"SUM(X17:X18)","v":0},null,{"$f":"IF(AND(W17=0,W18=0),0,(1-(SUM(W17:W18)/SUM(E17:E18))))","v":0}]
[null,null,{"$f":"Limpeza!H7","v":"Carro"},{"$f":"Limpeza!N7","v":0},0,0,0,null,null,{"$f":"D18","v":0},"-",{"$f":"IF(Limpeza!N7=\"Não\",0,Limpeza!K9*10+(Limpeza!K9*2*Limpeza!K14))","v":0},"-","Litros",{"$f":"IF(Limpeza!N7>0,\"Selecione se pretende mudar de método de limpeza.\",\"\")","v":""},null,1,{"$f":"VLOOKUP(Q18,B41:T58,11,FALSE)","v":"Usa um balde e esponja"},"N/A",{"$f":"IF(Limpeza!K7=\"Não\",0,IF(H69=\"Com mangueira e água sempre a correr\",HLOOKUP(J69,D66:F69,2,FALSE),IF(H69=\"Com mangueira e água a correr metade do tempo médio de lavagem\",HLOOKUP(J69,D66:F69,3,FALSE),IF(H69=\"Usa um balde e esponja\",HLOOKUP(J69,D66:F69,4,FALSE)))))","v":0},null,{"$f":"D18-(D18*T18)","v":0},{"$f":"V18/1000","v":0},0,0]
[null,{"$f":"'Espaços Verdes'!G6","v":"Jardins / Espaços Verdes"},"Rega",{"$f":"'Espaços Verdes'!N6","v":0},{"$f":"D19/1000","v":0},0,{"$f":"SUM(F19)","v":0},{"$f":"SUM(F19)","v":0},null,{"$f":"IF(E19=0,0,(D19/(Apoio!H3*'Espaços Verdes'!K17)))","v":0},{"$f":"IF(J19=0,\"-\",IF(J19<=Escalas!AG5,Escalas!A5,IF(AND(J19>Escalas!AF6,J19<=Escalas!AG6),Escalas!A6,IF(AND(J19>Escalas!AF7,J19<=Escalas!AG7),Escalas!A7,IF(AND(J19>Escalas!AF8,J19<=Escalas!AG8),Escalas!A8,IF(AND(J19>Escalas!AF9,J19<=Escalas!AG9),Escalas!A9,IF(AND(J19>Escalas!AF10,J19<=Escalas!AG10),Escalas!A10,\"E\")))))))","v":"-"},1,{"$f":"IF(L19<>0,IF(L19<=Escalas!AG5,Escalas!A5,IF(AND(L19>Escalas!AF6,L19<=Escalas!AG6),Escalas!A6,IF(AND(L19>Escalas!AF7,L19<=Escalas!AG7),Escalas!A7,IF(AND(L19>Escalas!AF8,L19<=Escalas!AG8),Escalas!A8,IF(AND(L19>Escalas!AF9,L19<=Escalas!AG9),Escalas!A9,IF(AND(L19>Escalas!AF10,L19<=Escalas!AG10),Escalas!A10,\"E\")))))))","v":"A"},"Litros por m2",{"$f":"IF('Espaços Verdes'!K6=\"Sim\",\"Selecione o consumo por m2.\",\"\")","v":""},2,1,{"$f":"VLOOKUP(Q19,B41:N57,13,FALSE)","v":0},{"$f":"IF(T141=0,\"–\",T141)","v":"–"},{"$f":"IF(Q19=1,0,(1-(R19/J19)))","v":0},null,{"$f":"D19-(D19*T19)","v":0},0,0,{"$f":"SUM(X19)","v":0},{"$f":"SUM(X19)","v":0},null,{"$f":"IF(W19=0,0,(1-(W19/E19)))","v":0}]
[null,{"$f":"Piscina!G6","v":"Piscina"},{"$f":"Piscina!H6","v":"Tanque"},{"$f":"Piscina!O6","v":0},0,0,{"$f":"SUM(F20)","v":0},{"$f":"SUM(F20)","v":0},null,{"$f":"D20","v":0},"-",{"$f":"IF(Piscina!K6=\"Não\",0,IF(Piscina!K10=\"Aquecida Interior\",((((Piscina!K14*Piscina!K15*Piscina!K16*Piscina!K17)/12*1000))+(Piscina!K14*Piscina!K15*Apoio!H14*Apoio!H3)),(((Piscina!K14*Piscina!K15*Piscina!K16*Piscina!K17)/12*1000))+(Piscina!K14*Piscina!K15*Apoio!H12*Apoio!H3)))","v":0},"-","Litros",{"$f":"IF(AND(Piscina!K6=\"Não\",Piscina!K12=\"Não\"),\"\",\"Selecione SIM se pretende saber qual seria o consumo com Cobertura Isotérmico.\")","v":""},null,1,{"$f":"VLOOKUP(Q20,B41:T58,14,FALSE)","v":"Não"},"N/A",{"$f":"IF(Q20=1,0,IF(J20>0,1-(L20/J20),0))","v":0},null,{"$f":"D20-(D20*T20)","v":0},0,0,{"$f":"SUM(X20)","v":0},{"$f":"SUM(X20)","v":0},null,{"$f":"IF(W20=0,0,(1-(W20/E20)))","v":0}]
[null,{"$f":"Outros!G6","v":"Outros"},{"$f":"Outros!H6","v":"Lago"},{"$f":"Outros!N6","v":0},0,0,0,{"$f":"SUM(F21:F22)","v":0},null,{"$f":"D21","v":0},"-",0,"-","Litros",{"$f":"IF(AND(Outros!K6=\"Não\",Outros!K10=\"Não\"),\"\",\"Selecione se pretende aproveitar água da chuva.\")","v":""},null,1,{"$f":"VLOOKUP(Q21,B41:T58,15,FALSE)","v":"Não"},"N/A",{"$f":"IF(J21=0,\"0,0%\",IF(R21=\"Não\",0,(1-(L21/J21))))","v":"0,0%"},null,0,0,0,0,{"$f":"SUM(X21:X22)","v":0},null,{"$f":"IF(AND(W21=0,W22=0),0,(1-(SUM(W21:W22)/SUM(E21:E22))))","v":0}]
[null,null,{"$f":"Outros!H13","v":"Sistemas de Aquecimento / Arrefecimento (AVAC)"},{"$f":"Outros!N13","v":0},0,0,0,null,null,{"$f":"Outros!N13","v":0},"-",0,"-","Litros",{"$f":"IF(AND(Outros!K13=\"Não\",Outros!K16=\"Não\"),\"\",\"Selecione se pretende aproveitar água da chuva ou reutilizar águas cinzentas.\")","v":""},null,1,{"$f":"VLOOKUP(Q22,B41:T58,16,FALSE)","v":"Não"},"N/A",{"$f":"IF(R22=\"Não\",0,(1-(L22/J22)))","v":0},null,0,0,0,0]
[null,{"$f":"Fugas!G6","v":"Fugas"},{"$f":"Fugas!H6","v":"Fugas"},{"$f":"Fugas!N6","v":0},0,0,0,{"$f":"SUM(F23)","v":0},null,{"$f":"Fugas!N6","v":0},"-",0,"-","Litros",{"$f":"IF(Fugas!K6=\"Sim\",\"Selecione se pretende arranjar.\",\"\")","v":""},null,1,{"$f":"VLOOKUP(Q23,B41:T58,17,FALSE)","v":"Não"},"N/A",{"$f":"IF(R23=\"Não\",0,(1-(L23/J23)))","v":0},null,0,0,0,0,{"$f":"SUM(X23)","v":0},null,{"$f":"IF(W23=0,0,(1-(W23/E23)))","v":0}]
[null,"Consumo Total",null,{"$f":"SUM(D6:D23)","v":0},{"$f":"SUM(E6:E23)","v":0},0,{"$f":"SUM(G6:G23)","v":0},{"$f":"SUM(H6:H23)","v":0},null,null,null,null,null,null,null,null,null,null,null,null,null,{"$f":"SUM(V6:V23)","v":0},{"$f":"SUM(W6:W23)","v":0},{"$f":"SUM(X6:X23)","v":0},{"$f":"SUM(Y6:Y23)","v":0},{"$f":"SUM(Z6:Z23)","v":0},null,{"$f":"IF(SUM(AB6:AB23)=0,0,(1-(W24/E24)))","v":0}]
[]
[]
[]
[]
[]
[]
[]
[]
[]
[]
[]
[]
[]
[]
[]
[null,null,{"$f":"C6","v":"Autoclismo"},{"$f":"C7","v":"Fluxómetro / Mictório"},{"$f":"C8","v":"Chuveiro / Duche"},{"$f":"C11","v":"Lavatório"},{"$f":"C12","v":"Bidés"},{"$f":"C13","v":"Lava-louça"},{"$f":"C15","v":"Máquina Lavar Roupa"},{"$f":"C16","v":"Máquina Lavar Loiça"},null,{"$f":"C18","v":"Carro"},null,{"$f":"C19","v":"Rega"},{"$f":"C20","v":"Tanque"},{"$f":"C21","v":"Lago"},{"$f":"C22","v":"Sistemas de Aquecimento / Arrefecimento (AVAC)"},{"$f":"C23","v":"Fugas"},null,null,null,{"$f":"C10","v":"Banho de Imersão"},{"$f":"E40","v":"Chuveiro / Duche"},null,{"$f":"100*50%*50%","v":25}]
[null,1,{"$f":"'Quarto-de-Banho'!K9","v":0},{"$f":"'Quarto-de-Banho'!K15","v":0},{"$f":"'Quarto-de-Banho'!K18","v":0},{"$f":"'Quarto-de-Banho'!K32","v":0},{"$f":"'Quarto-de-Banho'!K59","v":0},{"$f":"Cozinha!K6","v":0},{"$f":"J15","v":0},{"$f":"Equipamento!K14","v":0},null,{"$f":"T64","v":"Usa um balde e esponja"},null,{"$f":"J19","v":0},{"$f":"IF(O20<>0,\"Não\",\"Sim\")","v":"Não"},{"$f":"IF(O21<>0,\"Não\",\"Sim\")","v":"Não"},{"$f":"IF(O22<>0,\"Não\",\"Sim\")","v":"Não"},{"$f":"IF(O23<>0,\"Não\",\"Sim\")","v":"Não"},null,null,null,"Não",{"$f":"'Quarto-de-Banho'!K17","v":0},null,{"$f":"100*50%+100*50%","v":100}]
[null,{"$f":"B41+1","v":2},{"$f":"4.5","v":4.5},{"$f":"0.5","v":0.5},{"$f":"4+1","v":5},{"$f":"1+1","v":2},{"$f":"1+1","v":2},{"$f":"3","v":3},{"$f":"5","v":5},4,null,{"$f":"IF(L41=\"Com mangueira e água sempre a correr\",\"Com mangueira e água a correr metade do tempo médio de lavagem\",IF(L41=\"Com mangueira e água a correr metade do tempo médio de lavagem\",\"Usa um balde e esponja\",IF(L41=\"Usa um balde e esponja\",\"Com mangueira e água sempre a correr\",\"Com mangueira e água a correr metade do tempo médio de lavagem\")))","v":"Com mangueira e água sempre a correr"},null,{"$f":"0.4","v":0.4},{"$f":"IF(O41=\"Sim\",\"Não\",\"Sim\")","v":"Sim"},{"$f":"IF(P41=\"Sim\",\"Não\",\"Sim\")","v":"Sim"},{"$f":"IF(Q41=\"Sim\",\"Não\",\"Sim\")","v":"Sim"},{"$f":"IF(R41=\"Sim\",\"Não\",\"Sim\")","v":"Sim"},null,null,null,"Sim",3]
[null,{"$f":"B42+1","v":3},{"$f":"C42+0.5","v":5},{"$f":"D42+0.5","v":1},{"$f":"E42+1","v":6},{"$f":"F42+0.5","v":2.5},{"$f":"G42+0.5","v":2.5},{"$f":"H42+1","v":4},{"$f":"I42+0.5","v":5.5},{"$f":"J42+1","v":5},null,{"$f":"IF(L42=\"Com mangueira e água sempre a correr\",\"Com mangueira e água a correr metade do tempo médio de lavagem\",IF(L42=\"Com mangueira e água a correr metade do tempo médio de lavagem\",\"Usa um balde e esponja\",IF(L42=\"Usa um balde e esponja\",\"Com mangueira e água sempre a correr\",\"Com mangueira e água a correr metade do tempo médio de lavagem\")))","v":"Com mangueira e água a correr metade do tempo médio de lavagem"},null,{"$f":"N42+0.4","v":0.8},null,null,null,null,null,null,null,null,4]
[null,{"$f":"B43+1","v":4},{"$f":"C43+0.5","v":5.5},1.5,7,{"$f":"F43+0.5","v":3},3,{"$f":"H43+1","v":5},{"$f":"I43+0.5","v":6},{"$f":"J43+1","v":6},null,null,null,1,null,null,null,null,null,null,null,null,5]
[null,5,6,2,{"$f":"E44+0.5-0.3","v":7.2},3.5,3.5,6,6.5,7,null,null,null,{"$f":"N43+0.4","v":1.2000000000000002},null,null,null,null,null,null,null,null,6]
[null,6,6.5,2.5,{"$f":"E45+0.5+0.3","v":8},{"$f":"F45+0.5","v":4},{"$f":"G45+0.5","v":4},{"$f":"H45+0.5","v":6.5},7,8,null,null,null,{"$f":"N45+0.4","v":1.6},null,null,null,null,null,null,null,null,7]
[null,7,7,3,8.5,{"$f":"F46+1","v":5},{"$f":"G46+1","v":5},{"$f":"H46+0.5","v":7},7.5,9,null,null,null,2,null,null,null,null,null,null,null,null,8]
[null,8,7.5,{"$f":"D47+0.5","v":3.5},9,{"$f":"F47+1","v":6},6,7.5,8,10,null,null,null,2.4,null,null,null,null,null,null,null,null,9]
[null,9,8,4,9.5,7,7,8,8.5,11,null,null,null,2.8,null,null,null,null,null,null,null,null,10]
[null,10,8.5,{"$f":"D49+1","v":5},10,8,8,8.5,9,12,null,null,null,3.1999999999999997,null,null,null,null,null,null,null,null,11]
[null,11,9,{"$f":"D50+1","v":6},{"$f":"E50+1","v":11},9,9,9,9.5,13,null,null,null,3.5999999999999996,null,null,null,null,null,null,null,null,12]
[null,12,null,7,12,10,10,{"$f":"H51+0.5","v":9.5},10,14,null,null,null,3.9999999999999996,null,null,null,null,null,null,null,null,13]
[null,13,null,8,13,11,11,10,{"$f":"I52+1","v":11},15,null,null,null,4.3999999999999995,null,null,null,null,null,null,null,null,14]
[null,14,null,9,14,{"$f":"F53+1","v":12},{"$f":"G53+1","v":12},{"$f":"H53+1","v":11},{"$f":"I53+1","v":12},16,null,null,null,4.8,null,null,null,null,null,null,null,null,15]
[null,15,null,10,{"$f":"E54+1","v":15},{"$f":"F54+1","v":13},{"$f":"G54+1","v":13},{"$f":"H54+1","v":12},13,17,null,null,null,5.2,null,null,null,null,null,null,null,null,16]
[null,16,null,null,{"$f":"E55+1","v":16},14,14,13,14,18,null,null,null,5.6000000000000005,null,null,null,null,null,null,null,null,17]
[null,17,null,null,17,{"$f":"F56+1","v":15},15,14,15,19,null,null,null,6.0000000000000009,null,null,null,null,null,null,null,null,18]
[null,18,null,null,18,null,null,15,16,20,null,null,null,null,null,null,null,null,null,null,null,null,19]
[null,19,null,null,19,null,null,null,null,null,null,null,null,null,null,null,null,null,null,null,null,null,20]
[null,20,null,null,20]
[null,21]
[null,null,"Sim","Sim","Sim","Sim","Sim","Sim","Sim","Sim",null,"Sim",null,"Sim","Sim","Sim","Sim","Sim"]
[null,null,"Não","Não","Não","Não","Não","Não","Não","Não",null,"Não",null,"Não","Não","Não","Não","Não"]
[null,null,null,null,null,null,null,null,null,2,null,null,null,null,null,null,null,null,null,{"$f":"IF(AND(ISTEXT(Limpeza!L10),Limpeza!K10>0),\"Com mangueira e água sempre a correr\",IF(AND(ISTEXT(Limpeza!L11),Limpeza!K11>0),\"Com mangueira e água a correr metade do tempo médio de lavagem\",\"Usa um balde e esponja\"))","v":"Usa um balde e esponja"}]
[null,null,null,"Passa a ser"]
[null,null,null,{"$f":"C67","v":"Com mangueira e água sempre a correr"},{"$f":"C68","v":"Com mangueira e água a correr metade do tempo médio de lavagem"},{"$f":"C69","v":"Usa um balde e esponja"}]
[null,"É","Com mangueira e água sempre a correr",{"$f":"(D72-D72)/D72","v":{"$error":"#DIV/0!"}},{"$f":"(D72-D73)/D72","v":{"$error":"#DIV/0!"}},{"$f":"(D72-D74)/D72","v":{"$error":"#DIV/0!"}}]
[null,null,"Com mangueira e água a correr metade do tempo médio de lavagem",{"$f":"(D73-D72)/D73","v":{"$error":"#DIV/0!"}},{"$f":"(D73-D73)/D73","v":{"$error":"#DIV/0!"}},{"$f":"(D73-D74)/D73","v":{"$error":"#DIV/0!"}},null,"como é",null,"como será",null,null,null,null,null,null,null,null,null,"litros",4.5,5,5.5,6,6.5,7,7.5,8,8.5,9,9.5]
[null,null,"Usa um balde e esponja",{"$f":"(D74-D72)/D74","v":{"$error":"#DIV/0!"}},{"$f":"(D74-D73)/D74","v":{"$error":"#DIV/0!"}},{"$f":"(D74-D74)/D74","v":{"$error":"#DIV/0!"}},null,{"$f":"L41","v":"Usa um balde e esponja"},null,{"$f":"R18","v":"Usa um balde e esponja"},null,null,null,null,null,null,null,null,"Autoclismos",1,2,{"$f":"U69+1","v":3},{"$f":"V69+1","v":4},{"$f":"W69+1","v":5},6,7,8,9,10,11,12]
[null,null,null,null,null,null,null,null,null,null,null,null,null,null,null,null,null,null,"Dupla Descarga",null,"A++","A+","A+","A","A","B","B","C","C","C","–"]
[null,null,null,null,null,null,null,null,null,null,null,null,null,null,null,null,null,null,"C/ Interrupção de Descarga",null,"A+","A","A","B","B","C","C","D","D","D","–"]
[null,null,"Mangueira",{"$f":"Limpeza!K9*Limpeza!K13*Limpeza!K14","v":0},null,null,null,null,null,null,null,null,null,null,null,null,null,null,"Descarga Completa",null,"A","B","B","C","C","D","D","E","E","E","–"]
[null,null,"Mangueira T/2",{"$f":"(Limpeza!K9*Limpeza!K13*Limpeza!K14)/2","v":0}]
[null,null,"Balde e Esponja",{"$f":"(10*Limpeza!K9)+(2*Limpeza!K14*Limpeza!K9)","v":0},null,null,null,null,null,null,null,null,null,null,null,null,null,null,{"$f":"'Quarto-de-Banho'!K6","v":"Descarga Completa"},{"$f":"Q6","v":1}]
[null,null,null,null,null,null,null,null,null,null,null,null,null,null,null,null,null,null,{"$f":"IF(S74=\"Dupla Descarga\",2,IF(S74=\"C/ Interrupção de Descarga\",3,4))","v":4},{"$f":"HLOOKUP(T74,S69:AE72,S75,0)","v":0}]
[]
[]
[null,null,null,null,null,null,null,null,null,null,null,null,null,null,null,null,null,null,null,"litros",{"$f":"4+1","v":5},{"$f":"U78+1","v":6},{"$f":"V78+1","v":7},{"$f":"W78+0.5-0.3","v":7.2},{"$f":"X78+0.5+0.3","v":8},{"$f":"Y78+0.5","v":8.5},{"$f":"Z78+0.5","v":9},{"$f":"AA78+0.5","v":9.5},{"$f":"AB78+0.5","v":10},{"$f":"AC78+1","v":11},12,13,14,15,16,17,18,19,20]
[null,null,null,null,null,null,null,null,null,null,null,null,null,null,null,null,null,null,"Duche",1,2,{"$f":"U79+1","v":3},{"$f":"V79+1","v":4},{"$f":"W79+1","v":5},6,7,8,9,10,11,12,13,14,15,16,17,18,19,20]
[null,null,null,null,null,null,null,null,null,null,null,null,null,null,null,null,null,null,"Chuveiro",null,"A+","A","A","A","B","B","B","C","C","C","C","C","C","C","D","D","D","D","D"]
[]
[null,null,null,null,null,null,null,null,null,null,null,null,null,null,null,null,null,null,null,{"$f":"Q8","v":1}]
[null,null,null,null,null,null,null,null,null,null,null,null,null,null,null,null,null,null,"Apresentar",{"$f":"HLOOKUP(T82,S79:AM80,2,0)","v":0}]
[]
[]
[null,null,null,null,null,null,null,null,null,null,null,null,null,null,null,null,null,null,null,"litros",{"$f":"1+1","v":2},{"$f":"U86+0.5","v":2.5},{"$f":"V86+0.5","v":3},{"$f":"W86+0.5","v":3.5},{"$f":"X86+0.5","v":4},{"$f":"Y86+1","v":5},6,7,8,9,10,11,12,13,14,15]
[null,null,null,null,null,null,null,null,null,null,null,null,null,null,null,null,null,null,"Torneiras",1,{"$f":"T87+1","v":2},{"$f":"U87+1","v":3},{"$f":"V87+1","v":4},{"$f":"W87+1","v":5},{"$f":"X87+1","v":6},7,8,9,10,11,12,13,14,15,16,17]
[null,null,null,null,null,null,null,null,null,null,null,null,null,null,null,null,null,null,"Lavatório",null,"A+","A","A","A","A","B","B","C","C","C","D","D","D","E","E","E"]
[]
[null,null,null,null,null,null,null,null,null,null,null,null,null,null,null,null,null,null,null,{"$f":"Q11","v":1}]
[null,null,null,null,null,null,null,null,null,null,null,null,null,null,null,null,null,null,"Apresentar",{"$f":"HLOOKUP(T90,S87:AJ88,2,0)","v":0}]
[]
[]
[null,null,null,null,null,null,null,null,null,null,null,null,null,null,null,null,null,null,null,"litros",{"$f":"1+1","v":2},{"$f":"U94+0.5","v":2.5},{"$f":"V94+0.5","v":3},{"$f":"W94+0.5","v":3.5},{"$f":"X94+0.5","v":4},{"$f":"Y94+1","v":5},6,7,8,9,10,11,12,13,14,15]
[null,null,null,null,null,null,null,null,null,null,null,null,null,null,null,null,null,null,"Torneiras",1,{"$f":"T95+1","v":2},{"$f":"U95+1","v":3},{"$f":"V95+1","v":4},{"$f":"W95+1","v":5},{"$f":"X95+1","v":6},7,8,9,10,11,12,13,14,15,16,17]
[null,null,null,null,null,null,null,null,null,null,null,null,null,null,null,null,null,null,"Bidé",null,"A+","A","A","A","A","B","B","C","C","C","D","D","D","E","E","E"]
[]
[null,null,null,null,null,null,null,null,null,null,null,null,null,null,null,null,null,null,null,{"$f":"Q12","v":1}]
[null,null,null,null,null,null,null,null,null,null,null,null,null,null,null,null,null,null,"Apresentar",{"$f":"HLOOKUP(T98,S95:AJ96,2,0)","v":0}]
[]
[]
[null,null,null,null,null,null,null,null,null,null,null,null,null,null,null,null,null,null,null,"litros",{"$f":"3","v":3},{"$f":"U102+1","v":4},5,6,{"$f":"X102+0.5","v":6.5},7,7.5,8,8.5,9,9.5,10,{"$f":"AF102+1","v":11},12,13,14,15]
[null,null,null,null,null,null,null,null,null,null,null,null,null,null,null,null,null,null,"Torneiras",1,{"$f":"T103+1","v":2},3,4,5,6,7,8,9,10,11,12,13,14,15,16,17,18]
[null,null,null,null,null,null,null,null,null,null,null,null,null,null,null,null,null,null,"Lava-Louça",null,"A+","A+","A+","A","B","B","B","B","B","B","C","C","C","C","D","D","D"]
[]
[null,null,null,null,null,null,null,null,null,null,null,null,null,null,null,null,null,null,null,{"$f":"Q13","v":1}]
[null,null,null,null,null,null,null,null,null,null,null,null,null,null,null,null,null,null,"Apresentar",{"$f":"HLOOKUP(T106,S103:AK104,2,0)","v":0}]
[]
[]
[null,null,null,null,null,null,null,null,null,null,null,null,null,null,null,null,null,null,null,"litros",{"$f":"0.5","v":0.5},{"$f":"U110+0.5","v":1},1.5,2,2.5,3,3.5,4,{"$f":"AB110+1","v":5},6,7,8,9,10,11,12,13]
[null,null,null,null,null,null,null,null,null,null,null,null,null,null,null,null,null,null,"Mictórios",1,{"$f":"T111+1","v":2},{"$f":"U111+1","v":3},4,5,6,7,8,9,10,11,12,13,14,15,16,17,18]
[null,null,null,null,null,null,null,null,null,null,null,null,null,null,null,null,null,null,null,null,"A++","A++","A+","A+","A","A","A","A","B","B","C","C","D","D","E","E","D"]
[]
[null,null,null,null,null,null,null,null,null,null,null,null,null,null,null,null,null,null,null,{"$f":"Q7","v":1}]
[null,null,null,null,null,null,null,null,null,null,null,null,null,null,null,null,null,null,"Apresentar",{"$f":"HLOOKUP(T114,S111:AK112,2,0)","v":0}]
[]
[]
[]
[null,null,null,null,null,null,null,null,null,null,null,null,null,null,null,null,null,null,null,"Kg de Roupa",{"$f":"5","v":5},{"$f":"U119+0.5","v":5.5},6,6.5,7,7.5,8,8.5,9,9.5,10,{"$f":"AE119+1","v":11},12,13,14,15,16]
[null,null,null,null,null,null,null,null,null,null,null,null,null,null,null,null,null,null,"Máq da Roupa",1,{"$f":"T120+1","v":2},{"$f":"U120+1","v":3},4,5,6,7,8,9,10,11,12,13,14,15,16,17,18]
[null,null,null,null,null,null,null,null,null,null,null,null,null,null,null,null,null,null,null,null,"A++","A+","A+","A+","A+","A","A","A","A","B","B","B","B","C","C","C","D"]
[]
[null,null,null,null,null,null,null,null,null,null,null,null,null,null,null,null,null,null,null,{"$f":"Q15","v":1}]
[null,null,null,null,null,null,null,null,null,null,null,null,null,null,null,null,null,null,null,{"$f":"HLOOKUP(T123,S120:AK121,2,0)","v":0}]
[]
[]
[null,null,null,null,null,null,null,null,null,null,null,null,null,null,null,null,null,null,null,"Kg de Louça",4,{"$f":"U127+1","v":5},6,7,8,9,10,11,12,13,14,15,16,17,18,19,20]
[null,null,null,null,null,null,null,null,null,null,null,null,null,null,null,null,null,null,"Máq da Louça",1,{"$f":"T128+1","v":2},3,4,5,6,7,8,9,10,11,12,13,14,15,16,17,18]
[null,null,null,null,null,null,null,null,null,null,null,null,null,null,null,null,null,null,null,null,"A++","A++","A++","A+","A+","A+","A+","A+","A+","A","A","A","A","B","B","B","B"]
[]
[null,null,null,null,null,null,null,null,null,null,null,null,null,null,null,null,null,null,null,{"$f":"Q16","v":1}]
[null,null,null,null,null,null,null,null,null,null,null,null,null,null,null,null,null,null,null,{"$f":"HLOOKUP(T131,S128:AK129,2,0)","v":0}]
[]
[]
[]
[null,null,null,null,null,null,null,null,null,null,null,null,null,null,null,null,null,null,null,"Litros/m2",{"$f":"0.4","v":0.4},{"$f":"U136+0.4","v":0.8},1.2000000000000002,1.6,2,2.4,2.8,3.1999999999999997,3.5999999999999996,3.9999999999999996,4.3999999999999995,4.8,5.2,5.6000000000000005,6.0000000000000009]
[null,null,null,null,null,null,null,null,null,null,null,null,null,null,null,null,null,null,"Rega",1,{"$f":"T137+1","v":2},{"$f":"U137+1","v":3},4,5,6,7,8,9,10,11,12,13,14,15,16]
[null,null,null,null,null,null,null,null,null,null,null,null,null,null,null,null,null,null,null,null,"A++","A+","A","B","C","D","E","–","–","–","–","–","–","–","–"]
[]
[null,null,null,null,null,null,null,null,null,null,null,null,null,null,null,null,null,null,null,{"$f":"Q19","v":1}]
[null,null,null,null,null,null,null,null,null,null,null,null,null,null,null,null,null,null,null,{"$f":"HLOOKUP(T140,S137:AI138,2,0)","v":0}]

{"sheet":"Resumo","index":15,"n_rows":69,"n_cols":25,"rows_kept":69,"cut":false,"hidden":false,"merged":[[0,1,0,24],[28,0,28,25],[0,25,27,25],[23,1,23,2],[23,9,23,11],[23,12,23,13],[23,14,23,15],[3,17,23,17],[3,23,23,23],[3,8,23,8],[16,1,17,1],[16,7,17,7],[16,12,16,13],[16,22,17,22],[16,24,17,24],[20,24,21,24],[12,22,13,22],[12,24,13,24],[13,12,13,13],[14,22,15,22],[14,24,15,24],[20,1,21,1],[20,7,21,7],[14,1,15,1],[14,7,15,7],[20,22,21,22],[10,6,11,6],[10,11,11,11],[10,21,11,21],[12,1,13,1],[12,6,13,6],[12,7,13,7],[12,21,13,21],[5,7,11,7],[5,11,6,11],[5,21,6,21],[7,2,8,2],[7,3,8,3],[7,4,8,4],[7,5,8,5],[7,6,9,6],[5,22,11,22],[5,24,11,24],[7,18,8,18],[7,19,8,19],[7,20,8,20],[7,21,9,21],[0,0,27,0],[1,1,1,24],[3,1,4,1],[3,2,4,2],[3,3,3,7],[3,9,4,9],[3,10,4,10],[3,11,4,11],[3,12,3,13],[3,14,4,14],[3,15,4,15],[3,16,4,16],[3,18,3,22],[3,24,4,24],[5,1,11,1],[5,6,6,6]]}
[]
[null,"SIMULAÇÃO CONSUMO DE ÁGUA EM SUA CASA PARA POSSÍVEIS ALTERAÇÕES DE DISPOSITIVOS "]
[]
[null,{"$f":"'Quarto-de-Banho'!G5","v":"Local / Atividade"},{"$f":"'Quarto-de-Banho'!H5","v":"Onde Gasta?"},"Consumo Atual",null,null,null,null,null," Consumo do Equipamento Actualmente"," Consumo do Equipamento de Referência","Unidades","Teste as possíveis alterações/hipoteses para aumentar a Eficiência Hídrica em sua casa ao mais baixo custo",null,"Auxiliar","Valor Seleccionado","Percentagem de Poupança (%)",null,"Consumo Simulado",null,null,null,null,null,"Redução por Local / Atividade (%)"]
[null,null,null,"Por Utilização (litros/mês)","Por Utilização (m3/mês)","Por Utilização (%)","Por Tipo de Utilização (%)","Por Local (%)",null,null,null,null,"Questão","Valor",null,null,null,null,"Por Utilização (litros/mês)","Por Utilização (m3/mês)","Por Utilização (%)","Por Tipo de Utilização (%)","Por Local (%)"]
[null,{"$f":"'Quarto-de-Banho'!G6","v":"Quarto de Banho / Balneário"},{"$f":"'Quarto-de-Banho'!H6","v":"Autoclismo"},{"$f":"'Real vs Simulado'!D6","v":0},{"$f":"'Real vs Simulado'!E6","v":0},{"$f":"'Real vs Simulado'!F6","v":0},{"$f":"'Real vs Simulado'!G6","v":0},{"$f":"'Real vs Simulado'!H6:H12","v":0},null,{"$f":"'Real vs Simulado'!J6","v":0},{"$f":"'Real vs Simulado'!L6","v":4.5},{"$f":"'Real vs Simulado'!N6:N7","v":"Litros por descarga"},{"$f":"'Real vs Simulado'!O6","v":""},null,2,{"$f":"'Real vs Simulado'!R6","v":0},{"$f":"'Real vs Simulado'!T6","v":0},null,{"$f":"'Real vs Simulado'!V6","v":0},{"$f":"'Real vs Simulado'!W6","v":0},{"$f":"'Real vs Simulado'!X6","v":0},{"$f":"'Real vs Simulado'!Y6:Y7","v":0},{"$f":"'Real vs Simulado'!Z6:Z12","v":0},null,{"$f":"'Real vs Simulado'!AB6:AB12","v":0}]
[null,null,{"$f":"'Quarto-de-Banho'!H12","v":"Fluxómetro / Mictório"},{"$f":"'Real vs Simulado'!D7","v":0},{"$f":"'Real vs Simulado'!E7","v":0},{"$f":"'Real vs Simulado'!F7","v":0},null,null,null,{"$f":"'Real vs Simulado'!J7","v":0},{"$f":"'Real vs Simulado'!L7","v":2},null,{"$f":"'Real vs Simulado'!O7","v":""},null,7,{"$f":"'Real vs Simulado'!R7","v":0},{"$f":"'Real vs Simulado'!T7","v":0},null,{"$f":"'Real vs Simulado'!V7","v":0},{"$f":"'Real vs Simulado'!W7","v":0},{"$f":"'Real vs Simulado'!X7","v":0}]
[null,null,{"$f":"'Quarto-de-Banho'!H16","v":"Chuveiro / Duche"},{"$f":"'Real vs Simulado'!D8","v":0},{"$f":"'Real vs Simulado'!E8","v":0},{"$f":"'Real vs Simulado'!F8","v":0},{"$f":"'Real vs Simulado'!G8:G10","v":0},null,null,{"$f":"'Real vs Simulado'!J8","v":0},{"$f":"'Real vs Simulado'!L8","v":7.2},{"$f":"'Real vs Simulado'!N8","v":"Litros por minuto"},{"$f":"'Real vs Simulado'!O8","v":""},null,2,{"$f":"'Real vs Simulado'!R8","v":0},{"$f":"'Real vs Simulado'!T8","v":0},null,{"$f":"'Real vs Simulado'!V8:V9","v":0},{"$f":"'Real vs Simulado'!W8:W9","v":0},{"$f":"'Real vs Simulado'!X8:X9","v":0},{"$f":"'Real vs Simulado'!Y8:Y10","v":0}]
[null,null,null,null,null,null,null,null,null,{"$f":"'Real vs Simulado'!J9","v":0},{"$f":"'Real vs Simulado'!L9","v":7},{"$f":"'Real vs Simulado'!N9","v":"Minutos por duche"},{"$f":"'Real vs Simulado'!O9","v":""},null,1,{"$f":"'Real vs Simulado'!R9","v":0},{"$f":"'Real vs Simulado'!T9","v":0}]
[null,null,{"$f":"'Quarto-de-Banho'!H24","v":"Banho de Imersão"},{"$f":"'Real vs Simulado'!D10","v":0},{"$f":"'Real vs Simulado'!E10","v":0},{"$f":"'Real vs Simulado'!F10","v":0},null,null,null,{"$f":"'Real vs Simulado'!J10","v":0},{"$f":"'Real vs Simulado'!L10","v":0},{"$f":"'Real vs Simulado'!N10","v":"Litros por banho"},{"$f":"'Real vs Simulado'!O10","v":""},null,2,{"$f":"'Real vs Simulado'!R10","v":"Não"},{"$f":"'Real vs Simulado'!T10","v":0},null,{"$f":"'Real vs Simulado'!V10","v":0},{"$f":"'Real vs Simulado'!W10","v":0},{"$f":"'Real vs Simulado'!X10","v":0}]
[null,null,{"$f":"'Quarto-de-Banho'!H32","v":"Lavatório"},{"$f":"'Real vs Simulado'!D11","v":0},{"$f":"'Real vs Simulado'!E11","v":0},{"$f":"'Real vs Simulado'!F11","v":0},{"$f":"'Real vs Simulado'!G11:G12","v":0},null,null,{"$f":"'Real vs Simulado'!J11","v":0},{"$f":"'Real vs Simulado'!L11","v":2},{"$f":"'Real vs Simulado'!N11:N12","v":"Litros por minuto"},{"$f":"'Real vs Simulado'!O11","v":""},null,8,{"$f":"'Real vs Simulado'!R11","v":0},{"$f":"'Real vs Simulado'!T11","v":0},null,{"$f":"'Real vs Simulado'!V11","v":0},{"$f":"'Real vs Simulado'!W11","v":0},{"$f":"'Real vs Simulado'!X11","v":0},{"$f":"'Real vs Simulado'!Y11:Y12","v":0}]
[null,null,{"$f":"'Quarto-de-Banho'!H56","v":"Bidés"},{"$f":"'Real vs Simulado'!D12","v":0},{"$f":"'Real vs Simulado'!E12","v":0},{"$f":"'Real vs Simulado'!F12","v":0},null,null,null,{"$f":"'Real vs Simulado'!J12","v":0},{"$f":"'Real vs Simulado'!L12","v":2},null,{"$f":"'Real vs Simulado'!O12","v":""},null,4,{"$f":"'Real vs Simulado'!R12","v":0},{"$f":"'Real vs Simulado'!T12","v":0},null,{"$f":"'Real vs Simulado'!V12","v":0},{"$f":"'Real vs Simulado'!W12","v":0},{"$f":"'Real vs Simulado'!X12","v":0}]
[null,{"$f":"Cozinha!G6","v":"Cozinha"},{"$f":"Cozinha!H6","v":"Lava-louça"},{"$f":"'Real vs Simulado'!D13","v":0},{"$f":"'Real vs Simulado'!E13","v":0},{"$f":"'Real vs Simulado'!F13","v":0},{"$f":"'Real vs Simulado'!G13:G14","v":0},{"$f":"'Real vs Simulado'!H13:H14","v":0},null,{"$f":"'Real vs Simulado'!J13","v":0},{"$f":"'Real vs Simulado'!L13","v":4},{"$f":"'Real vs Simulado'!N13","v":"Litros por minuto"},{"$f":"'Real vs Simulado'!O13","v":""},null,13,{"$f":"'Real vs Simulado'!R13","v":0},{"$f":"'Real vs Simulado'!T13","v":0},null,{"$f":"'Real vs Simulado'!V13","v":0},{"$f":"'Real vs Simulado'!W13","v":0},{"$f":"'Real vs Simulado'!X13","v":0},{"$f":"'Real vs Simulado'!Y13:Y14","v":0},{"$f":"'Real vs Simulado'!Z13:Z14","v":0},null,{"$f":"'Real vs Simulado'!AB13:AB14","v":0}]
[null,null,{"$f":"Cozinha!H18","v":"Beber e Cozinhar"},{"$f":"'Real vs Simulado'!D14","v":0},{"$f":"'Real vs Simulado'!E14","v":0},{"$f":"'Real vs Simulado'!F14","v":0},null,null,null,{"$f":"'Real vs Simulado'!J14","v":0},{"$f":"'Real vs Simulado'!L14","v":0},{"$f":"'Real vs Simulado'!N14","v":"Litros"},null,null,null,null,{"$f":"'Real vs Simulado'!T14","v":0},null,{"$f":"'Real vs Simulado'!V14","v":0},{"$f":"'Real vs Simulado'!W14","v":0},{"$f":"'Real vs Simulado'!X14","v":0}]
[null,{"$f":"Equipamento!G6","v":"Equipamento"},{"$f":"Equipamento!H6","v":"Máquina Lavar Roupa"},{"$f":"'Real vs Simulado'!D15","v":0},{"$f":"'Real vs Simulado'!E15","v":0},{"$f":"'Real vs Simulado'!F15","v":0},{"$f":"'Real vs Simulado'!G15","v":0},{"$f":"'Real vs Simulado'!H15:H16","v":0},null,{"$f":"'Real vs Simulado'!J15","v":0},{"$f":"'Real vs Simulado'!L15","v":6},{"$f":"'Real vs Simulado'!N15","v":"Litros por kg"},{"$f":"'Real vs Simulado'!O15","v":""},null,2,{"$f":"'Real vs Simulado'!R15","v":0},{"$f":"'Real vs Simulado'!T15","v":0},null,{"$f":"'Real vs Simulado'!V15","v":0},{"$f":"'Real vs Simulado'!W15","v":0},{"$f":"'Real vs Simulado'!X15","v":0},{"$f":"'Real vs Simulado'!Y15","v":0},{"$f":"'Real vs Simulado'!Z15:Z16","v":0},null,{"$f":"'Real vs Simulado'!AB15:AB16","v":0}]
[null,null,{"$f":"Equipamento!H11","v":"Máquina Lavar Loiça"},{"$f":"'Real vs Simulado'!D16","v":0},{"$f":"'Real vs Simulado'!E16","v":0},{"$f":"'Real vs Simulado'!F16","v":0},{"$f":"'Real vs Simulado'!G16","v":0},null,null,{"$f":"'Real vs Simulado'!J16","v":0},{"$f":"'Real vs Simulado'!L16","v":12},{"$f":"'Real vs Simulado'!N16","v":"Litros por ciclo de lavagem"},{"$f":"'Real vs Simulado'!O16","v":""},null,2,{"$f":"'Real vs Simulado'!R16","v":0},{"$f":"'Real vs Simulado'!T16","v":0},null,{"$f":"'Real vs Simulado'!V16","v":0},{"$f":"'Real vs Simulado'!W16","v":0},{"$f":"'Real vs Simulado'!X16","v":0},{"$f":"'Real vs Simulado'!Y16","v":0}]
[null,{"$f":"Limpeza!G6","v":"Limpeza"},{"$f":"Limpeza!H6","v":"Casa"},{"$f":"'Real vs Simulado'!D17","v":0},{"$f":"'Real vs Simulado'!E17","v":0},{"$f":"'Real vs Simulado'!F17","v":0},{"$f":"'Real vs Simulado'!G17","v":0},{"$f":"'Real vs Simulado'!H17:H18","v":0},null,{"$f":"'Real vs Simulado'!J17","v":0},{"$f":"'Real vs Simulado'!L17","v":0.02},{"$f":"'Real vs Simulado'!N17","v":"Litros"},null,null,null,null,{"$f":"'Real vs Simulado'!T17","v":0},null,{"$f":"'Real vs Simulado'!V17","v":0},{"$f":"'Real vs Simulado'!W17","v":0},{"$f":"'Real vs Simulado'!X17","v":0},{"$f":"'Real vs Simulado'!Y17","v":0},{"$f":"'Real vs Simulado'!Z17:Z18","v":0},null,{"$f":"'Real vs Simulado'!AB17:AB18","v":0}]
[null,null,{"$f":"Limpeza!H7","v":"Carro"},{"$f":"'Real vs Simulado'!D18","v":0},{"$f":"'Real vs Simulado'!E18","v":0},{"$f":"'Real vs Simulado'!F18","v":0},{"$f":"'Real vs Simulado'!G18","v":0},null,null,{"$f":"'Real vs Simulado'!J18","v":0},{"$f":"'Real vs Simulado'!L18","v":0},{"$f":"'Real vs Simulado'!N18","v":"Litros"},{"$f":"'Real vs Simulado'!O18","v":""},null,3,{"$f":"'Real vs Simulado'!R18","v":"Usa um balde e esponja"},{"$f":"'Real vs Simulado'!T18","v":0},null,{"$f":"'Real vs Simulado'!V18","v":0},{"$f":"'Real vs Simulado'!W18","v":0},{"$f":"'Real vs Simulado'!X18","v":0},{"$f":"'Real vs Simulado'!Y18","v":0}]
[null,{"$f":"'Espaços Verdes'!G6","v":"Jardins / Espaços Verdes"},"Rega",{"$f":"'Real vs Simulado'!D19","v":0},{"$f":"'Real vs Simulado'!$E$19","v":0},{"$f":"'Real vs Simulado'!F19","v":0},{"$f":"'Real vs Simulado'!G19","v":0},{"$f":"'Real vs Simulado'!H19","v":0},null,{"$f":"'Real vs Simulado'!J19","v":0},{"$f":"'Real vs Simulado'!L19","v":1},{"$f":"'Real vs Simulado'!N19","v":"Litros por m2"},{"$f":"'Real vs Simulado'!O19","v":""},null,4,{"$f":"'Real vs Simulado'!R19","v":0},{"$f":"'Real vs Simulado'!T19","v":0},null,{"$f":"'Real vs Simulado'!V19","v":0},{"$f":"'Real vs Simulado'!W19","v":0},{"$f":"'Real vs Simulado'!X19","v":0},{"$f":"'Real vs Simulado'!Y19","v":0},{"$f":"'Real vs Simulado'!Z19","v":0},null,{"$f":"'Real vs Simulado'!AB19","v":0}]
[null,{"$f":"Piscina!G6","v":"Piscina"},{"$f":"Piscina!H6","v":"Tanque"},{"$f":"'Real vs Simulado'!D20","v":0},{"$f":"'Real vs Simulado'!$E$20","v":0},{"$f":"'Real vs Simulado'!F20","v":0},{"$f":"'Real vs Simulado'!G20","v":0},{"$f":"'Real vs Simulado'!H20","v":0},null,{"$f":"'Real vs Simulado'!J20","v":0},{"$f":"'Real vs Simulado'!L20","v":0},{"$f":"'Real vs Simulado'!N20","v":"Litros"},{"$f":"'Real vs Simulado'!O20","v":""},null,2,{"$f":"'Real vs Simulado'!R20","v":"Não"},{"$f":"'Real vs Simulado'!T20","v":0},null,{"$f":"'Real vs Simulado'!V20","v":0},{"$f":"'Real vs Simulado'!W20","v":0},{"$f":"'Real vs Simulado'!X20","v":0},{"$f":"'Real vs Simulado'!Y20","v":0},{"$f":"'Real vs Simulado'!Z20","v":0},null,{"$f":"'Real vs Simulado'!AB20","v":0}]
[null,{"$f":"Outros!G6","v":"Outros"},{"$f":"Outros!H6","v":"Lago"},{"$f":"'Real vs Simulado'!D21","v":0},{"$f":"'Real vs Simulado'!$E$21","v":0},{"$f":"'Real vs Simulado'!F21","v":0},{"$f":"'Real vs Simulado'!G21","v":0},{"$f":"'Real vs Simulado'!H21:H22","v":0},null,{"$f":"'Real vs Simulado'!J21","v":0},{"$f":"'Real vs Simulado'!L21","v":0},{"$f":"'Real vs Simulado'!N21","v":"Litros"},{"$f":"'Real vs Simulado'!O21","v":""},null,2,{"$f":"'Real vs Simulado'!R21","v":"Não"},{"$f":"'Real vs Simulado'!T21","v":"0,0%"},null,{"$f":"'Real vs Simulado'!V21","v":0},{"$f":"'Real vs Simulado'!W21","v":0},{"$f":"'Real vs Simulado'!X21","v":0},{"$f":"'Real vs Simulado'!Y21","v":0},{"$f":"'Real vs Simulado'!Z21:Z22","v":0},null,{"$f":"'Real vs Simulado'!AB21:AB22","v":0}]
[null,null,{"$f":"Outros!H13","v":"Sistemas de Aquecimento / Arrefecimento (AVAC)"},{"$f":"'Real vs Simulado'!D22","v":0},{"$f":"'Real vs Simulado'!$E$22","v":0},{"$f":"'Real vs Simulado'!F22","v":0},{"$f":"'Real vs Simulado'!G22","v":0},null,null,{"$f":"'Real vs Simulado'!J22","v":0},{"$f":"'Real vs Simulado'!L22","v":0},{"$f":"'Real vs Simulado'!N22","v":"Litros"},{"$f":"'Real vs Simulado'!O22","v":""},null,2,{"$f":"'Real vs Simulado'!R22","v":"Não"},{"$f":"'Real vs Simulado'!T22","v":0},null,{"$f":"'Real vs Simulado'!V22","v":0},{"$f":"'Real vs Simulado'!W22","v":0},{"$f":"'Real vs Simulado'!X22","v":0},{"$f":"'Real vs Simulado'!Y22","v":0}]
[null,{"$f":"Fugas!G6","v":"Fugas"},{"$f":"Fugas!H6","v":"Fugas"},{"$f":"'Real vs Simulado'!D23","v":0},{"$f":"'Real vs Simulado'!$E$23","v":0},{"$f":"'Real vs Simulado'!F23","v":0},{"$f":"'Real vs Simulado'!G23","v":0},{"$f":"'Real vs Simulado'!H23","v":0},null,{"$f":"'Real vs Simulado'!J23","v":0},{"$f":"'Real vs Simulado'!L23","v":0},{"$f":"'Real vs Simulado'!N23","v":"Litros"},{"$f":"'Real vs Simulado'!O23","v":""},null,2,{"$f":"'Real vs Simulado'!R23","v":"Não"},{"$f":"'Real vs Simulado'!T23","v":0},null,{"$f":"'Real vs Simulado'!V23","v":0},{"$f":"'Real vs Simulado'!W23","v":0},{"$f":"'Real vs Simulado'!X23","v":0},{"$f":"'Real vs Simulado'!Y23","v":0},{"$f":"'Real vs Simulado'!Z23","v":0},null,{"$f":"'Real vs Simulado'!AB23","v":0}]
[null,"Consumo Total",null,{"$f":"'Real vs Simulado'!D24","v":0},{"$f":"'Real vs Simulado'!$E$24","v":0},{"$f":"'Real vs Simulado'!F24","v":0},{"$f":"'Real vs Simulado'!G24","v":0},{"$f":"'Real vs Simulado'!H24","v":0},null,null,null,null,null,null,null,null,null,null,{"$f":"'Real vs Simulado'!V24","v":0},{"$f":"'Real vs Simulado'!W24","v":0},{"$f":"'Real vs Simulado'!X24","v":0},{"$f":"'Real vs Simulado'!Y24","v":0},{"$f":"'Real vs Simulado'!Z24","v":0},null,{"$f":"'Real vs Simulado'!AB24","v":0}]
[]
[]
[]
[]
[]
[]
[]
[]
[]
[]
[]
[]
[]
[]
[]
[null,null,{"$f":"C6","v":"Autoclismo"},{"$f":"C7","v":"Fluxómetro / Mictório"},{"$f":"C8","v":"Chuveiro / Duche"},{"$f":"C11","v":"Lavatório"},{"$f":"C12","v":"Bidés"},{"$f":"C13","v":"Lava-louça"},{"$f":"C15","v":"Máquina Lavar Roupa"},{"$f":"C16","v":"Máquina Lavar Loiça"},{"$f":"C18","v":"Carro"},{"$f":"C19","v":"Rega"},{"$f":"C20","v":"Tanque"},{"$f":"C21","v":"Lago"},{"$f":"C22","v":"Sistemas de Aquecimento / Arrefecimento (AVAC)"},{"$f":"C23","v":"Fugas"},null,null,{"$f":"C10","v":"Banho de Imersão"},{"$f":"E40","v":"Chuveiro / Duche"},null,{"$f":"100*50%*50%","v":25}]
[null,1,{"$f":"'Quarto-de-Banho'!K9","v":0},{"$f":"'Quarto-de-Banho'!K15","v":0},{"$f":"'Quarto-de-Banho'!K18","v":0},{"$f":"'Quarto-de-Banho'!K32","v":0},{"$f":"'Quarto-de-Banho'!K59","v":0},{"$f":"Cozinha!K6","v":0},{"$f":"J15","v":0},{"$f":"Equipamento!K14","v":0},{"$f":"Q64","v":"Usa um balde e esponja"},{"$f":"J19","v":0},{"$f":"IF(M20<>0,\"Não\",\"Sim\")","v":"Não"},{"$f":"IF(M21<>0,\"Não\",\"Sim\")","v":"Não"},{"$f":"IF(M22<>0,\"Não\",\"Sim\")","v":"Não"},{"$f":"IF(M23<>0,\"Não\",\"Sim\")","v":"Não"},null,null,"Não",{"$f":"'Quarto-de-Banho'!K17","v":0},null,{"$f":"100*50%+100*50%","v":100}]
[null,{"$f":"B41+1","v":2},{"$f":"4.5","v":4.5},{"$f":"0.5","v":0.5},4,{"$f":"1","v":1},{"$f":"1","v":1},{"$f":"3","v":3},{"$f":"5","v":5},4,{"$f":"IF(K41=\"Com mangueira e água sempre a correr\",\"Com mangueira e água a correr metade do tempo médio de lavagem\",IF(K41=\"Com mangueira e água a correr metade do tempo médio de lavagem\",\"Usa um balde e esponja\",IF(K41=\"Usa um balde e esponja\",\"Com mangueira e água sempre a correr\",\"Com mangueira e água a correr metade do tempo médio de lavagem\")))","v":"Com mangueira e água sempre a correr"},{"$f":"0.4","v":0.4},{"$f":"IF(M41=\"Sim\",\"Não\",\"Sim\")","v":"Sim"},{"$f":"IF(N41=\"Sim\",\"Não\",\"Sim\")","v":"Sim"},{"$f":"IF(O41=\"Sim\",\"Não\",\"Sim\")","v":"Sim"},{"$f":"IF(P41=\"Sim\",\"Não\",\"Sim\")","v":"Sim"},null,null,"Sim",3]
[null,{"$f":"B42+1","v":3},{"$f":"C42+0.5","v":5},{"$f":"D42+0.5","v":1},{"$f":"E42+1","v":5},{"$f":"F42+1","v":2},{"$f":"G42+1","v":2},{"$f":"H42+1","v":4},{"$f":"I42+0.5","v":5.5},{"$f":"J42+1","v":5},{"$f":"IF(K42=\"Com mangueira e água sempre a correr\",\"Com mangueira e água a correr metade do tempo médio de lavagem\",IF(K42=\"Com mangueira e água a correr metade do tempo médio de lavagem\",\"Usa um balde e esponja\",IF(K42=\"Usa um balde e esponja\",\"Com mangueira e água sempre a correr\",\"Com mangueira e água a correr metade do tempo médio de lavagem\")))","v":"Com mangueira e água a correr metade do tempo médio de lavagem"},{"$f":"L42+0.4","v":0.8},null,null,null,null,null,null,null,4]
[null,{"$f":"B43+1","v":4},{"$f":"C43+0.5","v":5.5},1.5,{"$f":"E43+1","v":6},{"$f":"F43+0.5","v":2.5},{"$f":"G43+0.5","v":2.5},{"$f":"H43+1","v":5},{"$f":"I43+0.5","v":6},{"$f":"J43+1","v":6},null,{"$f":"L43+0.4","v":1.2000000000000002},null,null,null,null,null,null,null,5]
[null,5,6,2,7,{"$f":"F44+0.5","v":3},3,6,6.5,7,null,1.6,null,null,null,null,null,null,null,6]
[null,6,6.5,2.5,7.5,3.5,3.5,{"$f":"H45+0.5","v":6.5},7,8,null,2,null,null,null,null,null,null,null,7]
[null,7,7,3,8,{"$f":"F46+0.5","v":4},{"$f":"G46+0.5","v":4},{"$f":"H46+0.5","v":7},7.5,9,null,2.4,null,null,null,null,null,null,null,8]
[null,8,7.5,{"$f":"D47+0.5","v":3.5},8.5,{"$f":"F47+1","v":5},{"$f":"G47+1","v":5},7.5,8,10,null,2.8,null,null,null,null,null,null,null,9]
[null,9,8,4,9,{"$f":"F48+1","v":6},6,8,8.5,11,null,3.1999999999999997,null,null,null,null,null,null,null,10]
[null,10,8.5,{"$f":"D49+1","v":5},9.5,7,7,8.5,9,12,null,3.5999999999999996,null,null,null,null,null,null,null,11]
[null,11,9,{"$f":"D50+1","v":6},10,8,8,9,9.5,13,null,3.9999999999999996,null,null,null,null,null,null,null,12]
[null,12,null,7,{"$f":"E51+1","v":11},9,9,{"$f":"H51+0.5","v":9.5},10,14,null,4.3999999999999995,null,null,null,null,null,null,null,13]
[null,13,null,8,12,10,10,10,{"$f":"I52+1","v":11},15,null,4.8,null,null,null,null,null,null,null,14]
[null,14,null,9,13,11,11,{"$f":"H53+1","v":11},{"$f":"I53+1","v":12},16,null,5.2,null,null,null,null,null,null,null,15]
[null,15,null,10,14,{"$f":"F54+1","v":12},{"$f":"G54+1","v":12},{"$f":"H54+1","v":12},13,17,null,5.6000000000000005,null,null,null,null,null,null,null,16]
[null,16,null,null,{"$f":"E55+1","v":15},null,null,13,14,18,null,6.0000000000000009,null,null,null,null,null,null,null,17]
[null,17,null,null,16,null,null,14,15,19,null,null,null,null,null,null,null,null,null,18]
[null,18,null,null,17,null,null,15,16,20,null,null,null,null,null,null,null,null,null,19]
[null,19,null,null,null,null,null,null,null,null,null,null,null,null,null,null,null,null,null,20]
[null,20]
[null,21]
[null,null,"Sim","Sim","Sim","Sim","Sim","Sim","Sim","Sim","Sim","Sim","Sim","Sim","Sim","Sim"]
[null,null,"Não","Não","Não","Não","Não","Não","Não","Não","Não","Não","Não","Não","Não","Não"]
[null,null,null,null,null,null,null,null,null,2,null,null,null,null,null,null,{"$f":"IF(AND(ISTEXT(Limpeza!L10),Limpeza!K10>0),\"Com mangueira e água sempre a correr\",IF(AND(ISTEXT(Limpeza!L11),Limpeza!K11>0),\"Com mangueira e água a correr metade do tempo médio de lavagem\",\"Usa um balde e esponja\"))","v":"Usa um balde e esponja"}]
[]
[null,null,null,{"$f":"C67","v":"Com mangueira e água sempre a correr"},{"$f":"C68","v":"Com mangueira e água a correr metade do tempo médio de lavagem"},{"$f":"C69","v":"Usa um balde e esponja"}]
[null,null,"Com mangueira e água sempre a correr",0,0.5,{"$f":"-D69","v":{"$error":"#DIV/0!"}}]
[null,null,"Com mangueira e água a correr metade do tempo médio de lavagem",-0.5,0,{"$f":"-E69","v":{"$error":"#DIV/0!"}},null,"como é",null,"como será"]
[null,null,"Usa um balde e esponja",{"$f":"-(1-(Limpeza!K9*20+((Limpeza!K13*Limpeza!K14)/3))/(Limpeza!K9*Limpeza!K14*Limpeza!K13))","v":{"$error":"#DIV/0!"}},{"$f":"-(1-(Limpeza!K9*20+((Limpeza!K13*Limpeza!K14)/3))/((Limpeza!K9*Limpeza!K14*Limpeza!K13)/2))","v":{"$error":"#DIV/0!"}},0,null,{"$f":"K41","v":"Usa um balde e esponja"},null,{"$f":"P18","v":"Usa um balde e esponja"},null,{"$f":"IF(Limpeza!K7=\"Não\",\"\",IF(H69=\"Com mangueira e água sempre a correr\",HLOOKUP(J69,D66:F69,2,FALSE),IF(H69=\"Com mangueira e água a correr metade do tempo médio de lavagem\",HLOOKUP(J69,D66:F69,3,FALSE),IF(H69=\"Usa um balde e esponja\",HLOOKUP(J69,D66:F69,4,FALSE)))))","v":""}]

{"sheet":"PerRetorno","index":16,"n_rows":31,"n_cols":38,"rows_kept":31,"cut":false,"hidden":false,"merged":[[3,2,5,2],[3,3,5,3],[3,4,5,4],[3,13,5,13],[3,14,5,14],[14,13,15,13],[10,3,11,3],[14,3,15,3],[12,3,13,3],[14,4,15,4],[10,4,11,4],[12,4,13,4],[8,14,9,14],[6,13,7,13],[8,13,9,13],[10,13,11,13],[12,13,13,13],[3,15,5,15],[3,17,5,17],[10,17,11,17],[14,14,15,14],[8,15,9,15],[10,15,11,15],[12,15,13,15],[14,15,15,15],[12,17,13,17],[14,17,15,17],[10,14,11,14],[12,14,13,14],[6,17,7,17],[8,17,9,17],[6,14,7,14],[6,15,7,15],[0,0,19,0],[0,1,0,4],[0,5,20,5],[20,0,20,4],[2,1,2,4],[6,3,7,3],[8,3,9,3],[3,1,13,1],[14,1,15,1],[14,2,15,2],[6,2,7,2],[8,2,9,2],[10,2,11,2],[12,2,13,2],[6,4,7,4],[8,4,9,4]]}
[]
[null,"Local","Onde Gasta?","Selecione como pretende aumentar a Eficiência Hídrica (atendendo aos dispositivos atualmente instalados)","Verifique aqui a Poupança que poderá alcançar, o Investimento a aplicar e respetivo Período de Retorno",null,null,"Sabia que… podia Poupar???",null,null,null,"Valor a Pagar (Excel)","Valor a Pagar (Pesquisa Net)","Redução (%)","Custo Antes (€)","Custo Depois (€)","Período de Retorno (meses)","Equipamento Adquirido (Caudal ou Descarga)"]
[]
[null,{"$f":"'Quarto-de-Banho'!G6","v":"Quarto de Banho / Balneário"},{"$f":"'Quarto-de-Banho'!H6","v":"Autoclismo"},null,{"$f":"IF('Real vs Simulado'!O6=\"\",\"\",IF(D26=1,H4,IF(D26=2,H5,IF(D26=3,H6,\"\"))))","v":""},null,null,{"$f":"IF(OR(K4=\"\",N4=\"\"),\"\",CONCATENATE(T4,U4,V4,W4,X4,Y4,Z4,AB4,AC4,AD4,AE4,AF4,AG4,AH4,AI4,AJ4,AK4,AL4))","v":""},null,"Autoclismo de Dupla Descarga",{"$f":"IF('Quarto-de-Banho'!K9>4.5,PerRetorno!J4,\"\")","v":""},{"$f":"IF(K4<>\"\",'Dispositivos Preço ANQIP.Real'!X70,\"\")","v":""},60,{"$f":"IF('Real vs Simulado'!T6=0,\"\",'Real vs Simulado'!T6)","v":""},{"$f":"'Custos AdRA'!$F$21*('Real vs Simulado'!E6/'Real vs Simulado'!$E$24)","v":{"$error":"#VALUE!"}},{"$f":"'Custos AdRA (2)'!$G$20*('Real vs Simulado'!W6/'Real vs Simulado'!$W$24)","v":{"$error":"#VALUE!"}},{"$f":"IF(L4=\"\",\"\",L4/(O4-P4))","v":""},{"$f":"IF(N4=\"\",\"\",'Real vs Simulado'!R6)","v":""},null,{"$f":"IF(R4=\"\",\"\",\"Ao substituir o Autoclismo de Dupla Descarga por outro com um Volume por Descarga de \")","v":""},{"$f":"IF(T4<>0,R4,\"\")","v":""},{"$f":"IF(T4<>0,\" litros, \",\"\")","v":" litros, "},{"$f":"IF(T4<>0,\"fazendo um investimento de cerca de \",\"\")","v":"fazendo um investimento de cerca de "},{"$f":"IF(T4<>\"\",ROUND(L4,2),\"\")","v":""},{"$f":"IF(T4<>0,\" €, \",\"\")","v":" €, "},{"$f":"IF(T4<>0,\"terá uma redução no consumo de \",\"\")","v":"terá uma redução no consumo de "},{"$f":"IF(T4<>0,N4,\"\")","v":""},{"$f":"IF(T4<>0,ROUND(AA4*100,2),\"\")","v":{"$error":"#VALUE!"}},{"$f":"IF(T4<>0, \"% \",\"\")","v":"% "},{"$f":"IF(T4<>0,\"o que implicará uma redução na fatura de \",\"\")","v":"o que implicará uma redução na fatura de "},{"$f":"IF(T4<>0,ROUND(O4,2),\"\")","v":{"$error":"#VALUE!"}},{"$f":"IF(T4<>0,\" € \",\"\")","v":" € "},{"$f":"IF(T4<>0,\" para \",\"\")","v":" para "},{"$f":"IF(T4<>0,ROUND(P4,2),\"\")","v":{"$error":"#VALUE!"}},{"$f":"IF(T4<>0,\" € \",\"\")","v":" € "},{"$f":"IF(T4<>0,\" o que significa que em cerca de \",\"\")","v":" o que significa que em cerca de "},{"$f":"IF(T4<>0,ROUND(Q4,2),\"\")","v":{"$error":"#VALUE!"}},{"$f":"IF(T4<>0,\" meses terá abatido o investimento efetuado no equipamento!!!\",\"\")","v":" meses terá abatido o investimento efetuado no equipamento!!!"}]
[null,null,null,null,null,null,null,{"$f":"IF(OR(K5=\"\",N4=\"\"),\"\",CONCATENATE(T5,U5,V5,W5,X5,Y5,Z5,AB5,AC5,AD5,AE5,AF5,AG5,AH5,AI5,AJ5,AK5,AL5))","v":""},null,"Mecanismo de Dupla Descarga",{"$f":"IF('Quarto-de-Banho'!K9>4.5,PerRetorno!J5,\"\")","v":""},{"$f":"IF(K5<>\"\",'Dispositivos Preço ANQIP.Real'!V70,\"\")","v":""},20,null,null,null,{"$f":"IF(L4=\"\",\"\",L5/(O4-P4))","v":""},null,null,{"$f":"IF(R4=\"\",\"\",\"Ao colocar o Mecanismo de Dupla Descarga, no seu Autoclismo, com um Volume por Descarga de \")","v":""},{"$f":"IF(T5<>0,R4,\"\")","v":""},{"$f":"IF(T5<>0,\" litros, \",\"\")","v":" litros, "},{"$f":"IF(T5<>0,\"fazendo um investimento de cerca de \",\"\")","v":"fazendo um investimento de cerca de "},{"$f":"IF(T5<>\"\",ROUND(L5,2),\"\")","v":""},{"$f":"IF(T5<>0,\" €, \",\"\")","v":" €, "},{"$f":"IF(T5<>0,\"terá uma redução no consumo de \",\"\")","v":"terá uma redução no consumo de "},{"$f":"IF(T5<>0,N4,\"\")","v":""},{"$f":"IF(T5<>0,ROUND(AA5*100,2),\"\")","v":{"$error":"#VALUE!"}},{"$f":"IF(T5<>0, \"% \",\"\")","v":"% "},"o que implicará uma redução na fatura de ",{"$f":"IF(T5<>0,ROUND(O4,2),\"\")","v":{"$error":"#VALUE!"}},{"$f":"IF(T5<>0,\" € \",\"\")","v":" € "},{"$f":"IF(T5<>0,\" para \",\"\")","v":" para "},{"$f":"IF(T5<>0,ROUND(P4,2),\"\")","v":{"$error":"#VALUE!"}},{"$f":"IF(T5<>0,\" € \",\"\")","v":" € "},{"$f":"IF(T5<>0,\" o que significa que em cerca de \",\"\")","v":" o que significa que em cerca de "},{"$error":"#VALUE!"}," meses terá abatido o investimento efetuado no equipamento!!!"]
[null,null,null,null,null,null,null,{"$f":"IF(OR(K6=\"\",N4=\"\"),\"\",CONCATENATE(T6,U6,V6,W6,X6,Y6,Z6,AB6,AC6,AD6,AE6,AF6,AG6,AH6,AI6,AJ6,AK6,AL6))","v":""},null,"Regulação do Mecanismo de Descarga",{"$f":"IF('Quarto-de-Banho'!K9>4.5,PerRetorno!J6,\"\")","v":""},{"$f":"IF(K6<>\"\",20,\"\")","v":""},20,null,null,null,{"$f":"IF(L4=\"\",\"\",L6/(O4-P4))","v":""},null,null,{"$f":"IF(R4=\"\",\"\",\"Ao regular o Mecanismo de Dupla Descarga, no seu Autoclismo, para um Volume por Descarga de \")","v":""},{"$f":"IF(T6<>0,R4,\"\")","v":""},{"$f":"IF(T6<>0,\" litros, \",\"\")","v":" litros, "},{"$f":"IF(T6<>0,\"fazendo um investimento de cerca de \",\"\")","v":"fazendo um investimento de cerca de "},{"$f":"IF(T6<>\"\",ROUND(L6,2),\"\")","v":""},{"$f":"IF(T6<>0,\" €, \",\"\")","v":" €, "},{"$f":"IF(T6<>0,\"terá uma redução no consumo de \",\"\")","v":"terá uma redução no consumo de "},{"$f":"IF(T6<>0,N4,\"\")","v":""},{"$f":"IF(T6<>0,ROUND(AA6*100,2),\"\")","v":{"$error":"#VALUE!"}},{"$f":"IF(T6<>0, \"% \",\"\")","v":"% "},"o que implicará uma redução na fatura de ",{"$f":"IF(T6<>0,ROUND(O4,2),\"\")","v":{"$error":"#VALUE!"}},{"$f":"IF(T6<>0,\" € \",\"\")","v":" € "},{"$f":"IF(T6<>0,\" para \",\"\")","v":" para "},{"$f":"IF(T6<>0,ROUND(P4,2),\"\")","v":{"$error":"#VALUE!"}},{"$f":"IF(T6<>0,\" € \",\"\")","v":" € "},{"$f":"IF(T6<>0,\" o que significa que em cerca de \",\"\")","v":" o que significa que em cerca de "},{"$f":"IF(T6<>0,ROUND(Q6,2),\"\")","v":{"$error":"#VALUE!"}}," meses terá abatido o investimento efetuado no equipamento!!!"]
[null,null,{"$f":"'Quarto-de-Banho'!H12","v":"Fluxómetro / Mictório"},null,{"$f":"IF('Real vs Simulado'!O7=\"\",\"\",IF(D27=1,H7,IF(D27=2,H8,\"\")))","v":""},null,null,{"$f":"IF(OR(K7=\"\",N7=\"\"),\"\",CONCATENATE(T7,U7,V7,W7,X7,Y7,Z7,AB7,AC7,AD7,AE7,AF7,AG7,AH7,AI7,AJ7,AK7,AL7))","v":""},null,"Mictório Certificado pela ANQIP (A)",{"$f":"IF('Quarto-de-Banho'!K15>0.5,PerRetorno!J7,\"\")","v":""},{"$f":"IF(K7<>\"\",'Dispositivos Preço ANQIP.Real'!BH70,\"\")","v":""},50,{"$f":"IF('Real vs Simulado'!T7=0,\"\",'Real vs Simulado'!T7)","v":""},{"$f":"'Custos AdRA'!$F$21*('Real vs Simulado'!E7/'Real vs Simulado'!$E$24)","v":{"$error":"#VALUE!"}},{"$f":"'Custos AdRA (2)'!$G$20*('Real vs Simulado'!W7/'Real vs Simulado'!$W$24)","v":{"$error":"#VALUE!"}},{"$f":"IF(L7=\"\",\"\",L7/(O7-P7))","v":""},{"$f":"IF(N7=\"\",\"\",'Real vs Simulado'!R7)","v":""},null,{"$f":"IF(R7=\"\",\"\",\"Ao substituir o seu Mictório por um Certificado pela ANQIP com letra A com um Volume por Descarga de \")","v":""},{"$f":"IF(T7<>0,R7,\"\")","v":""}," litros, ","fazendo um investimento de cerca de ",{"$f":"IF(T7<>\"\",ROUND(L7,2),\"\")","v":""}," €, ","terá uma redução no consumo de ",{"$f":"IF(T7<>0,N7,\"\")","v":""},{"$error":"#VALUE!"},"% ","o que implicará uma redução na fatura de ",{"$f":"IF(T7<>0,ROUND(O7,2),\"\")","v":{"$error":"#VALUE!"}}," € "," para ",{"$f":"IF(T7<>0,ROUND(P7,2),\"\")","v":{"$error":"#VALUE!"}}," € "," o que significa que em cerca de ",{"$error":"#VALUE!"}," meses terá abatido o investimento efetuado no equipamento!!!"]
[null,null,null,null,null,null,null,{"$f":"IF(OR(K8=\"\",N7=\"\"),\"\",CONCATENATE(T8,U8,V8,W8,X8,Y8,Z8,AB8,AC8,AD8,AE8,AF8,AG8,AH8,AI8,AJ8,AK8,AL8))","v":""},null,"Regulação do Volume de Descarga",{"$f":"IF('Quarto-de-Banho'!K15>0.5,PerRetorno!J8,\"\")","v":""},{"$f":"IF(K8<>\"\",'Dispositivos Preço ANQIP.Real'!D72,\"\")","v":""},5,null,null,null,{"$f":"IF(L8=\"\",\"\",L8/(O7-P7))","v":""},null,null,{"$f":"IF(R7=\"\",\"\",\"Ao fazer a Regulação do Volume de Descarga e este passar a ser de \")","v":""},{"$f":"IF(T8<>0,R7,\"\")","v":""}," litros, ","fazendo um investimento de cerca de ",""," €, ","terá uma redução no consumo de ",{"$f":"IF(T8<>0,N7,\"\")","v":""},{"$error":"#VALUE!"},"% ","o que implicará uma redução na fatura de ",{"$f":"IF(T8<>0,ROUND(O7,2),\"\")","v":{"$error":"#VALUE!"}}," € "," para ",{"$f":"IF(T8<>0,ROUND(P7,2),\"\")","v":{"$error":"#VALUE!"}}," € "," o que significa que em cerca de ",{"$error":"#VALUE!"}," meses terá abatido o investimento efetuado no equipamento!!!"]
[null,null,{"$f":"'Quarto-de-Banho'!H16","v":"Chuveiro / Duche"},null,{"$f":"IF('Real vs Simulado'!O8=\"\",\"\",IF(D28=1,H9,IF(D28=2,H10,\"\")))","v":""},null,null,{"$f":"IF(OR(K9=\"\",N9=\"\"),\"\",CONCATENATE(T9,U9,V9,W9,X9,Y9,Z9,AB9,AC9,AD9,AE9,AF9,AG9,AH9,AI9,AJ9,AK9,AL9))","v":""},null,"Novo Chuveiro",{"$f":"IF('Quarto-de-Banho'!K18>5,PerRetorno!J9,\"\")","v":""},{"$f":"IF(K9<>\"\",'Dispositivos Preço ANQIP.Real'!AR70,\"\")","v":""},50,{"$f":"IF('Real vs Simulado'!T8=0,\"\",'Real vs Simulado'!T8)","v":""},{"$f":"'Custos AdRA'!$F$21*('Real vs Simulado'!E8/'Real vs Simulado'!$E$24)","v":{"$error":"#VALUE!"}},{"$f":"'Custos AdRA (2)'!$G$20*('Real vs Simulado'!W8/'Real vs Simulado'!$W$24)","v":{"$error":"#VALUE!"}},{"$f":"IF(L9=\"\",\"\",L9/(O9-P9))","v":""},{"$f":"IF(N9=\"\",\"\",'Real vs Simulado'!R8)","v":""},null,{"$f":"IF(R9=\"\",\"\",\"Ao substituir o seu Chuveiro por outro com um Caudal por Minuto de \")","v":""},{"$f":"IF(T9<>0,R9,\"\")","v":""}," litros, ","fazendo um investimento de cerca de ",{"$f":"IF(T9<>\"\",ROUND(L9,2),\"\")","v":""}," €, ","terá uma redução no consumo de ",{"$f":"IF(T9<>0,N9,\"\")","v":""},{"$error":"#VALUE!"},"% ","o que implicará uma redução na fatura de ",{"$f":"IF(T9<>0,ROUND(O9,2),\"\")","v":{"$error":"#VALUE!"}}," € "," para ",{"$f":"IF(T9<>0,ROUND(P9,2),\"\")","v":{"$error":"#VALUE!"}}," € "," o que significa que em cerca de ",{"$error":"#VALUE!"}," meses terá abatido o investimento efetuado no equipamento!!!"]
[null,null,null,null,null,null,null,{"$f":"IF(OR(K10=\"\",N9=\"\"),\"\",CONCATENATE(T10,U10,V10,W10,X10,Y10,Z10,AB10,AC10,AD10,AE10,AF10,AG10,AH10,AI10,AJ10,AK10,AL10))","v":""},null,"Aplicação de Economizador",{"$f":"IF('Quarto-de-Banho'!K18>5,PerRetorno!J10,\"\")","v":""},{"$f":"IF(K10<>\"\",'Dispositivos Preço ANQIP.Real'!AN70,\"\")","v":""},10,null,null,null,{"$f":"IF(L10=\"\",\"\",L10/(O9-P9))","v":""},null,null,{"$f":"IF(R9=\"\",\"\",\"Ao aplicar um economizador no seu Chuveiro que faça com que o seu Caudal por minuto seja de \")","v":""},{"$f":"IF(T10<>0,R9,\"\")","v":""}," litros, ","fazendo um investimento de cerca de ",""," €, ","terá uma redução no consumo de ",{"$f":"IF(T10<>0,N9,\"\")","v":""},{"$error":"#VALUE!"},"% ","o que implicará uma redução na fatura de ",{"$f":"IF(T10<>0,ROUND(O9,2),\"\")","v":{"$error":"#VALUE!"}}," € "," para ",{"$f":"IF(T10<>0,ROUND(P9,2),\"\")","v":{"$error":"#VALUE!"}}," € "," o que significa que em cerca de ",{"$error":"#VALUE!"}," meses terá abatido o investimento efetuado no equipamento!!!"]
[null,null,{"$f":"'Quarto-de-Banho'!H32","v":"Lavatório"},null,{"$f":"IF('Real vs Simulado'!O11=\"\",\"\",IF(D29=1,H11,IF(D29=2,H12,\"\")))","v":""},null,null,{"$f":"IF(OR(K11=\"\",N11=\"\"),\"\",CONCATENATE(T11,U11,V11,W11,X11,Y11,Z11,AB11,AC11,AD11,AE11,AF11,AG11,AH11,AI11,AJ11,AK11,AL11))","v":""},null,"Nova Torneira",{"$f":"IF('Quarto-de-Banho'!K32>2,PerRetorno!J11,\"\")","v":""},{"$f":"IF(K11<>\"\",'Dispositivos Preço ANQIP.Real'!D70,\"\")","v":""},50,{"$f":"IF('Real vs Simulado'!T11=0,\"\",'Real vs Simulado'!T11)","v":""},{"$f":"'Custos AdRA'!$F$21*('Real vs Simulado'!E11/'Real vs Simulado'!$E$24)","v":{"$error":"#VALUE!"}},{"$f":"'Custos AdRA (2)'!$G$20*('Real vs Simulado'!W11/'Real vs Simulado'!$W$24)","v":{"$error":"#VALUE!"}},{"$f":"IF(L11=\"\",\"\",L11/(O11-P11))","v":""},{"$f":"IF(N11=\"\",\"\",'Real vs Simulado'!R11)","v":""},null,{"$f":"IF(R11=\"\",\"\",\"Ao substituir a sua Torneira de Lavatório por outra com um Caudal por minuto de \")","v":""},{"$f":"IF(T11<>0,R11,\"\")","v":""}," litros, ","fazendo um investimento de cerca de ",{"$f":"IF(T11<>\"\",ROUND(L11,2),\"\")","v":""}," €, ","terá uma redução no consumo de ",{"$f":"IF(T11<>0,N11,\"\")","v":""},{"$error":"#VALUE!"},"% ","o que implicará uma redução na fatura de ",{"$f":"IF(T11<>0,ROUND(O11,2),\"\")","v":{"$error":"#VALUE!"}}," € "," para ",{"$f":"IF(T11<>0,ROUND(P11,2),\"\")","v":{"$error":"#VALUE!"}}," € "," o que significa que em cerca de ",{"$error":"#VALUE!"}," meses terá abatido o investimento efetuado no equipamento!!!"]
[null,null,null,null,null,null,null,{"$f":"IF(OR(K12=\"\",N11=\"\"),\"\",CONCATENATE(T12,U12,V12,W12,X12,Y12,Z12,AB12,AC12,AD12,AE12,AF12,AG12,AH12,AI12,AJ12,AK12,AL12))","v":""},null,"Aplicação de Economizador",{"$f":"IF('Quarto-de-Banho'!K32>2,PerRetorno!J12,\"\")","v":""},{"$f":"IF(K12<>\"\",'Dispositivos Preço ANQIP.Real'!L70,\"\")","v":""},10,null,null,null,{"$f":"IF(L12=\"\",\"\",L12/(O11-P11))","v":""},null,null,{"$f":"IF(R11=\"\",\"\",\"Ao aplicar um economizador na sua Torneira de Lavatório que faça com que o seu Caudal por minuto seja de \")","v":""},{"$f":"IF(T12<>0,R11,\"\")","v":""}," litros, ","fazendo um investimento de cerca de ",""," €, ","terá uma redução no consumo de ",{"$f":"IF(T12<>0,N11,\"\")","v":""},{"$error":"#VALUE!"},"% ","o que implicará uma redução na fatura de ",{"$f":"IF(T12<>0,ROUND(O11,2),\"\")","v":{"$error":"#VALUE!"}}," € "," para ",{"$f":"IF(T12<>0,ROUND(P11,2),\"\")","v":{"$error":"#VALUE!"}}," € "," o que significa que em cerca de ",{"$error":"#VALUE!"}," meses terá abatido o investimento efetuado no equipamento!!!"]
[null,null,{"$f":"'Quarto-de-Banho'!H56","v":"Bidés"},null,{"$f":"IF('Real vs Simulado'!O12=\"\",\"\",IF(D30=1,H13,IF(D30=2,H14,\"\")))","v":""},null,null,{"$f":"IF(OR(K13=\"\",N13=\"\"),\"\",CONCATENATE(T13,U13,V13,W13,X13,Y13,Z13,AB13,AC13,AD13,AE13,AF13,AG13,AH13,AI13,AJ13,AK13,AL13))","v":""},null,"Nova Torneira",{"$f":"IF('Quarto-de-Banho'!K59>2,PerRetorno!J13,\"\")","v":""},{"$f":"IF(K13<>\"\",'Dispositivos Preço ANQIP.Real'!AR70,\"\")","v":""},{"$f":"M11","v":50},{"$f":"IF('Real vs Simulado'!T12=0,\"\",'Real vs Simulado'!T12)","v":""},{"$f":"'Custos AdRA'!$F$21*('Real vs Simulado'!E12/'Real vs Simulado'!$E$24)","v":{"$error":"#VALUE!"}},{"$f":"'Custos AdRA (2)'!$G$20*('Real vs Simulado'!W12/'Real vs Simulado'!$W$24)","v":{"$error":"#VALUE!"}},{"$f":"IF(L13=\"\",\"\",L13/(O13-P13))","v":""},{"$f":"IF(N13=\"\",\"\",'Real vs Simulado'!R12)","v":""},null,{"$f":"IF(R13=\"\",\"\",\"Ao substituir a sua Torneira do Bidé por outra com um Caudal por minuto de \")","v":""},{"$f":"IF(T13<>0,R13,\"\")","v":""}," litros, ","fazendo um investimento de cerca de ",""," €, ","terá uma redução no consumo de ","",{"$f":"IF(T13<>0,ROUND(AA13*100,2),\"\")","v":{"$error":"#VALUE!"}},"% ","o que implicará uma redução na fatura de ",{"$f":"IF(T13<>0,ROUND(O13,2),\"\")","v":{"$error":"#VALUE!"}}," € "," para ",{"$f":"IF(T13<>0,ROUND(P13,2),\"\")","v":{"$error":"#VALUE!"}}," € "," o que significa que em cerca de ",{"$error":"#VALUE!"}," meses terá abatido o investimento efetuado no equipamento!!!"]
[null,null,null,null,null,null,null,{"$f":"IF(OR(K14=\"\",N13=\"\"),\"\",CONCATENATE(T14,U14,V14,W14,X14,Y14,Z14,AB14,AC14,AD14,AE14,AF14,AG14,AH14,AI14,AJ14,AK14,AL14))","v":""},null,"Aplicação de Economizador",{"$f":"IF('Quarto-de-Banho'!K59>2,PerRetorno!J14,\"\")","v":""},{"$f":"IF(K14<>\"\",'Dispositivos Preço ANQIP.Real'!L70,\"\")","v":""},{"$f":"M12","v":10},null,null,null,{"$f":"IF(L14=\"\",\"\",L14/(O13-P13))","v":""},null,null,{"$f":"IF(R13=\"\",\"\",\"Ao aplicar um economizador na sua Torneira do Bidé que faça com que o seu Caudal por minuto seja de \")","v":""},{"$f":"IF(T14<>0,R13,\"\")","v":""}," litros, ","fazendo um investimento de cerca de ",""," €, ","terá uma redução no consumo de ",{"$f":"IF(T14<>0,N13,\"\")","v":""},{"$error":"#VALUE!"},"% ","o que implicará uma redução na fatura de ",{"$f":"IF(T14<>0,ROUND(O13,2),\"\")","v":{"$error":"#VALUE!"}}," € "," para ",{"$f":"IF(T14<>0,ROUND(P13,2),\"\")","v":{"$error":"#VALUE!"}}," € "," o que significa que em cerca de ",{"$error":"#VALUE!"}," meses terá abatido o investimento efetuado no equipamento!!!"]
[null,{"$f":"Cozinha!G6","v":"Cozinha"},{"$f":"Cozinha!H6","v":"Lava-louça"},null,{"$f":"IF('Real vs Simulado'!O13=\"\",\"\",IF(D31=1,H15,IF(D31=2,H16,\"\")))","v":""},null,null,{"$f":"IF(OR(K15=\"\",N15=\"\"),\"\",CONCATENATE(T15,U15,V15,W15,X15,Y15,Z15,AB15,AC15,AD15,AE15,AF15,AG15,AH15,AI15,AJ15,AK15,AL15))","v":""},null,"Nova Torneira",{"$f":"IF(Cozinha!K6>4,PerRetorno!J15,\"\")","v":""},{"$f":"IF(K15<>\"\",'Dispositivos Preço ANQIP.Real'!N70,\"\")","v":""},{"$f":"M13","v":50},{"$f":"IF('Real vs Simulado'!T13=0,\"\",'Real vs Simulado'!T13)","v":""},{"$f":"'Custos AdRA'!$F$21*('Real vs Simulado'!E13/'Real vs Simulado'!$E$24)","v":{"$error":"#VALUE!"}},{"$f":"'Custos AdRA (2)'!$G$20*('Real vs Simulado'!W13/'Real vs Simulado'!$W$24)","v":{"$error":"#VALUE!"}},{"$f":"IF(L15=\"\",\"\",L15/(O15-P15))","v":""},{"$f":"IF(N15=\"\",\"\",'Real vs Simulado'!R13)","v":""},null,{"$f":"IF(R15=\"\",\"\",\"Ao substituir a sua Torneira do Lava-Louça por outra com um Caudal por minuto de \")","v":""},{"$f":"IF(T15<>0,R15,\"\")","v":""}," litros, ","fazendo um investimento de cerca de ",{"$f":"IF(T15<>\"\",ROUND(L15,2),\"\")","v":""}," €, ","terá uma redução no consumo de ","",{"$error":"#VALUE!"},"% ","o que implicará uma redução na fatura de ",{"$f":"IF(T15<>0,ROUND(O15,2),\"\")","v":{"$error":"#VALUE!"}}," € "," para ",{"$f":"IF(T15<>0,ROUND(P15,2),\"\")","v":{"$error":"#VALUE!"}}," € "," o que significa que em cerca de ",{"$error":"#VALUE!"}," meses terá abatido o investimento efetuado no equipamento!!!"]
[null,null,null,null,null,null,null,{"$f":"IF(OR(K16=\"\",N15=\"\"),\"\",CONCATENATE(T16,U16,V16,W16,X16,Y16,Z16,AB16,AC16,AD16,AE16,AF16,AG16,AH16,AI16,AJ16,AK16,AL16))","v":""},null,"Aplicação de Economizador",{"$f":"IF(Cozinha!K6>4,PerRetorno!J16,\"\")","v":""},{"$f":"IF(K16<>\"\",'Dispositivos Preço ANQIP.Real'!P70,\"\")","v":""},{"$f":"M14","v":10},null,null,null,{"$f":"IF(L16=\"\",\"\",L16/(O15-P15))","v":""},null,null,{"$f":"IF(R15=\"\",\"\",\"Ao aplicar um Economizador na sua Torneira de Lava-Louça que faça com que o seu Caudal por minuto seja de \")","v":""},{"$f":"IF(T16<>0,R15,\"\")","v":""}," litros, ","fazendo um investimento de cerca de ",""," €, ","terá uma redução no consumo de ",{"$f":"IF(T16<>0,N15,\"\")","v":""},{"$error":"#VALUE!"},{"$f":"IF(T16<>0, \"% \",\"\")","v":"% "},"o que implicará uma redução na fatura de ",{"$f":"IF(T16<>0,ROUND(O15,2),\"\")","v":{"$error":"#VALUE!"}},{"$f":"IF(T16<>0,\" € \",\"\")","v":" € "},{"$f":"IF(T16<>0,\" para \",\"\")","v":" para "},{"$f":"IF(T16<>0,ROUND(P15,2),\"\")","v":{"$error":"#VALUE!"}},{"$f":"IF(T16<>0,\" € \",\"\")","v":" € "},{"$f":"IF(T16<>0,\" o que significa que em cerca de \",\"\")","v":" o que significa que em cerca de "},{"$error":"#VALUE!"}," meses terá abatido o investimento efetuado no equipamento!!!"]
[]
[null,null,null,null,null,null,null,null,null,null,null,null,null,null,null,null,null,null,null,null,null,null,"Custo Total",{"$f":"IF(AND(T4<>\"\",D26=1),X4,0)+IF(AND(T5<>\"\",D26=2),X5,0)+IF(AND(T6<>\"\",D26=3),X6,0)+IF(AND(T7<>\"\",D27=1),X7,0)+IF(AND(T8<>\"\",D27=2),X8,0)+IF(AND(T9<>\"\",D28=1),X9,0)+IF(AND(T10<>\"\",D28=2),X10,0)+IF(AND(T11<>\"\",D29=1),X11,0)+IF(AND(T12<>\"\",D29=2),X12,0)+IF(AND(T13<>\"\",D30=1),X13,0)+IF(AND(T14<>\"\",D30=2),X14,0)+IF(AND(T15<>\"\",D31=1),X15,0)+IF(AND(T16<>\"\",D31=2),X16,0)","v":0},null,null,null,null,null,"Pagar Antes",{"$f":"IF(AND(T4<>0,D26=1),AE4,0)+IF(AND(T5<>0,D26=2),AE5,0)+IF(AND(T7<>0,D27=1),AE7,0)+IF(AND(T8<>0,D27=2),AE8,0)+IF(AND(T9<>0,D28=1),AE9,0)+IF(AND(T10<>0,D28=2),AE10,0)+IF(AND(T11<>0,D29=1),AE11,0)+IF(AND(T12<>0,D29=2),AE12,0)+IF(AND(T13<>0,D30=1),AE13,0)+IF(AND(T14<>0,D30=2),AE14,0)+IF(AND(T15<>0,D31=1),AE15,0)+IF(AND(T16<>0,D31=2),AE16,0)","v":{"$error":"#VALUE!"}},null,"Pagar Depois",{"$f":"IF(AND(T4<>0,D26=1),AH4,0)+IF(AND(T5<>0,D26=2),AH5,0)+IF(AND(T7<>0,D27=1),AH7,0)+IF(AND(T8<>0,D27=2),AH8,0)+IF(AND(T9<>0,D28=1),AH9,0)+IF(AND(T10<>0,D28=2),AH10,0)+IF(AND(T11<>0,D29=1),AH11,0)+IF(AND(T12<>0,D29=2),AH12,0)+IF(AND(T13<>0,D30=1),AH13,0)+IF(AND(T14<>0,D30=2),AH14,0)+IF(AND(T15<>0,D31=1),AH15,0)+IF(AND(T16<>0,D31=2),AH16,0)","v":{"$error":"#VALUE!"}},null,null,{"$f":"X18/(AE18-AH18)","v":{"$error":"#VALUE!"}}]
[]
[]
[]
[]
[]
[]
[]
[null,null,"Auto",1]
[null,null,"Fluxo",1]
[null,null,"Duche",1]
[null,null,"Lavatório",1]
[null,null,"Bidés",1]
[null,null,"Lava-Louça",1]

{"sheet":"Final","index":17,"n_rows":32,"n_cols":26,"rows_kept":32,"cut":false,"hidden":false,"merged":[[0,0,34,5],[35,0,35,25],[19,25,20,25],[15,23,16,24],[12,24,13,24],[12,21,13,23],[19,7,20,12],[19,13,20,15],[19,17,20,22],[19,23,20,24],[15,7,16,12],[15,13,16,15],[15,17,16,22],[30,6,30,12],[30,13,34,25],[12,25,16,25],[14,17,14,24],[0,6,0,25],[32,7,34,12],[1,6,6,25],[8,10,11,22],[12,18,13,19],[12,20,13,20],[12,17,13,17],[12,10,13,15],[7,6,7,25],[8,6,14,9],[8,23,11,25],[21,6,29,25],[17,6,18,25],[31,6,31,12],[19,16,20,16],[15,6,16,6],[15,16,16,16],[12,16,14,16],[19,6,20,6],[14,10,14,15]]}
[]
[null,null,null,null,null,null,"Simulador de Consumo de Água"]
[]
[]
[]
[]
[]
[]
[null,null,null,null,null,null,null,null,null,null,"Com as alterações nos Dispositivos que selecionou terá uma Redução no Consumo de Água na Ordem dos"]
[]
[]
[]
[null,null,null,null,null,null,null,null,null,null,{"$f":"IF('Real vs Simulado'!W24=0,0,1-('Real vs Simulado'!W24/'Real vs Simulado'!E24))","v":0},null,null,null,null,null,null,{"$f":"IF('Real vs Simulado'!E24>0,\" ( \",\"\")","v":""},{"$f":"IF('Real vs Simulado'!E24>0,('Real vs Simulado'!E24),\"\")","v":""},null,{"$f":"IF('Real vs Simulado'!E24>0,\"para\",\"\")","v":""},{"$f":"IF('Real vs Simulado'!E24>0,'Real vs Simulado'!W24,\"\")","v":""},null,null,{"$f":"IF('Real vs Simulado'!E24>0,\"m3)\",\"\")","v":""}]
[]
[]
[null,null,null,null,null,null,null,"e uma Poupança Mensal na sua Carteira de",null,null,null,null,null,{"$f":"IF(K13=0,0,'Custos AdRA'!F21-'Custos AdRA (2)'!G20)","v":0},null,null,null,"e uma Poupança Anual de",null,null,null,null,null,{"$f":"IF(N16=0,0,N16*12)","v":0}]
[]
[]
[]
[null,null,null,null,null,null,null,"Se efetuar o investimento de",null,null,null,null,null,{"$f":"IF(K13=0,0,PerRetorno!X18)","v":0},null,null,null,"este será amortitizado em",null,null,null,null,null,{"$f":"IF(X16=0,0,N20/X16*12)","v":0},null,"meses!!!"]
[]
[]
[]
[]
[]
[]
[]
[]
[]
[]
[null,null,null,null,null,null,null,null,null,null,null,null,null,"Vamos Juntos… Valorizar a Água!"]
[null,null,null,null,null,null,"Projeto Co-Financiado pela União Europeia"]

{"sheet":"Escalas","index":18,"n_rows":34,"n_cols":48,"rows_kept":34,"cut":false,"hidden":true,"merged":[[29,1,29,2],[33,1,33,2],[14,0,16,0],[14,1,14,6],[15,1,15,2],[15,3,15,4],[15,5,15,6],[23,1,23,2],[10,46,10,47],[11,29,11,30],[11,31,11,32],[11,33,11,35],[11,36,11,37],[11,38,11,39],[11,40,11,41],[11,44,11,45],[11,46,11,47],[10,44,10,45],[5,23,5,24],[9,9,9,10],[9,15,9,16],[9,21,9,22],[9,27,9,28],[3,42,3,43],[3,44,3,45],[3,46,3,47],[4,7,4,8],[4,13,4,14],[4,19,4,20],[4,25,4,26],[3,29,3,30],[3,31,3,32],[3,33,3,35],[3,36,3,37],[3,38,3,39],[3,40,3,41],[2,44,2,45],[2,46,2,47],[3,1,3,2],[3,3,3,4],[3,5,3,6],[3,11,3,12],[3,17,3,18],[3,23,3,24],[3,25,3,26],[3,27,3,28],[2,31,2,32],[2,33,2,35],[2,36,2,37],[2,38,2,39],[2,40,2,41],[2,42,2,43],[2,3,2,4],[2,5,2,10],[2,11,2,16],[2,17,2,22],[2,23,2,28],[2,29,2,30],[0,40,1,41],[0,42,1,47],[1,5,1,6],[1,7,1,8],[1,9,1,10],[1,11,1,12],[1,13,1,14],[1,15,1,16],[1,17,1,18],[1,19,1,20],[0,23,0,28],[0,29,1,30],[0,31,1,32],[0,33,1,35],[0,36,1,37],[0,38,1,39],[1,23,1,24],[1,25,1,26],[1,27,1,28],[0,0,1,0],[0,1,1,2],[0,3,1,4],[0,5,0,10],[0,11,0,16],[0,17,0,22],[1,21,1,22]]}
[null,"Dispositivo",null,"Edifício",null,"Chuveiros e Sistemas de Duche",null,null,null,null,null,"Torneiras de Cozinha",null,null,null,null,null,"Torneiras de Lavatório",null,null,null,null,null,"Autoclismos",null,null,null,null,null,"Fluxómetros",null,"Espaços Verdes",null,null,null,null,"Limpeza",null,"Máquina de Lavar Roupa",null,"Máquina de Lavar Louça",null,"Tanques das Piscinas"]
[null,null,null,null,null,"C/ Torneira Tradicional",null,"C/ Torneira TermoEstática ou Arejador",null,"C/ Torneira TermoEstática e Arejador",null,"C/ Torneira Tradicional",null,"C/ Torneira TermoEstática ou Arejador",null,"C/ Torneira TermoEstática e Arejador",null,"C/ Torneira Tradicional",null,"C/ Torneira TermoEstática ou Arejador",null,"C/ Torneira TermoEstática e Arejador",null,"C/ Descarga Completa",null,"C/ Interrupção de Descarga",null,"C/ Dupla Descarga"]
["Categoria","Valor-Equivalente","Factor de Eficiência","Pontos (Intervalo)",null,"Litros/minuto (Intervalo)",null,null,null,null,null,"Litros/minuto (Intervalo)",null,null,null,null,null,"Litros/minuto (Intervalo)",null,null,null,null,null,"Litros/descarga (Intervalo)",null,null,null,null,null,"Litros/descarga (Intervalo)",null,"l/m2/dia (Intervalo)",null,null,null,null,"Consumo de Água para Limpezas (%)",null,"Consumo de Água (litros/Kg)",null,"Consumo de Água (litros/Kg)",null,"Pontos (Intervalo)",null,"Diferença Percentual em Relação à Reposição Mínima (2%) (Valor Superior)",null,"Diferença Percentual em Relação à Reposição Mínima (2%) (Valor Inferior)"]
["A++ (1)",null,null,null,null,null,null,"<",5,"<",5,null,null,"<",4,"<",4,null,null,"<",2,"<",2]
["A++",1,100,95,100,null,null,"---",null,5,7.2,null,null,"---",null,4,6,null,null,"---",null,2,4,null,null,null,null,"< ",4.5,"<",1,"<",0.6,null,null,null,"<",0.01,"<",5,"<",6,95,100,0,5,0,-5]
["A+",2,{"$f":"C5-$C$13","v":85.714285714285708},90,95,"<",5,5,7.2,7.2,9,"<",4,4,6,6,9,"<",2,2,4,4,6,null,null,"<",4.5,4.5,5.5,1,2,0.6,0.8,null,null,null,0.01,0.02,5,7.2,6,12,90,95,5,10,-5,-10]
["A",3,{"$f":"C6-$C$13","v":71.428571428571416},85,90,5,7.2,7.2,9,9,15,4,6,6,9,9,12,2,4,4,6,6,9,"<",4.5,4.5,5.5,5.5,6.5,2,4,0.8,1.2,null,null,null,0.02,0.04,7.2,9,12,16,85,90,10,15,-10,-15]
["B",4,57.142857142857132,75,85,7.2,9,9,15,15,30,6,9,9,12,12,15,4,6,6,9,9,12,4.5,5.5,5.5,6.5,6.5,7.5,4,6,1.2,1.6,null,null,null,0.04,0.06,9,12,16,22,75,85,15,25,-15,-25]
["C",5,42.857142857142847,65,75,9,15,15,30,">",30,9,12,12,15,">",15,6,9,9,12,">",12,5.5,6.5,6.5,7.5,7.5,9,6,8,1.6,2,null,null,null,0.06,0.09,12,15,22,36,65,75,25,35,-25,-35]
["D",6,28.571428571428562,55,65,15,30,"> ",30,null,null,12,15,">",15,null,null,9,12,">",12,null,null,6.5,7.5,7.5,9,null,null,8,10,2,2.4,null,null,null,0.09,0.12,15,20,36,50,55,65,35,45,-35,-45]
["E",7,14.285714285714276,0,55,">",30,null,null,null,null,">",15,null,null,null,null,">",12,null,null,null,null,7.5,9,null,null,null,null,">",10,">",2.4,null,null,null,">",0.12,">",20,">",50,0,55,"> 45",null,"\"< -45\""]
["-",8,0]
[null,null,{"$f":"100/7","v":14.285714285714286}]
[]
["Coeficiente de Aproveitamento","Zona do País"]
[null,"Norte",null,"Centro",null,"Sul"]
[null,"SPRAC","SAAP ou SAA LF","SPRAC","SAAP ou SAA LF","SAAP ou SAA LF","SAAP ou SAA LF"]
["Reutilizavel em Autoclismos (%)",1,0.6,1,0.5,1,0.4]
["Reutilizavel em Fluxómetros (%)",1,0.6,1,0.5,1,0.4]
["Reutilizavel nos Espaços Verdes (%)","NA",0.6,"NA",0.5,"NA",0.4]
["Reutilizável no AVAC (%)","NA",0.6,"NA",0.5,"NA",0.4]
["Reutilizável no Lago (%)","NA",0.6,"NA",0.5,"NA",0.4]
[]
["Classificação Final do Edifício","Pontos"]
["Muito Eficiente",90,100]
["Eficiente",65,90]
["Normal",30,65]
["Ineficiente",0,30]
[]
["Classificação Final para a Rega de Espaços Verdes","l/m2"]
["Muito Eficiente",0,0.8]
["Eficiente",0.8,1.2]
["Normal",1.2,2]
["Ineficiente","> 2"]

{"sheet":"Custos AdRA (2)","index":19,"n_rows":46,"n_cols":16,"rows_kept":46,"cut":false,"hidden":true,"merged":[[0,0,29,1],[0,3,0,4],[2,2,2,4],[2,7,2,10],[4,2,8,2],[4,3,7,3],[14,2,17,2],[14,3,14,4],[19,2,19,4],[19,6,19,15],[4,14,7,14],[4,15,8,15],[8,3,8,4],[9,2,13,2],[9,3,12,3],[9,14,12,14],[9,15,13,15],[13,3,13,4],[20,2,29,15],[20,16,61,85],[14,14,17,14],[14,15,17,15],[15,3,15,4],[16,3,16,4],[17,3,17,4],[18,2,18,4],[18,6,18,10]]}
[null,null,"Quantidade de Água Consumida ",{"$f":"'Real vs Simulado'!W24","v":0},null,null,"m3"]
[]
[null,null,"Descrição",null,null,"Escalão","Quantidade (Dias)","Quantidade (m3)",null,null,null,"Valor Unitário - Preço por m3 (Euros)","Valor (Euros)","IVA (%)","Total Parcial s/ IVA (Euros)","Total s/ IVA (Euros)"]
[null,null,null,null,null,null,null,"Real","Arredondado",null,"Final"]
[null,null,"ÁGUA","Água (Tarifa Variável)","1.º Escalão (0 a 5 m3/30,42 dias)",{"$f":"IF(D1=\"\",\"\",IF(D1>0,\"1º Escalão\",\"\"))","v":""},null,{"$f":"IF(F5=\"\",\"\",(IF(AND(D1<=5,Início!T14<ApoioAdRA!B44),ApoioAdRA!$B$41*D1,IF(D1>5,5*ApoioAdRA!$B$41,IF(D1<=5,D1*ApoioAdRA!$B$41,\"\")))))","v":""},{"$f":"IF(AND(H5>0,H5<1),1,H5)","v":""},{"$f":"IF(H5=\"\",\"\",I5)","v":""},{"$f":"IF(H5=J5,J5,J5)","v":""},{"$f":"IF(F5=\"\",\"\",IF(Início!$R$14=2,ApoioAdRA!E4,(IF(Início!$R$14=3,ApoioAdRA!H4,(IF(Início!$R$14=4,ApoioAdRA!B4,(IF(Início!$R$14=5,ApoioAdRA!K4,(IF(Início!$R$14=6,ApoioAdRA!N4,(IF(Início!$R$14=7,ApoioAdRA!Q4,(IF(Início!$R$14=8,ApoioAdRA!T4,(IF(Início!$R$14=9,ApoioAdRA!W4,(IF(Início!$R$14=10,ApoioAdRA!Z4,(IF(Início!$R$14=11,ApoioAdRA!AC4,\"\"))))))))))))))))))))","v":""},{"$f":"IF(H5=\"\",\"\",K5*L5)","v":""},{"$f":"IF(K5=\"\",\"\",6%)","v":""},{"$f":"IF(M5=\"\",\"\",SUM(M5:M8))","v":""},{"$f":"IF(AND(O5=\"\",O9=\"\"),\"\",SUM(O5,O9))","v":""}]
[null,null,null,null,"2.º Escalão (6 a 15 m3/30,42 dias)",{"$f":"IF(D1=\"\",\"\",IF(D1>5,\"2º Escalão\",\"\"))","v":""},null,{"$f":"IF(F6=\"\",\"\",(IF(AND(D1<=5,Início!T14<ApoioAdRA!B44),ApoioAdRA!$B$41*D1,IF(D1>15,10*ApoioAdRA!$B$41,IF(D1<=5,\"\",D1-5)))))","v":""},{"$f":"IF(AND(H6>0,H6<1),1,H6)","v":""},{"$f":"IF(H6=\"\",\"\",IF((I5+I6)>=D1,(D1-I5),H6))","v":""},{"$f":"IF(H6=J6,J6,J6)","v":""},{"$f":"IF(F6=\"\",\"\",IF(Início!$R$14=2,ApoioAdRA!E5,(IF(Início!$R$14=3,ApoioAdRA!H5,(IF(Início!$R$14=4,ApoioAdRA!B5,(IF(Início!$R$14=5,ApoioAdRA!K5,(IF(Início!$R$14=6,ApoioAdRA!N5,(IF(Início!$R$14=7,ApoioAdRA!Q5,(IF(Início!$R$14=8,ApoioAdRA!T5,(IF(Início!$R$14=9,ApoioAdRA!W5,(IF(Início!$R$14=10,ApoioAdRA!Z5,(IF(Início!$R$14=11,ApoioAdRA!AC5,\"\"))))))))))))))))))))","v":""},{"$f":"IF(H6=\"\",\"\",K6*L6)","v":""},{"$f":"IF(K6=\"\",\"\",6%)","v":""}]
[null,null,null,null,"3.º Escalão (16 a 25 m3/30,42 dias)",{"$f":"IF(D1=\"\",\"\",IF(D1>15,\"3º Escalão\",\"\"))","v":""},null,{"$f":"IF(F7=\"\",\"\",IF(D1>25,10*ApoioAdRA!$B$41,IF(D1<=25,D1-15,\"\")))","v":""},{"$f":"IF(AND(H7>0,H7<1),1,H7)","v":""},{"$f":"IF(H7=\"\",\"\",IF((I5+I6+I7)>=D1,I7+(D1-(I5+I6+I7)),H7))","v":""},{"$f":"IF(H7=J7,J7,J7)","v":""},{"$f":"IF(F7=\"\",\"\",IF(Início!$R$14=2,ApoioAdRA!E6,(IF(Início!$R$14=3,ApoioAdRA!H6,(IF(Início!$R$14=4,ApoioAdRA!B6,(IF(Início!$R$14=5,ApoioAdRA!K6,(IF(Início!$R$14=6,ApoioAdRA!N6,(IF(Início!$R$14=7,ApoioAdRA!Q6,(IF(Início!$R$14=8,ApoioAdRA!T6,(IF(Início!$R$14=9,ApoioAdRA!W6,(IF(Início!$R$14=10,ApoioAdRA!Z6,(IF(Início!$R$14=11,ApoioAdRA!AC6,\"\"))))))))))))))))))))","v":""},{"$f":"IF(H7=\"\",\"\",K7*L7)","v":""},{"$f":"IF(K7=\"\",\"\",6%)","v":""}]
[null,null,null,null,"4.º Escalão (> 26 m3/30,42 dias)",{"$f":"IF(D1=\"\",\"\",IF(D1>25,\"4º Escalão\",\"\"))","v":""},null,{"$f":"IF(F8=\"\",\"\",IF(D1>25,((D1-25)*ApoioAdRA!$B$41),IF(D1<=25,D1-25,\"\")))","v":""},{"$f":"IF(AND(H8>0,H8<1),1,H8)","v":""},{"$f":"I8","v":""},{"$f":"IF(H8=J8,J8,J8)","v":""},{"$f":"IF(F8=\"\",\"\",IF(Início!$R$14=2,ApoioAdRA!E7,(IF(Início!$R$14=3,ApoioAdRA!H7,(IF(Início!$R$14=4,ApoioAdRA!B7,(IF(Início!$R$14=5,ApoioAdRA!K7,(IF(Início!$R$14=6,ApoioAdRA!N7,(IF(Início!$R$14=7,ApoioAdRA!Q7,(IF(Início!$R$14=8,ApoioAdRA!T7,(IF(Início!$R$14=9,ApoioAdRA!W7,(IF(Início!$R$14=10,ApoioAdRA!Z7,(IF(Início!$R$14=11,ApoioAdRA!AC7,\"\"))))))))))))))))))))","v":""},{"$f":"IF(H8=\"\",\"\",K8*L8)","v":""},{"$f":"IF(K8=\"\",\"\",6%)","v":""}]
[null,null,null,"Água (Tarifa Fixa)",null,null,{"$f":"IF(Início!T14=\"\",\"\",Início!T14)","v":30},null,null,null,null,{"$f":"IF(Início!R19=1,\"\",IF(AND(Início!R19>1,Início!R19<=6),(IF(Início!$R$14=2,ApoioAdRA!F13,(IF(Início!$R$14=3,ApoioAdRA!I13,(IF(Início!$R$14=4,ApoioAdRA!C13,(IF(Início!$R$14=5,ApoioAdRA!L13,(IF(Início!$R$14=6,ApoioAdRA!O13,(IF(Início!$R$14=7,ApoioAdRA!R13,(IF(Início!$R$14=8,ApoioAdRA!U13,(IF(Início!$R$14=9,ApoioAdRA!X13,(IF(Início!$R$14=10,ApoioAdRA!AA13,(IF(Início!$R$14=11,ApoioAdRA!AD13)))))))))))))))))))),IF(AND(Início!R19>6,Início!R19<=7),(IF(Início!$R$14=2,ApoioAdRA!F14,(IF(Início!$R$14=3,ApoioAdRA!I14,(IF(Início!$R$14=4,ApoioAdRA!C14,(IF(Início!$R$14=5,ApoioAdRA!L14,(IF(Início!$R$14=6,ApoioAdRA!O14,(IF(Início!$R$14=7,ApoioAdRA!R14,(IF(Início!$R$14=8,ApoioAdRA!U14,(IF(Início!$R$14=9,ApoioAdRA!X14,(IF(Início!$R$14=10,ApoioAdRA!AA14,(IF(Início!$R$14=11,ApoioAdRA!AD14)))))))))))))))))))),IF(AND(Início!R19>7,A5<=111),(IF(Início!$R$14=2,ApoioAdRA!F15,(IF(Início!$R$14=3,ApoioAdRA!I15,(IF(Início!$R$14=4,ApoioAdRA!C15,(IF(Início!$R$14=5,ApoioAdRA!L15,(IF(Início!$R$14=6,ApoioAdRA!O15,(IF(Início!$R$14=7,ApoioAdRA!R15,(IF(Início!$R$14=8,ApoioAdRA!U15,(IF(Início!$R$14=9,ApoioAdRA!X15,(IF(Início!$R$14=10,ApoioAdRA!AA15,(IF(Início!$R$14=11,ApoioAdRA!AD15)))))))))))))))))))),IF(AND(Início!R19>11,Início!R19<=16),(IF(Início!$R$14=2,ApoioAdRA!F16,(IF(Início!$R$14=3,ApoioAdRA!I16,(IF(Início!$R$14=4,ApoioAdRA!C16,(IF(Início!$R$14=5,ApoioAdRA!L16,(IF(Início!$R$14=6,ApoioAdRA!O16,(IF(Início!$R$14=7,ApoioAdRA!R16,(IF(Início!$R$14=8,ApoioAdRA!U16,(IF(Início!$R$14=9,ApoioAdRA!X16,(IF(Início!$R$14=10,ApoioAdRA!AA16,(IF(Início!$R$14=11,ApoioAdRA!AD16)))))))))))))))))))),IF(AND(Início!R19>16,Início!R19<=20),(IF(Início!$R$14=2,ApoioAdRA!F17,(IF(Início!$R$14=3,ApoioAdRA!I17,(IF(Início!$R$14=4,ApoioAdRA!C17,(IF(Início!$R$14=5,ApoioAdRA!L17,(IF(Início!$R$14=6,ApoioAdRA!O17,(IF(Início!$R$14=7,ApoioAdRA!R17,(IF(Início!$R$14=8,ApoioAdRA!U17,(IF(Início!$R$14=9,ApoioAdRA!X17,(IF(Início!$R$14=10,ApoioAdRA!AA17,(IF(Início!$R$14=11,ApoioAdRA!AD17)))))))))))))))))))),IF(Início!R19>20,(IF(Início!$R$14=2,ApoioAdRA!F18,(IF(Início!$R$14=3,ApoioAdRA!I18,(IF(Início!$R$14=4,ApoioAdRA!C18,(IF(Início!$R$14=5,ApoioAdRA!L18,(IF(Início!$R$14=6,ApoioAdRA!O18,(IF(Início!$R$14=7,ApoioAdRA!R18,(IF(Início!$R$14=8,ApoioAdRA!U18,(IF(Início!$R$14=9,ApoioAdRA!X18,(IF(Início!$R$14=10,ApoioAdRA!AA18,(IF(Início!$R$14=11,ApoioAdRA!AD18)))))))))))))))))))),0)))))))","v":""},null,{"$f":"IF(G9=\"\",\"\",G19)","v":0.06},{"$f":"IF(L9=\"\",\"\",ROUNDUP(G9*L9,2))","v":""}]
[null,null,"SANEAMENTO","Saneamento (Tarifa Variável)","1.º Escalão (0 a 5 m3/30,42 dias)",{"$f":"F5","v":""},null,{"$f":"H5","v":""},"","","",{"$f":"IF(F10=\"\",\"\",L5*ApoioAdRA!B25)","v":""},{"$f":"IF(H10=\"\",\"\",K10*L10)","v":""},{"$f":"N5","v":""},{"$f":"IF(M10=\"\",\"\",ROUNDDOWN(SUM(M10:M13),2))","v":""},{"$f":"IF(AND(O10=\"\",O14=\"\"),\"\",SUM(O10,O14))","v":5.8680000000000003}]
[null,null,null,null,"2.º Escalão (6 a 15 m3/30,42 dias)",{"$f":"F6","v":""},null,"","","","",{"$f":"IF(F11=\"\",\"\",L6*ApoioAdRA!B25)","v":""},{"$f":"IF(H11=\"\",\"\",K11*L11)","v":""},{"$f":"N6","v":""}]
[null,null,null,null,"3.º Escalão (16 a 25 m3/30,42 dias)",{"$f":"F7","v":""},null,"","","","",{"$f":"IF(F12=\"\",\"\",L7*ApoioAdRA!B25)","v":""},{"$f":"IF(H12=\"\",\"\",K12*L12)","v":""},{"$f":"N7","v":""}]
[null,null,null,null,"4.º Escalão (> 26 m3/30,42 dias)",{"$f":"F8","v":""},null,"","","","",{"$f":"IF(F13=\"\",\"\",L8*ApoioAdRA!B25)","v":""},{"$f":"IF(H13=\"\",\"\",K13*L13)","v":""},{"$f":"N8","v":""}]
[null,null,null,"Saneamento (Tarifa Fixa)",null,null,{"$f":"G9","v":30},null,null,null,null,{"$f":"IF(D1=\"\",\"\",(IF(Início!R14=2,ApoioAdRA!F21,(IF(Início!R14=3,ApoioAdRA!I21,(IF(Início!R14=4,ApoioAdRA!C21,(IF(Início!R14=5,ApoioAdRA!L21,(IF(Início!R14=6,ApoioAdRA!O21,(IF(Início!R14=7,ApoioAdRA!R21,(IF(Início!R14=8,ApoioAdRA!U21,(IF(Início!R14=9,ApoioAdRA!X21,(IF(Início!R14=10,ApoioAdRA!AA21,(IF(Início!R14=11,ApoioAdRA!AD21)))))))))))))))))))))","v":0.1956},null,{"$f":"IF(D1=\"\",\"\",G19)","v":0.06},{"$f":"IF(G14=\"\",\"\",G14*L14)","v":5.8680000000000003}]
[null,null,"COBRANÇA OUTRAS ENTIDADES","Taxa Recursos Hídricos (Água)",null,null,null,{"$f":"IF(D1=\"\",\"\",D1)","v":0},null,null,{"$f":"H15","v":0},{"$f":"IF(D1=\"\",\"\",(IF(Início!R14=2,ApoioAdRA!F22,(IF(Início!R14=3,ApoioAdRA!I22,(IF(Início!R14=4,ApoioAdRA!C22,(IF(Início!R14=5,ApoioAdRA!L22,(IF(Início!R14=6,ApoioAdRA!O22,(IF(Início!R14=7,ApoioAdRA!R22,(IF(Início!R14=8,ApoioAdRA!U22,(IF(Início!R14=9,ApoioAdRA!X22,(IF(Início!R14=10,ApoioAdRA!AA22,(IF(Início!R14=11,ApoioAdRA!AD22)))))))))))))))))))))","v":0},{"$f":"IF(H15=\"\",\"\",H15*L15)","v":0},{"$f":"IF(L15=\"\",\"\",G19)","v":0.06},{"$f":"IF(M17=\"\",\"\",ROUNDDOWN(SUM(M15:M18),2))","v":10.3},{"$f":"IF(O15=\"\",\"\",SUM(O15))","v":10.3}]
[null,null,null,"Taxa Recursos Hídricos (SAN)",null,null,null,{"$f":"IF(D1=\"\",\"\",D1)","v":0},null,null,{"$f":"H16","v":0},{"$f":"IF(D1=\"\",\"\",(IF(Início!R14=2,ApoioAdRA!F23,(IF(Início!R14=3,ApoioAdRA!I23,(IF(Início!R14=4,ApoioAdRA!C23,(IF(Início!R14=5,ApoioAdRA!L23,(IF(Início!R14=6,ApoioAdRA!O23,(IF(Início!R14=7,ApoioAdRA!R23,(IF(Início!R14=8,ApoioAdRA!U23,(IF(Início!R14=9,ApoioAdRA!X23,(IF(Início!R14=10,ApoioAdRA!AA23,(IF(Início!R14=11,ApoioAdRA!AD23)))))))))))))))))))))","v":0},{"$f":"IF(H16=\"\",\"\",H16*L16)","v":0},{"$f":"IF(L16=\"\",\"\",G19)","v":0.06}]
[null,null,null,"RSU Fixo",null,null,{"$f":"G14","v":30},null,null,null,null,{"$f":"IF(D1=\"\",\"\",(IF(Início!R14=2,ApoioAdRA!F24,(IF(Início!R14=3,ApoioAdRA!I24,(IF(Início!R14=4,ApoioAdRA!C24,(IF(Início!R14=5,ApoioAdRA!L24,(IF(Início!R14=6,ApoioAdRA!O24,(IF(Início!R14=7,ApoioAdRA!R24,(IF(Início!R14=8,ApoioAdRA!U24,(IF(Início!R14=9,ApoioAdRA!X24,(IF(Início!R14=10,ApoioAdRA!AA24,(IF(Início!R14=11,ApoioAdRA!AD24)))))))))))))))))))))","v":0.34360000000000002},{"$f":"IF(G17=\"\",\"\",G17*L17)","v":10.308},{"$f":"IF(G17=\"\",\"\",\"\")","v":""}]
[null,null,null,"RSU (Variável)",null,null,null,{"$f":"IF(Início!R20=1,D1,\"\")","v":""},null,null,{"$f":"H18","v":""},{"$f":"IF(Início!R20=\"2\",\"\",(IF(Início!R14=2,ApoioAdRA!E26,(IF(Início!R14=3,ApoioAdRA!H26,(IF(Início!R14=4,ApoioAdRA!B26,(IF(Início!R14=5,ApoioAdRA!K26,(IF(Início!R14=6,ApoioAdRA!N26,(IF(Início!R14=7,ApoioAdRA!Q26,(IF(Início!R14=8,ApoioAdRA!T26,(IF(Início!R14=9,ApoioAdRA!X26,(IF(Início!R14=10,ApoioAdRA!AA26,(IF(Início!R14=11,ApoioAdRA!AD26)))))))))))))))))))))","v":0.9},{"$f":"IF(H18=\"\",\"\",H18*L18)","v":""},{"$f":"IF(K18=\"\",\"\",\"\")","v":""}]
[null,null,"IVA",null,null,null,{"$f":"IF(Início!T14=\"\",\"\",ApoioAdRA!B46)","v":0.06},null,null,null,null,{"$f":"IF(G19=\"\",\"\",O5+O9+O10+O14+M15+M16)","v":{"$error":"#VALUE!"}},{"$f":"IF(L19=\"\",\"\",G19*L19)","v":{"$error":"#VALUE!"}},null,{"$f":"IF(M19=\"\",\"\",M19)","v":{"$error":"#VALUE!"}},{"$f":"IF(O19=\"\",\"\",SUM(O19))","v":{"$error":"#VALUE!"}}]
[null,null,"VALOR TOTAL A PAGAR c/ IVA (Euros)",null,null,null,{"$f":"SUM(P5,P10,P15,P19)","v":{"$error":"#VALUE!"}}]
[]
[]
[]
[]
[]
[]
[]
[]
[]
[]
[]
[]
[]
[]
[]
[]
[]
[]
[]
[null,{"$f":"IF('Real vs Simulado'!W24=\"\",\"\",\"SABIA QUE consome \")","v":"SABIA QUE consome "},{"$f":"IF('Real vs Simulado'!W24=\"\",\"\",ROUNDUP('Real vs Simulado'!W24,2))","v":0},{"$f":"IF('Real vs Simulado'!W24=\"\",\"\",\" m3 por mês, o que corresponde a um consumo \")","v":" m3 por mês, o que corresponde a um consumo "}]
[null,{"$f":"IF('Real vs Simulado'!W24=\"\",\"\",\"por pessoa por dia de cerca de \")","v":"por pessoa por dia de cerca de "},{"$f":"IF('Real vs Simulado'!W24=\"\",\"\",('Real vs Simulado'!W24*1000)/Início!Q18/Apoio!H3)","v":{"$error":"#DIV/0!"}},{"$f":"IF('Real vs Simulado'!W24=\"\",\"\",\" Litros!!!\")","v":" Litros!!!"}]
[]
[]
[null,{"$f":"IF('Real vs Simulado'!W24=\"\",\"\",\"SABIA QUE o consumo médio por pessoa dia, em Portugal, é cerca de\")","v":"SABIA QUE o consumo médio por pessoa dia, em Portugal, é cerca de"},{"$f":"IF('Real vs Simulado'!W24=\"\",\"\",\" 140 Litros!!!\")","v":" 140 Litros!!!"}]
[]
[null,{"$f":"IF('Real vs Simulado'!W24=\"\",\"\",\"Isto significa que o seu Consumo de Água é\")","v":"Isto significa que o seu Consumo de Água é"},{"$f":"IF('Real vs Simulado'!W24=\"\",\"\",IF(C41<Apoio!H22,Apoio!J22,IF(AND(C41>=Apoio!H22,C41<Apoio!H21),Apoio!J21,IF(AND(C41>=Apoio!H21,C41<Apoio!H20),Apoio!J20,IF(AND(C41>=Apoio!H20,C41<Apoio!H19),Apoio!J19,Apoio!J18)))))","v":{"$error":"#DIV/0!"}}]

{"sheet":"Dispositivos Preço ANQIP.Real","index":20,"n_rows":72,"n_cols":79,"rows_kept":72,"cut":false,"hidden":true,"merged":[[69,59,69,62],[69,39,69,42],[69,3,69,10],[69,43,69,50],[69,13,69,14],[69,15,69,16],[69,11,69,12],[69,31,69,32],[56,1,57,1],[62,0,63,0],[62,1,63,1],[69,23,69,30],[69,21,69,22],[48,1,49,1],[44,0,49,0],[38,0,43,0],[69,33,69,36],[40,1,41,1],[42,1,43,1],[46,1,47,1],[38,1,39,1],[44,1,45,1],[52,1,53,1],[54,1,55,1],[58,1,59,1],[60,1,61,1],[56,0,61,0],[50,0,55,0],[50,1,51,1],[32,0,37,0],[26,0,31,0],[20,0,25,0],[22,1,23,1],[24,1,25,1],[20,1,21,1],[26,1,27,1],[32,1,33,1],[28,1,29,1],[30,1,31,1],[34,1,35,1],[36,1,37,1],[0,78,1,78],[0,45,0,46],[0,59,0,60],[0,61,0,62],[0,63,0,64],[0,65,0,66],[0,67,0,68],[0,69,0,70],[0,71,0,72],[0,73,0,74],[0,75,0,76],[0,77,1,77],[0,57,0,58],[0,53,0,54],[0,55,0,56],[0,43,0,44],[0,35,0,36],[0,47,0,48],[0,51,0,52],[0,41,0,42],[0,49,0,50],[0,7,0,8],[0,9,0,10],[0,21,0,22],[0,39,0,40],[0,13,0,14],[0,15,0,16],[0,37,0,38],[0,17,0,18],[0,19,0,20],[0,11,0,12],[0,33,0,34],[0,23,0,24],[0,25,0,26],[0,27,0,28],[0,29,0,30],[0,31,0,32],[0,0,1,0],[0,1,1,1],[0,2,1,2],[0,3,0,4],[0,5,0,6],[2,1,3,1],[8,1,9,1],[14,1,15,1],[2,0,7,0],[4,1,5,1],[6,1,7,1],[10,1,11,1],[12,1,13,1],[14,0,19,0],[8,0,13,0],[16,1,17,1],[18,1,19,1]]}
["Entidade","Edifícios / Espaços Públicos","Observações","Fornecimento e aplicação de torneiras temporizadas, certificadas pela ANQIP e economizadores anti-roubo para torneiras de fluxo laminado de 3l/min (ANQIP)",null,"Fornecimento e aplicação de torneiras temporizadas (ANQIP)",null,"Torneiras temporizadas em linha, de encastrar (ANQIP)",null,"Torneiras temporizadas em linha, alimentação externa (ANQIP)",null,"Fornecimento e aplicação de economizadores anti-roubo para torneiras de fluxo laminado de 3l/min (ANQIP)",null,"Substituição das torneiras de lava-loiças por torneiras lava-loiças misturadoras com aplicação de economizadores de caudal de 6l/min (ANQIP)",null,"Aplicação de economizadores de caudal nas torneiras de lava-loiças  6l/min (ANQIP)",null,"Aplicação de Válvulas globo ¾’’ para conjuntos de torneiras de lavatório ",null,"Aplicação de torneiras de esquadria nos lavatórios",null,"Substituição de mecanismos de descarga completa por mecanismos de dupla descarga (ANQIP)",null,"Autoclismo exterior de dupla descarga, adequado para instalação baixa (ANQIP)",null,"Autoclismo exterior de dupla descarga (ANQIP)",null,"Substituição dos autoclismos exteriores plásticos por autoclismos (ANQIP) na categoria “A”",null,"Substituição dos autoclismos por autoclismos (ANQIP)",null,"Fornecimento e aplicação de fluxómetro de sanita e tubo de ligação à bacia de retrete (ANQIP)",null,"Regulação do volume de descarga dos autoclismos de bacias de retrete para 5,5 litros",null,"Regulação das descargas dos fluxómetros de bacia de retrete para 6 litros por descarga",null,"Adaptação dos mecanismos dos autoclismos das bacias de retrete para interrupção de descarga e regulação da descarga para os 5,5 litros",null,"Fornecimento e aplicação de redutor de chuveiro de 9,5 l/min (ANQIP)",null,"Aplicação de economizador de chuveiro com caudal de 8l/min.",null,"Fornecimento e aplicação de redutor de chuveiro para deficientes de 9,5 l/min (ANQIP)",null,"Fornecimento e aplicação torneiras temporizadoras nos chuveiros e aplicação de economizadores de 9,5 l/min (ANQIP)",null,"Fornecimento e aplicação de torneira temporizada em linha e redutor de chuveiro (ANQIP)",null,"Fornecimento e aplicação de torneira temporizada em linha e redutor de chuveiro (ANQIP)",null,"Fornecimento e aplicação de torneira monocomando para duche e mangueira de chuveiro com economizador (ANQIP)",null,"Mangueiras de chuveiro c/ economizadores (8l/min) incorporados (ANQIP)",null,"Cabeças de Chuveiro sem Redutor",null,"Rampas de Chuveiro de modo a que o suporte para o Chuveiro-Telefone possa ser ajustável a várias alturas",null,"Fluxómetro de mictório (ANQIP)",null,"Substituição de fluxómetros dos mictórios por fluxómetros de categoria A (ANQIP)",null,"Substituição de placas de accionamento dos fluxómetros e ajuste dos volumes de descarga (ANQIP)",null,"Sistema de Telecontagem",null,"Revisão do sistema de retorno de águas quentes sanitárias ou substituição do mesmo, caso necessário.",null,"Fornecimento e aplicação de torneira de junção e chave, recomendada pela ANQIP",null,"Colocação de chave de segurança nas torneiras de lavagem ",null,"Sensibilização para a utilização da interrupção de descarga e da dupla descarga e regulação dos volumes de descarga dos autoclismos de bacias de retrete",null,"Substituição de elementos e troços de rede predial danificados e que careçam de substituição incluindo a execução de todos os trabalhos preliminares e de acabamento,necessários à completa execução dos trabalhos objecto do fornecimento, e remoção a destino final adequado de eventuais produtos sobrantes.",null,"Total (Euros)","IVA (Euros)"]
[null,null,null,"Preço Unitário","Unid.","Preço Unitário","Unid.","Preço Unitário","Unid.","Preço Unitário","Unid.","Preço Unitário","Unid.","Preço Unitário","Unid.","Preço Unitário","Unid.","Preço Unitário","Unid.","Preço Unitário","Unid.","Preço Unitário","Unid.","Preço Unitário","Unid.","Preço Unitário","Unid.","Preço Unitário","Unid.","Preço Unitário","Unid.","Preço Unitário","Unid.","Preço Unitário","Unid.","Preço Unitário","Unid.","Preço Unitário","Unid.","Preço Unitário","Unid.","Preço Unitário","Unid.","Preço Unitário","Unid.","Preço Unitário","Unid.","Preço Unitário","Unid.","Preço Unitário","Unid.","Preço Unitário","Unid.","Preço Unitário","Unid.","Preço Unitário","Unid.","Preço Unitário","Unid.","Preço Unitário","Unid.","Preço Unitário","Unid.","Preço Unitário","Unid.","Preço Unitário","Unid.","Preço Unitário","Unid.","Preço Unitário","Unid.","Preço Unitário","Unid.","Preço Unitário","Unid.","Preço Unitário","Unid."]
["AGD","Pisc Mun","Previsão ANQIP",81.400000000000006,18,null,null,null,null,null,null,null,null,null,null,null,null,null,null,null,null,45.6,15,null,null,null,null,null,null,null,null,null,null,null,null,null,null,null,null,18,21,null,null,96,2,null,null,null,null,null,null,null,null,null,null,null,null,null,null,null,null,null,null,null,null,null,null,1166.01,1,null,null,null,null,null,null,null,null,{"$f":"(D3*E3)+(F3*G3)+(L3*M3)+(AX3*AY3)+(H3*I3)+(J3*K3)+(N3*O3)+(P3*Q3)+(R3*S3)+(T3*U3)+(V3*W3)+(X3*Y3)+(Z3*AA3)+(AB3*AC3)+(AD3*AE3)+(AF3*AG3)+(AH3*AI3)+(AJ3*AK3)+(AL3*AM3)+(AN3*AO3)+(AP3*AQ3)+(AR3*AS3)+(AV3*AW3)+(AZ3*BA3)+(BB3*BC3)+(BD3*BE3)+(BF3*BG3)+(AT3*AU3)+(BH3*BI3)+(BJ3*BK3)+(BL3*BM3)+(BN3*BO3)+(BP3*BQ3)+(BR3*BS3)+(BT3*BU3)+(BV3*BW3)+(BX3*BY3)","v":3885.21},{"$f":"BZ3*1.23","v":4778.8082999999997}]
[null,null,"Proposta ou Factura",{"$f":"58.14","v":58.14},18,null,null,null,null,null,null,null,null,null,null,null,null,null,null,null,null,35,15,null,null,null,null,null,null,null,null,null,null,null,null,null,null,null,null,45,21,null,null,40,2,null,null,null,null,null,null,null,null,null,null,null,null,null,null,null,null,null,null,null,null,null,null,3485,1,null,null,null,null,null,null,null,null,6081.52,{"$f":"BZ4*1.23","v":7480.2696000000005}]
[null,"CEI FC","Previsão ANQIP",{"$f":"33*1.1","v":36.300000000000004},16,null,null,null,null,null,null,null,null,null,null,null,null,null,null,null,null,{"$f":"12.5*1.1","v":13.750000000000002},4,null,null,null,null,null,null,null,null,null,null,null,null,null,null,null,null,null,null,null,null,null,null,null,null,null,null,null,null,null,null,null,null,null,null,null,null,null,null,null,null,null,null,null,null,null,null,null,null,null,null,null,null,null,null,635.80000000000007,782.03400000000011]
[null,null,"Proposta ou Factura",null,null,null,null,null,null,null,null,null,null,null,null,null,null,null,null,null,null,null,null,null,null,null,null,null,null,null,null,null,null,null,null,null,null,null,null,null,null,null,null,null,null,null,null,null,null,null,null,null,null,null,null,null,null,null,null,null,null,null,null,null,null,null,null,null,null,null,null,null,null,null,null,null,null,0,0]
[null,"Estádio","Previsão ANQIP",null,null,null,null,null,null,null,null,{"$f":"6.6*1.1","v":7.26},78,null,null,{"$f":"9*1.1","v":9.9},4,null,null,null,null,null,null,null,null,null,null,null,null,null,null,null,null,null,null,null,null,null,null,null,null,null,null,null,null,null,null,null,null,null,null,null,null,null,null,null,null,null,null,null,null,null,null,null,null,null,null,null,null,null,null,null,null,null,null,null,null,605.88,745.23239999999998]
[null,null,"Proposta ou Factura",null,null,null,null,null,null,null,null,null,null,null,null,null,null,null,null,null,null,null,null,null,null,null,null,null,null,null,null,null,null,null,null,null,null,null,null,null,null,null,null,null,null,null,null,null,null,null,null,null,null,null,null,null,null,null,null,null,null,null,null,null,null,null,null,null,null,null,null,null,null,null,null,null,null,0,0]
["ALB","Pisc Mun","Previsão ANQIP",81.400000000000006,12,null,null,null,null,null,null,null,null,null,null,null,null,null,null,null,null,45.6,9,null,null,null,null,null,null,null,null,null,null,null,null,null,null,null,null,null,null,null,null,null,null,null,null,null,null,null,null,null,null,null,null,null,null,null,null,null,null,null,null,null,null,null,null,null,null,null,null,null,null,null,null,null,null,1387.2,1706.2560000000001]
[null,null,"Proposta ou Factura",null,null,30.995999999999999,12,null,null,null,null,11.771000000000001,12,null,null,null,null,null,null,null,null,42.348999999999997,9,null,null,null,null,null,null,null,null,null,null,null,null,null,null,null,null,null,null,null,null,null,null,null,null,null,null,null,null,null,null,null,null,null,null,null,null,null,null,null,null,null,null,null,null,null,null,null,null,null,null,null,null,null,null,894.34499999999991,1100.0443499999999]
[null,"Pisc Mun Branca","Previsão ANQIP",{"$f":"33*1.1","v":36.300000000000004},19,null,null,null,null,null,null,null,null,null,null,null,null,null,null,null,null,{"$f":"12.5*1.1","v":13.750000000000002},14,null,null,null,null,null,null,null,null,null,null,null,null,null,null,null,null,null,null,null,null,null,null,null,null,null,null,null,null,null,null,null,null,null,null,null,null,null,null,null,null,null,null,null,null,null,null,null,null,null,null,null,null,null,null,882.2,1085.106]
[null,null,"Proposta ou Factura",null,null,null,null,null,null,null,null,null,null,null,null,null,null,null,null,null,null,null,null,null,null,null,null,null,null,null,null,null,null,null,null,null,null,null,null,null,null,null,null,null,null,null,null,null,null,null,null,null,null,null,null,null,null,null,null,null,null,null,null,null,null,null,null,null,null,null,null,null,null,null,null,null,null,0,0]
[null,"Pisc Mun SJLoure","Previsão ANQIP",{"$f":"33*1.1","v":36.300000000000004},15,null,null,null,null,null,null,{"$f":"6.6*1.1","v":7.26},1,null,null,null,null,null,null,null,null,{"$f":"12.5*1.1","v":13.750000000000002},11,null,null,null,null,null,null,null,null,null,null,null,null,null,null,null,null,null,null,null,null,null,null,null,null,null,null,null,null,null,null,null,null,null,null,null,null,null,null,null,null,null,null,null,null,null,null,null,null,null,null,null,null,null,null,703.0100000000001,864.70230000000015]
[null,null,"Proposta ou Factura",null,null,null,null,null,null,null,null,null,null,null,null,null,null,null,null,null,null,null,null,null,null,null,null,null,null,null,null,null,null,null,null,null,null,null,null,null,null,null,null,null,null,null,null,null,null,null,null,null,null,null,null,null,null,null,null,null,null,null,null,null,null,null,null,null,null,null,null,null,null,null,null,null,null,0,0]
["AVR","CCC","Previsão ANQIP",null,null,null,null,null,null,null,null,9.9,36,null,null,null,null,null,null,null,null,45.6,20,null,null,null,null,null,null,null,null,null,null,null,null,null,null,null,null,null,null,null,null,null,null,null,null,null,null,null,null,null,null,null,null,null,null,null,null,null,null,37.950000000000003,20,36.299999999999997,4,1750,1,null,null,null,null,null,null,null,null,null,null,3922.6,4824.7979999999998]
[null,null,"Proposta ou Factura",null,null,null,null,null,null,null,null,18.5,36,null,null,null,null,null,null,null,null,81,20,null,null,null,null,null,null,null,null,null,null,null,null,null,null,null,null,null,null,null,null,null,null,null,null,null,null,null,null,null,null,null,null,null,null,null,null,null,null,89,20,59,4,1750,1,null,null,null,null,null,null,null,null,null,null,6052,7443.96]
[null,"Esc Sant","Previsão ANQIP",{"$f":"33*1.1","v":36.300000000000004},14,null,null,null,null,null,null,null,null,null,null,{"$f":"9*1.1","v":9.9},3,null,null,null,null,{"$f":"12.5*1.1","v":13.750000000000002},12,null,null,null,null,null,null,null,null,null,null,null,null,null,null,null,null,null,null,{"$f":"15*1.1","v":16.5},7,null,null,null,null,null,null,null,null,null,null,null,null,null,null,null,null,null,null,null,null,null,null,null,null,null,null,null,null,null,null,null,null,null,null,818.40000000000009,1006.6320000000001]
[null,null,"Proposta ou Factura",null,null,null,null,null,null,null,null,null,null,null,null,null,null,null,null,null,null,null,null,null,null,null,null,null,null,null,null,null,null,null,null,null,null,null,null,null,null,null,null,null,null,null,null,null,null,null,null,null,null,null,null,null,null,null,null,null,null,null,null,null,null,null,null,null,null,null,null,null,null,null,null,null,null,0,0]
[null,"Merc MF","Previsão ANQIP",null,null,null,null,null,null,null,null,{"$f":"6.6*1.1","v":7.26},8,null,null,null,null,null,null,null,null,{"$f":"12.5*1.1","v":13.750000000000002},17,null,null,null,null,null,null,null,null,null,null,null,null,null,null,null,null,null,null,null,null,null,null,null,null,null,null,null,null,null,null,null,null,null,null,null,null,null,null,null,null,null,null,null,null,null,null,null,null,null,null,null,null,null,null,291.83000000000004,358.95090000000005]
[null,null,"Proposta ou Factura",null,null,null,null,null,null,null,null,null,null,null,null,null,null,null,null,null,null,null,null,null,null,null,null,null,null,null,null,null,null,null,null,null,null,null,null,null,null,null,null,null,null,null,null,null,null,null,null,null,null,null,null,null,null,null,null,null,null,null,null,null,null,null,null,null,null,null,null,null,null,null,null,null,null,0,0]
["EST","Cine-Teatro","Previsão ANQIP",null,null,null,null,null,null,null,null,9.9,20,null,null,null,null,null,null,null,null,45.6,14,null,null,null,null,null,null,null,null,null,null,null,null,null,null,null,null,null,null,null,null,null,null,null,null,null,null,null,null,null,null,null,null,null,null,null,null,null,null,null,null,null,null,null,null,null,null,8.5,1,null,null,null,null,null,null,844.9,1039.2269999999999]
[null,null,"Proposta ou Factura",null,null,null,null,null,null,null,null,null,null,null,null,null,null,null,null,null,null,null,null,null,null,null,null,null,null,null,null,null,null,null,null,null,null,null,null,null,null,null,null,null,null,null,null,null,null,null,null,null,null,null,null,null,null,null,null,null,null,null,null,null,null,null,null,null,null,null,null,null,null,null,null,null,null,0,0]
[null,"Pavilhão","Previsão ANQIP",{"$f":"33*1.1","v":36.300000000000004},6,null,null,null,null,null,null,{"$f":"6.6*1.1","v":7.26},2,null,null,null,null,null,null,null,null,{"$f":"12.5*1.1","v":13.750000000000002},6,null,null,null,null,null,null,null,null,null,null,null,null,null,null,null,null,null,null,{"$f":"15*1.1","v":16.5},1,null,null,null,null,null,null,null,null,null,null,null,null,null,null,null,null,null,null,null,null,null,null,null,null,null,null,null,null,null,null,null,null,null,null,331.32000000000005,407.52360000000004]
[null,null,"Proposta ou Factura",null,null,null,null,null,null,null,null,null,null,null,null,null,null,null,null,null,null,null,null,null,null,null,null,null,null,null,null,null,null,null,null,null,null,null,null,null,null,null,null,null,null,null,null,null,null,null,null,null,null,null,null,null,null,null,null,null,null,null,null,null,null,null,null,null,null,null,null,null,null,null,null,null,null,0,0]
[null,"Pisc Mun","Previsão ANQIP",null,null,null,null,null,null,null,null,{"$f":"6.6*1.1","v":7.26},32,null,null,null,null,null,null,null,null,null,null,null,null,null,null,null,null,null,null,null,null,null,null,null,null,null,null,null,null,{"$f":"9*1.1","v":9.9},46,null,null,null,null,null,null,null,null,null,null,null,null,null,null,null,null,null,null,null,null,null,null,null,null,null,null,null,null,null,null,null,null,null,null,687.72,845.89560000000006]
[null,null,"Proposta ou Factura",null,null,null,null,null,null,null,null,null,null,null,null,null,null,null,null,null,null,null,null,null,null,null,null,null,null,null,null,null,null,null,null,null,null,null,null,null,null,null,null,null,null,null,null,null,null,null,null,null,null,null,null,null,null,null,null,null,null,null,null,null,null,null,null,null,null,null,null,null,null,null,null,null,null,0,0]
["ILH","Pisc Mun","Previsão ANQIP",81.400000000000006,24,null,null,null,null,null,null,null,null,null,null,null,null,null,null,null,null,null,null,null,null,null,null,46.2,16,null,null,null,null,null,null,null,null,null,null,null,null,null,null,null,null,null,null,null,null,null,null,null,null,null,null,null,null,null,null,null,null,null,null,null,null,1750,1,null,null,null,null,null,null,null,null,null,null,4442.8,5464.6440000000002]
[null,null,"Proposta ou Factura",115,24,null,null,null,null,null,null,null,null,null,null,null,null,null,null,null,null,null,null,null,null,null,null,60,16,null,null,null,null,null,null,null,null,null,null,null,null,null,null,null,null,null,null,null,null,null,null,null,null,null,null,null,null,null,null,null,null,null,null,null,null,1750,1,null,null,null,null,null,null,null,null,680,1,6150,7564.5]
[null,"MM","Previsão ANQIP",{"$f":"33*1.1","v":36.300000000000004},6,null,null,null,null,null,null,null,null,null,null,null,null,null,null,null,null,null,null,null,null,null,null,null,null,null,null,null,null,null,null,null,null,{"$f":"7.5*1.2","v":9},16,null,null,null,null,null,null,null,null,null,null,null,null,null,null,null,null,null,null,null,null,null,null,null,null,null,null,null,null,null,null,null,null,null,null,null,null,null,null,361.8,445.01400000000001]
[null,null,"Proposta ou Factura",null,null,null,null,null,null,null,null,null,null,null,null,null,null,null,null,null,null,null,null,null,null,null,null,null,null,null,null,null,null,null,null,null,null,null,null,null,null,null,null,null,null,null,null,null,null,null,null,null,null,null,null,null,null,null,null,null,null,null,null,null,null,null,null,null,null,null,null,null,null,null,null,null,null,0,0]
[null,"Paços Conc","Previsão ANQIP",null,null,null,null,null,null,null,null,{"$f":"6.6*1.1","v":7.26},26,null,null,null,null,null,null,null,null,{"$f":"12.5*1.1","v":13.750000000000002},12,null,null,null,null,null,null,null,null,null,null,null,null,null,null,null,null,null,null,null,null,null,null,null,null,null,null,null,null,null,null,null,null,null,null,null,null,null,null,null,null,null,null,null,null,null,null,null,null,null,null,null,null,null,null,353.76,435.12479999999999]
[null,null,"Proposta ou Factura",null,null,null,null,null,null,null,null,null,null,null,null,null,null,null,null,null,null,null,null,null,null,null,null,null,null,null,null,null,null,null,null,null,null,null,null,null,null,null,null,null,null,null,null,null,null,null,null,null,null,null,null,null,null,null,null,null,null,null,null,null,null,null,null,null,null,null,null,null,null,null,null,null,null,0,0]
["MTS","Pisc Mun","Previsão ANQIP",null,null,null,null,null,null,null,null,9.9,47,null,null,null,null,null,null,null,null,null,null,null,null,null,null,null,null,null,null,null,null,null,null,null,null,null,null,null,null,null,null,null,null,null,null,null,null,null,null,null,null,null,null,null,null,null,null,null,null,null,null,null,null,null,null,null,null,null,null,null,null,6,21,6,21,717.3,882.27899999999988]
[null,null,"Proposta ou Factura",null,null,null,null,null,null,null,null,6.45,47,null,null,null,null,null,null,null,null,null,null,null,null,null,null,null,null,null,null,null,null,null,null,null,null,null,null,null,null,null,null,null,null,null,null,null,null,null,null,null,null,null,null,null,null,null,null,null,null,null,null,null,null,null,null,null,null,null,null,null,null,null,null,null,null,303.15000000000003,372.87450000000001]
[null,"CE Murtosa","Previsão ANQIP",{"$f":"33*1.1","v":36.300000000000004},39,null,null,null,null,null,null,{"$f":"6.6*1.1","v":7.26},12,{"$f":"42*1.1","v":46.2},3,{"$f":"9*1.1","v":9.9},5,null,null,null,null,null,null,null,null,null,null,null,null,null,null,null,null,null,null,null,null,null,null,{"$f":"15*1.1","v":16.5},2,null,null,null,null,null,null,null,null,null,null,null,null,null,null,null,null,null,null,null,null,null,null,null,null,null,null,null,null,null,null,null,null,null,null,null,null,{"$f":"(D35*E35)+(F35*G35)+(L35*M35)+(AX35*AY35)+(H35*I35)+(J35*K35)+(N35*O35)+(P35*Q35)+(R35*S35)+(T35*U35)+(V35*W35)+(X35*Y35)+(Z35*AA35)+(AB35*AC35)+(AD35*AE35)+(AF35*AG35)+(AH35*AI35)+(AJ35*AK35)+(AL35*AM35)+(AN35*AO35)+(AP35*AQ35)+(AR35*AS35)+(AV35*AW35)+(AZ35*BA35)+(BB35*BC35)+(BD35*BE35)+(BF35*BG35)+(AT35*AU35)+(BH35*BI35)+(BJ35*BK35)+(BL35*BM35)+(BN35*BO35)+(BP35*BQ35)+(BR35*BS35)+(BT35*BU35)+(BV35*BW35)+(BX35*BY35)","v":1723.92},2120.4216000000001]
[null,null,"Proposta ou Factura",null,null,null,null,null,null,null,null,null,null,null,null,null,null,null,null,null,null,null,null,null,null,null,null,null,null,null,null,null,null,null,null,null,null,null,null,null,null,null,null,null,null,null,null,null,null,null,null,null,null,null,null,null,null,null,null,null,null,null,null,null,null,null,null,null,null,null,null,null,null,null,null,null,null,0,0]
[null,"Paços Conc","Previsão ANQIP",{"$f":"33*1.1","v":36.300000000000004},20,null,null,null,null,null,null,null,null,null,null,null,null,null,null,null,null,{"$f":"12.5*1.1","v":13.750000000000002},9,null,null,null,null,null,null,null,null,null,null,null,null,null,null,null,null,null,null,null,null,null,null,null,null,null,null,null,null,null,null,null,null,null,null,null,null,null,null,null,null,null,null,null,null,null,null,null,null,null,null,null,null,null,null,849.75000000000011,1045.1925000000001]
[null,null,"Proposta ou Factura",null,null,null,null,null,null,null,null,null,null,null,null,null,null,null,null,null,null,null,null,null,null,null,null,null,null,null,null,null,null,null,null,null,null,null,null,null,null,null,null,null,null,null,null,null,null,null,null,null,null,null,null,null,null,null,null,null,null,null,null,null,null,null,null,null,null,null,null,null,null,null,null,null,null,0,0]
["OLB","Pisc Mun","Previsão ANQIP",81.400000000000006,27,null,null,null,null,null,null,null,null,null,null,null,null,null,null,null,null,null,null,null,null,null,null,46.2,9,45.6,5,null,null,null,null,null,null,null,null,null,null,null,null,null,null,82.5,32,null,null,null,null,null,null,null,null,null,null,null,null,null,null,null,null,null,null,null,null,null,null,null,null,null,null,null,null,null,null,5481.6,6742.3680000000004]
[null,null,"Proposta ou Factura",115,27,null,null,null,null,null,null,null,null,null,null,null,null,null,null,null,null,null,null,null,null,null,null,60,9,60,5,null,null,null,null,null,null,null,null,null,null,null,null,null,null,115,32,null,null,null,null,null,null,null,null,null,null,null,null,null,null,null,null,null,null,null,null,null,null,null,null,null,null,null,null,null,null,7625,9378.75]
[null,"Pavilhão","Previsão ANQIP",{"$f":"33*1.1","v":36.300000000000004},2,null,null,null,null,null,null,{"$f":"6.6*1.1","v":7.26},20,null,null,{"$f":"9*1.1","v":9.9},2,null,null,null,null,{"$f":"12.5*1.1","v":13.750000000000002},10,null,null,null,null,null,null,null,null,null,null,null,null,null,null,null,null,null,null,{"$f":"15*1.1","v":16.5},4,null,null,null,null,null,null,null,null,null,null,null,null,null,null,null,null,null,null,null,null,null,null,null,null,null,null,null,null,null,null,null,null,null,null,441.1,542.553]
[null,null,"Proposta ou Factura",null,null,null,null,null,null,null,null,null,null,null,null,null,null,null,null,null,null,null,null,null,null,null,null,null,null,null,null,null,null,null,null,null,null,null,null,null,null,null,null,null,null,null,null,null,null,null,null,null,null,null,null,null,null,null,null,null,null,null,null,null,null,null,null,null,null,null,null,null,null,null,null,null,null,0,0]
[null,"EB Troviscal","Previsão ANQIP",null,null,null,null,null,null,null,null,null,null,null,null,null,null,null,null,null,null,null,null,null,null,null,null,null,null,null,null,null,null,null,null,null,null,null,null,null,null,null,null,null,null,null,null,null,null,null,null,null,null,null,null,null,null,null,null,null,null,null,null,null,null,null,null,null,null,null,null,null,null,null,null,null,null,0,0]
[null,null,"Proposta ou Factura",null,null,null,null,null,null,null,null,null,null,null,null,null,null,null,null,null,null,null,null,null,null,null,null,null,null,null,null,null,null,null,null,null,null,null,null,null,null,null,null,null,null,null,null,null,null,null,null,null,null,null,null,null,null,null,null,null,null,null,null,null,null,null,null,null,null,null,null,null,null,null,null,null,null,0,0]
["OVR","Pisc Mun","Previsão ANQIP",81.400000000000006,23,null,null,null,null,null,null,null,null,null,null,null,null,null,null,null,null,null,null,77,4,46.2,3,null,null,null,null,84,20,null,null,null,null,null,null,18,32,null,null,null,null,null,null,82.5,8,null,null,66,6,null,null,null,null,null,null,38.5,3,null,null,null,null,null,null,null,null,null,null,8.5,5,null,null,null,null,5788.7999999999993,7120.2239999999993]
[null,null,"Proposta ou Factura",57.8,23,null,null,null,null,null,null,null,null,null,null,null,null,null,null,null,null,null,null,50.6,4,50.6,3,null,null,null,null,79.010000000000005,20,null,null,null,null,null,null,25.5,32,null,null,null,null,null,null,90.52,8,null,null,85.8,6,null,null,null,null,null,null,44.28,3,null,null,null,null,null,null,null,null,null,null,20.7,5,null,null,null,null,5555.1,6832.7730000000001]
[null,"Paços Conc","Previsão ANQIP",{"$f":"33*1.1","v":36.300000000000004},12,null,null,null,null,null,null,{"$f":"6.6*1.1","v":7.26},9,null,null,null,null,null,null,null,null,null,null,null,null,null,null,null,null,null,null,null,null,null,null,null,null,null,null,null,null,null,null,null,null,null,null,null,null,null,null,null,null,null,null,null,null,null,null,null,null,null,null,null,null,null,null,null,null,null,null,null,null,null,null,null,null,500.94000000000005,616.15620000000001]
[null,null,"Proposta ou Factura",null,null,null,null,null,null,null,null,null,null,null,null,null,null,null,null,null,null,null,null,null,null,null,null,null,null,null,null,null,null,null,null,null,null,null,null,null,null,null,null,null,null,null,null,null,null,null,null,null,null,null,null,null,null,null,null,null,null,null,null,null,null,null,null,null,null,null,null,null,null,null,null,null,null,0,0]
[null,"CE Combatentes","Previsão ANQIP",null,null,null,null,null,null,null,null,null,null,null,null,null,null,null,null,null,null,null,null,null,null,null,null,null,null,null,null,null,null,null,null,null,null,null,null,null,null,null,null,null,null,null,null,null,null,null,null,null,null,null,null,null,null,null,null,null,null,null,null,null,null,null,null,null,null,null,null,null,null,null,null,null,null,0,0]
[null,null,"Proposta ou Factura",null,null,null,null,null,null,null,null,null,null,null,null,null,null,null,null,null,null,null,null,null,null,null,null,null,null,null,null,null,null,null,null,null,null,null,null,null,null,null,null,null,null,null,null,null,null,null,null,null,null,null,null,null,null,null,null,null,null,null,null,null,null,null,null,null,null,null,null,null,null,null,null,null,null,0,0]
["SVG","Pisc Mun","Previsão ANQIP",81.400000000000006,6,null,null,null,null,null,null,null,null,null,null,null,null,null,null,null,null,null,null,null,null,null,null,null,null,null,null,null,null,null,null,null,null,null,null,null,null,null,null,null,null,null,null,null,null,null,null,null,null,null,null,null,null,null,null,null,null,null,null,null,null,1350,1,null,null,null,null,null,null,null,null,null,null,1838.4,2261.232]
[null,null,"Proposta ou Factura",115,6,null,null,null,null,null,null,null,null,null,null,null,null,null,null,null,null,null,null,null,null,null,null,null,null,null,null,null,null,null,null,null,null,null,null,null,null,null,null,null,null,null,null,null,null,null,null,null,null,null,null,null,null,null,null,null,null,null,null,null,null,1750,1,null,null,null,null,null,null,null,null,null,null,2440,3001.2]
[null,"CAE","Previsão ANQIP",null,null,null,null,null,null,null,null,{"$f":"6.6*1.1","v":7.26},23,null,null,null,null,null,null,null,null,{"$f":"12.5*1.1","v":13.750000000000002},9,null,null,null,null,null,null,null,null,null,null,null,null,null,null,null,null,null,null,null,null,null,null,null,null,null,null,null,null,null,null,null,null,null,null,null,null,null,null,null,null,null,null,null,null,null,null,null,null,null,null,null,null,null,null,290.73,357.59790000000004]
[null,null,"Proposta ou Factura",null,null,null,null,null,null,null,null,null,null,null,null,null,null,null,null,null,null,null,null,null,null,null,null,null,null,null,null,null,null,null,null,null,null,null,null,null,null,null,null,null,null,null,null,null,null,null,null,null,null,null,null,null,null,null,null,null,null,null,null,null,null,null,null,null,null,null,null,null,null,null,null,null,null,0,0]
[null,"VougaPark","Previsão ANQIP",null,null,null,null,null,null,null,null,null,null,null,null,null,null,null,null,null,null,null,null,null,null,null,null,null,null,null,null,null,null,null,null,null,null,null,null,null,null,null,null,null,null,null,null,null,null,null,null,null,null,null,null,null,null,null,null,null,null,null,null,null,null,null,null,null,null,null,null,null,null,null,null,null,null,0,0]
[null,null,"Proposta ou Factura",null,null,null,null,null,null,null,null,null,null,null,null,null,null,null,null,null,null,null,null,null,null,null,null,null,null,null,null,null,null,null,null,null,null,null,null,null,null,null,null,null,null,null,null,null,null,null,null,null,null,null,null,null,null,null,null,null,null,null,null,null,null,null,null,null,null,null,null,null,null,null,null,null,null,0,0]
["VGS","Pisc Mun","Previsão ANQIP",{"$f":"(65+9)*1.1","v":81.400000000000006},null,null,null,null,null,null,null,9.9,8,null,null,null,null,null,null,null,null,{"$f":"38*1.2","v":45.6},9,null,null,null,null,null,null,null,null,null,null,5,12,null,null,null,null,null,null,null,null,null,null,null,null,null,null,82.5,17,null,null,null,null,null,null,null,null,null,null,null,null,null,null,null,null,null,null,null,null,null,null,null,null,null,null,1952.1000000000001,2401.0830000000001]
[null,null,"Proposta ou Factura",54.71,18,null,null,51.6,11,59.07,8,null,null,null,null,null,null,null,null,null,null,10,20,null,null,47.6,1,null,null,null,null,null,null,null,null,null,null,null,null,null,null,null,null,null,null,null,null,null,null,null,null,null,null,30.91,19,29.06,19,38.44,19,null,null,null,null,null,null,null,null,null,null,null,null,null,null,null,null,null,null,4142.33,5095.0658999999996]
[null,"Pavilhão","Previsão ANQIP",null,null,null,null,null,null,null,null,null,null,null,null,null,null,{"$f":"4.5*1.1","v":4.95},36,{"$f":"2.08*1.2","v":2.496},51,null,null,null,null,null,null,null,null,null,null,null,null,null,null,null,null,null,null,null,null,null,null,null,null,null,null,null,null,null,null,null,null,null,null,null,null,null,null,null,null,null,null,{"$f":"30.3*1.2","v":36.36},57,null,null,null,null,null,null,null,null,null,null,null,null,2378.0160000000001,2924.9596799999999]
[null,null,"Proposta ou Factura",null,null,null,null,null,null,null,null,null,null,null,null,null,null,null,null,null,null,null,null,null,null,null,null,null,null,null,null,null,null,null,null,null,null,null,null,null,null,null,null,null,null,null,null,null,null,null,null,null,null,null,null,null,null,null,null,null,null,null,null,null,null,null,null,null,null,null,null,null,null,null,null,null,null,0,0]
[null,"CE Vagos","Previsão ANQIP",null,null,null,null,null,null,null,null,null,null,null,null,null,null,null,null,null,null,null,null,null,null,null,null,null,null,null,null,null,null,null,null,null,null,null,null,null,null,null,null,null,null,null,null,null,null,null,null,null,null,null,null,null,null,null,null,null,null,null,null,null,null,null,null,null,null,null,null,null,null,null,null,null,null,0,0]
[null,null,"Proposta ou Factura",null,null,null,null,null,null,null,null,null,null,null,null,null,null,null,null,null,null,null,null,null,null,null,null,null,null,null,null,null,null,null,null,null,null,null,null,null,null,null,null,null,null,null,null,null,null,null,null,null,null,null,null,null,null,null,null,null,null,null,null,null,null,null,null,null,null,null,null,null,null,null,null,null,null,0,0]
["UA","Reitoria","Previsão ANQIP",null,null,null,null,null,null,null,null,9.9,40,null,null,null,null,null,null,null,null,45.6,9,null,null,null,null,null,null,null,null,null,null,null,null,2.5,29,null,null,null,null,null,null,null,null,null,null,null,null,null,null,null,null,null,null,null,null,null,null,null,null,null,null,null,null,null,null,null,null,null,null,null,null,null,null,null,null,878.90000000000009,1081.047]
[null,null,"Proposta ou Factura",null,null,null,null,null,null,null,null,null,null,null,null,null,null,null,null,null,null,null,null,null,null,null,null,null,null,null,null,null,null,null,null,null,null,null,null,null,null,null,null,null,null,null,null,null,null,null,null,null,null,null,null,null,null,null,null,null,null,null,null,null,null,null,null,null,null,null,null,null,null,null,null,null,null,0,0]
[]
[null,null,"Valor Médio só ANQIP",{"$f":"(D3+D5+D7+D9+D11+D13+D15+D17+D19+D21+D23+D25+D27+D29+D31+D33+D35+D37+D39+D41+D43+D45+D47+D49+D51+D53+D55+D57+D59+D61+D63)/COUNT(D3,D5,D7,D9,D11,D13,D15,D17,D19,D21,D23,D25,D27,D29,D31,D33,D35,D37,D39,D41,D43,D45,D47,D49,D51,D53,D55,D57,D59,D61,D63)","v":54.870588235294107},{"$f":"(E3+E5+E7+E9+E11+E13+E15+E17+E19+E21+E23+E25+E27+E29+E31+E33+E35+E37+E39+E41+E43+E45+E47+E49+E51+E53+E55+E57+E59+E61+E63)/COUNT(E3,E5,E7,E9,E11,E13,E15,E17,E19,E21,E23,E25,E27,E29,E31,E33,E35,E37,E39,E41,E43,E45,E47,E49,E51,E53,E55,E57,E59,E61,E63)","v":16.1875},{"$error":"#DIV/0!"},{"$error":"#DIV/0!"},{"$f":"(H3+H5+H7+H9+H11+H13+H15+H17+H19+H21+H23+H25+H27+H29+H31+H33+H35+H37+H39+H41+H43+H45+H47+H49+H51+H53+H55+H57+H59+H61+H63)/COUNT(H3,H5,H7,H9,H11,H13,H15,H17,H19,H21,H23,H25,H27,H29,H31,H33,H35,H37,H39,H41,H43,H45,H47,H49,H51,H53,H55,H57,H59,H61,H63)","v":{"$error":"#DIV/0!"}},{"$error":"#DIV/0!"},{"$error":"#DIV/0!"},{"$error":"#DIV/0!"},8.1400000000000023,24.133333333333333,46.2,3,9.9,3.5,4.95,36,2.496,51,25.693750000000005,11.25,77,4,46.2,3,46.2,12.5,45.6,5,84,20,5,12,2.5,29,9,16,17.5,18.333333333333332,14.85,14.5,{"$f":"(AR3+AR5+AR7+AR9+AR11+AR13+AR15+AR17+AR19+AR21+AR23+AR25+AR27+AR29+AR31+AR33+AR35+AR37+AR39+AR41+AR43+AR45+AR47+AR49+AR51+AR53+AR55+AR57+AR59+AR61+AR63)/COUNT(AR3,AR5,AR7,AR9,AR11,AR13,AR15,AR17,AR19,AR21,AR23,AR25,AR27,AR29,AR31,AR33,AR35,AR37,AR39,AR41,AR43,AR45,AR47,AR49,AR51,AR53,AR55,AR57,AR59,AR61,AR63)","v":96},2,82.5,32,82.5,8,{"$f":"(AX3+AX5+AX7+AX9+AX11+AX13+AX15+AX17+AX19+AX21+AX23+AX25+AX27+AX29+AX31+AX33+AX35+AX37+AX39+AX41+AX43+AX45+AX47+AX49+AX51+AX53+AX55+AX57+AX59+AX61+AX63)/COUNT(AX3,AX5,AX7,AX9,AX11,AX13,AX15,AX17,AX19,AX21,AX23,AX25,AX27,AX29,AX31,AX33,AX35,AX37,AX39,AX41,AX43,AX45,AX47,AX49,AX51,AX53,AX55,AX57,AX59,AX61,AX63)","v":82.5},{"$f":"(AY3+AY5+AY7+AY9+AY11+AY13+AY15+AY17+AY19+AY21+AY23+AY25+AY27+AY29+AY31+AY33+AY35+AY37+AY39+AY41+AY43+AY45+AY47+AY49+AY51+AY53+AY55+AY57+AY59+AY61+AY63)/COUNT(AY3,AY5,AY7,AY9,AY11,AY13,AY15,AY17,AY19,AY21,AY23,AY25,AY27,AY29,AY31,AY33,AY35,AY37,AY39,AY41,AY43,AY45,AY47,AY49,AY51,AY53,AY55,AY57,AY59,AY61,AY63)","v":17},66,6,{"$error":"#DIV/0!"},{"$error":"#DIV/0!"},{"$error":"#DIV/0!"},{"$error":"#DIV/0!"},{"$error":"#DIV/0!"},{"$error":"#DIV/0!"},38.5,3,37.950000000000003,20,36.33,30.5,1616.6666666666667,1,1166.01,{"$f":"(BQ3+BQ5+BQ7+BQ9+BQ11+BQ13+BQ15+BQ17+BQ19+BQ21+BQ23+BQ25+BQ27+BQ29+BQ31+BQ33+BQ35+BQ37+BQ39+BQ41+BQ43+BQ45+BQ47+BQ49+BQ51+BQ53+BQ55+BQ57+BQ59+BQ61+BQ63)/COUNT(BQ3,BQ5,BQ7,BQ9,BQ11,BQ13,BQ15,BQ17,BQ19,BQ21,BQ23,BQ25,BQ27,BQ29,BQ31,BQ33,BQ35,BQ37,BQ39,BQ41,BQ43,BQ45,BQ47,BQ49,BQ51,BQ53,BQ55,BQ57,BQ59,BQ61,BQ63)","v":1},8.5,1,8.5,5,6,21,6,21,{"$f":"(BZ3+BZ9+BZ15+BZ21+BZ27+BZ33+BZ39+BZ45+BZ51+BZ57+BZ63)/COUNT(BZ3,BZ9,BZ15,BZ21,BZ27,BZ33,BZ39,BZ45,BZ51,BZ57,BZ63)","v":2830.8918181818185},3481.9969363636355]
[null,null,"Valor Médio só Empresas",{"$f":"(D4+D6+D8+D10+D12+D14+D16+D18+D20+D22+D24+D26+D28+D30+D32+D34+D36+D38+D40+D42+D44+D46+D48+D50+D52+D54+D56+D58+D60+D62+D64)/COUNT(D4,D6,D8,D10,D12,D14,D16,D18,D20,D22,D24,D26,D28,D30,D32,D34,D36,D38,D40,D42,D44,D46,D48,D50,D52,D54,D56,D58,D60,D62,D64)","v":85.941666666666663},{"$f":"(E4+E6+E8+E10+E12+E14+E16+E18+E20+E22+E24+E26+E28+E30+E32+E34+E36+E38+E40+E42+E44+E46+E48+E50+E52+E54+E56+E58+E60+E62+E64)/COUNT(E4,E6,E8,E10,E12,E14,E16,E18,E20,E22,E24,E26,E28,E30,E32,E34,E36,E38,E40,E42,E44,E46,E48,E50,E52,E54,E56,E58,E60,E62,E64)","v":19.333333333333332},30.995999999999999,12,51.6,11,59.07,8,12.240333333333334,31.666666666666668,{"$error":"#DIV/0!"},{"$error":"#DIV/0!"},{"$error":"#DIV/0!"},{"$error":"#DIV/0!"},{"$error":"#DIV/0!"},{"$error":"#DIV/0!"},{"$error":"#DIV/0!"},{"$error":"#DIV/0!"},42.087249999999997,16,50.6,4,49.1,2,60,12.5,60,5,79.010000000000005,20,{"$error":"#DIV/0!"},{"$error":"#DIV/0!"},{"$error":"#DIV/0!"},{"$error":"#DIV/0!"},{"$error":"#DIV/0!"},{"$error":"#DIV/0!"},35.25,26.5,{"$error":"#DIV/0!"},{"$error":"#DIV/0!"},40,2,115,32,90.52,8,{"$f":"(AX4+AX6+AX8+AX10+AX12+AX14+AX16+AX18+AX20+AX22+AX24+AX26+AX28+AX30+AX32+AX34+AX36+AX38+AX40+AX42+AX44+AX46+AX48+AX50+AX52+AX54+AX56+AX58+AX60+AX62+AX64)/COUNT(AX4,AX6,AX8,AX10,AX12,AX14,AX16,AX18,AX20,AX22,AX24,AX26,AX28,AX30,AX32,AX34,AX36,AX38,AX40,AX42,AX44,AX46,AX48,AX50,AX52,AX54,AX56,AX58,AX60,AX62,AX64)","v":{"$error":"#DIV/0!"}},{"$f":"(AY4+AY6+AY8+AY10+AY12+AY14+AY16+AY18+AY20+AY22+AY24+AY26+AY28+AY30+AY32+AY34+AY36+AY38+AY40+AY42+AY44+AY46+AY48+AY50+AY52+AY54+AY56+AY58+AY60+AY62+AY64)/COUNT(AY4,AY6,AY8,AY10,AY12,AY14,AY16,AY18,AY20,AY22,AY24,AY26,AY28,AY30,AY32,AY34,AY36,AY38,AY40,AY42,AY44,AY46,AY48,AY50,AY52,AY54,AY56,AY58,AY60,AY62,AY64)","v":{"$error":"#DIV/0!"}},85.8,6,30.91,19,29.06,19,38.44,19,44.28,3,89,20,59,4,1750,1,3485,{"$f":"(BQ4+BQ6+BQ8+BQ10+BQ12+BQ14+BQ16+BQ18+BQ20+BQ22+BQ24+BQ26+BQ28+BQ30+BQ32+BQ34+BQ36+BQ38+BQ40+BQ42+BQ44+BQ46+BQ48+BQ50+BQ52+BQ54+BQ56+BQ58+BQ60+BQ62+BQ64)/COUNT(BQ4,BQ6,BQ8,BQ10,BQ12,BQ14,BQ16,BQ18,BQ20,BQ22,BQ24,BQ26,BQ28,BQ30,BQ32,BQ34,BQ36,BQ38,BQ40,BQ42,BQ44,BQ46,BQ48,BQ50,BQ52,BQ54,BQ56,BQ58,BQ60,BQ62,BQ64)","v":1},{"$error":"#DIV/0!"},{"$error":"#DIV/0!"},20.7,5,{"$error":"#DIV/0!"},{"$error":"#DIV/0!"},680,1,{"$f":"(BZ4+BZ10+BZ16+BZ22+BZ28+BZ34+BZ40+BZ46+BZ52+BZ58+BZ64)/COUNT(BZ4,BZ10,BZ16,BZ22,BZ28,BZ34,BZ40,BZ46,BZ52,BZ58,BZ64)","v":3567.5859090909098},4388.1306681818178]
[null,null,"Valor Médio ANQIP+Empresas",{"$f":"SUM(D3:D64)/COUNT(D3:D64)","v":62.97608695652174},{"$f":"SUM(E3:E64)/COUNT(E3:E64)","v":17.045454545454547},30.995999999999999,12,{"$f":"SUM(H3:H64)/COUNT(H3:H64)","v":51.6},{"$f":"SUM(I3:I64)/COUNT(I3:I64)","v":11},{"$f":"SUM(J3:J64)/COUNT(J3:J64)","v":59.07},{"$f":"SUM(K3:K64)/COUNT(K3:K64)","v":8},8.8233888888888909,25.388888888888889,46.2,3,9.9,3.5,4.95,36,2.496,51,28.972450000000002,12.2,63.8,4,48.133333333333333,2.3333333333333335,53.1,12.5,52.8,5,81.504999999999995,20,5,12,2.5,29,9,16,24.6,21.6,14.85,14.5,{"$f":"SUM(AR3:AR64)/COUNT(AR3:AR64)","v":68},{"$f":"SUM(AS3:AS64)/COUNT(AS3:AS64)","v":2},{"$f":"SUM(AT3:AT64)/COUNT(AT3:AT64)","v":98.75},{"$f":"SUM(AU3:AU64)/COUNT(AU3:AU64)","v":32},{"$f":"SUM(AV3:AV64)/COUNT(AV3:AV64)","v":86.509999999999991},8,{"$f":"SUM(AX3:AX64)/COUNT(AX3:AX64)","v":82.5},{"$f":"SUM(AY3:AY64)/COUNT(AY3:AY64)","v":17},75.900000000000006,6,30.91,19,29.06,19,38.44,19,41.39,3,63.475000000000001,20,43.886666666666663,21.666666666666668,1683.3333333333333,1,2325.5050000000001,{"$f":"SUM(BQ3:BQ64)/COUNT(BQ3:BQ64)","v":1},8.5,1,14.6,5,6,21,343,11,{"$f":"(BZ3+BZ4+BZ9+BZ10+BZ15+BZ16+BZ21+BZ22+BZ27+BZ28+BZ33+BZ34+BZ39+BZ40+BZ45+BZ46+BZ51+BZ52+BZ57+BZ58+BZ63+BZ64)/COUNT(BZ3:BZ64)","v":1135.2137903225805},1396.3129620967743]
[]
[null,null,null,{"$f":"SUM(D68,F68,H68,J68)/4","v":51.160521739130431},null,null,null,null,null,null,null,{"$f":"L68","v":8.8233888888888909},null,{"$f":"N68","v":46.2},null,{"$f":"P68","v":9.9},null,null,null,null,null,{"$f":"V68","v":28.972450000000002},null,{"$f":"(X68+Z68+AB68+AD68)/4","v":54.458333333333329},null,null,null,null,null,null,null,null,null,null,null,null,null,null,null,{"$f":"(AN68+AP68)/2","v":19.725000000000001},null,null,null,{"$f":"(AR68+AT68+AV68+AX68)/4","v":83.94},null,null,null,null,null,null,null,null,null,null,null,null,null,null,null,{"$f":"(BH68+BJ68)/2","v":52.432500000000005}]
[]
[null,null,"Regulação do Mictório",20]

{"sheet":"Apoio","index":21,"n_rows":25,"n_cols":10,"rows_kept":25,"cut":false,"hidden":true,"merged":[[24,2,24,3],[15,2,15,3],[22,2,22,3],[23,2,23,3],[22,0,23,0],[19,0,21,0],[19,1,21,1],[21,2,21,3],[20,2,20,3],[1,0,11,0],[3,1,5,1],[8,4,10,4],[7,1,10,1],[19,2,19,3],[17,2,17,3],[18,2,18,3],[16,2,16,3],[17,0,18,0],[17,1,18,1],[14,2,14,3],[13,2,13,3],[13,0,14,0],[11,2,11,3],[12,2,12,3],[8,2,10,2],[2,2,2,3],[1,2,1,3],[0,2,0,3],[7,2,7,3],[4,4,5,4],[3,2,3,3],[4,2,5,2],[6,2,6,3]]}
["Local","Onde Gasta?","Questões",null,"Valores de Referência",null,"Variáveis","Valores"]
[{"$f":"'Quarto-de-Banho'!G6","v":"Quarto de Banho / Balneário"},{"$f":"'Quarto-de-Banho'!H6","v":"Autoclismo"},"Qual a capacidade/quantidade de água por descarga (em litros)?",null,4.5,null,"Variável Semanas por Mês",{"$f":"H3/7","v":4.3452380952380958}]
[null,{"$f":"'Quarto-de-Banho'!H12","v":"Fluxómetro / Mictório"},"Qual a quantidade de água por descarga (em litros)?",null,2,null,"Variável Dias por Mês",{"$f":"365/12","v":30.416666666666668}]
[null,{"$f":"'Quarto-de-Banho'!H16","v":"Chuveiro / Duche"},"Qual o caudal médio do chuveiro (litros por minuto)?",null,7.2,null,"Mictório",2]
[null,null,"Fecha a água enquanto se ensaboa? ",null,0.75,null,"Fecha Água no Duche/Barba/Mãos/Dentes",0.5]
[null,null,null,null,null,null,"Outras Utilizações Lavatório",2]
[null,{"$f":"'Quarto-de-Banho'!H24","v":"Banho de Imersão"},"Qual o volume aproximado da sua banheira?",null,200,null,"Tempo Lavar Mãos (min)",0.3]
[null,{"$f":"'Quarto-de-Banho'!H32","v":"Lavatório"},"Qual o caudal médio da torneira (litros por minuto)?",null,2,null,"Taxa de Evaporação ((l*m2)/média dias do ano))",3.5]
[null,null,"Se sim, como?",null,2,null,"Taxa de Evaporação ((l*m2)/dias só do Verão))",7]
[null,null,null,null,null,null,"Taxa de Poupança por Uso de Coberturas Isotérmicas",0.8]
[null,null,null,null,null,null,"Pisc Ñ Aquec Ext S/ Cobertura gasta (litros/m2/dia)",3]
[null,{"$f":"'Quarto-de-Banho'!H56","v":"Bidés"},"Qual o caudal médio da torneira que usa (litros por minuto)?",null,2,null,"Pisc Ñ Aquec Ext C/ Cobertura gasta (litros/m2/dia)",{"$f":"(((H11-(H11*H10))))","v":0.59999999999999964}]
[{"$f":"Cozinha!G6","v":"Cozinha"},{"$f":"Cozinha!H6","v":"Lava-louça"},"Qual o caudal médio da torneira que usa (litros por minuto)?",null,4,null,"Pisc Aquec Int S/ Cobertura gasta (litros/m2/dia)",{"$f":"((H11+(H11/2))/2)","v":2.25}]
[{"$f":"Equipamento!G6","v":"Equipamento"},{"$f":"Equipamento!H6","v":"Máquina Lavar Roupa"},"Qual o consumo de Água? (Litros por ciclo de lavagem) (ver Ficha Técnica)",null,6,null,"Pisc Aquec Int C/ Cobertura gasta (litros/m2/dia)",{"$f":"H13-(H13*H10)","v":0.44999999999999996}]
[null,{"$f":"Equipamento!H11","v":"Máquina Lavar Loiça"},"Qual o consumo de água (Litros por Ciclo de Lavagem)? (ver Ficha Técnica)",null,12,null,"Tempo Ideal de Duche (min)",7]
[null,null,{"$f":"Limpeza!I6","v":"Qual o volume de água que se gasta por semana para lavar a sua casa (em litros)?"},null,10,null,"Tempo Ideal de Banho de Imersão (litros)",0]
[{"$f":"Limpeza!G6","v":"Limpeza"},{"$f":"Limpeza!H7","v":"Carro"},"Qual o caudal médio da mangueira que usa (litros por minuto)?",null,15,null,null,"litros/pessoa/dia",null,"Eficiência"]
[{"$f":"'Espaços Verdes'!G6","v":"Jardins / Espaços Verdes"},{"$f":"'Espaços Verdes'!H6","v":"Rega"},"Caso, regue o seu jardim com Mangueira, qual o caudal médio da mangueira que usa (litros por minuto)?",null,15,null,"Um Consumo Mensal por Pessoa maior do que",201,"é ","Muito Ineficiente"]
[null,null,"Caso, regue o jardim através da Rega Automática,qual o caudal médio (litros por minuto)?",null,1,null,"Um Consumo Mensal por Pessoa entre 161 e",200,"é","Ineficiente"]
[{"$f":"Piscina!G6","v":"Piscina"},{"$f":"Piscina!H6","v":"Tanque"},"Quantas vezes muda a água da piscina por ano?",null,7.2,null,"Um Consumo Mensal por Pessoa entre 121 e",160,"é","Normal"]
[null,null,"Se é Pública, qual a taxa de renovação diária? (em percentagem)",null,2,null,"Um Consumo Mensal por Pessoa entre 81 e",120,"é","Eficiente"]
[null,null,"Qual o consumo minimo? m3",null,null,null,"Um Consumo Mensal por Pessoa menor do que",80,"é","Muito Eficiente"]
[{"$f":"Outros!G6","v":"Outros"},{"$f":"Outros!H6","v":"Lago"},{"$f":"Outros!I10","v":""},null,0.25]
[null,"AVAC",{"$f":"Outros!I16","v":""},null,0.5]
[null,null,"Qual a percentagem da água gasta na Limpeza da Casa (%)?",null,0.02]

{"sheet":"ApoioAdRA","index":22,"n_rows":66,"n_cols":31,"rows_kept":66,"cut":false,"hidden":true,"merged":[[53,11,54,11],[53,12,54,12],[53,2,54,2],[53,3,54,3],[53,4,54,4],[53,5,54,5],[53,6,54,6],[53,7,54,7],[53,8,54,8],[53,9,54,9],[53,10,54,10],[6,4,6,5],[6,1,6,2],[7,1,7,2],[46,0,46,3],[1,0,1,3],[2,1,2,2],[3,1,3,2],[4,1,4,2],[5,1,5,2],[39,0,39,3],[8,1,8,2],[9,1,9,2],[10,0,10,2],[18,0,18,2],[40,1,40,2],[43,1,43,2],[44,0,44,3],[45,1,45,2],[24,1,24,2],[25,1,25,2],[24,4,24,5],[25,4,25,5],[0,1,0,3],[0,4,0,6],[2,4,2,5],[3,4,3,5],[4,4,4,5],[5,4,5,5],[9,13,9,14],[2,19,2,20],[3,19,3,20],[4,19,4,20],[5,19,5,20],[6,19,6,20],[7,19,7,20],[8,19,8,20],[9,19,9,20],[0,19,0,21],[9,4,9,5],[7,4,7,5],[8,4,8,5],[0,7,0,9],[0,10,0,12],[0,13,0,15],[0,16,0,18],[5,7,5,8],[0,22,0,24],[0,25,0,27],[2,7,2,8],[3,7,3,8],[4,7,4,8],[3,13,3,14],[4,13,4,14],[2,16,2,17],[3,16,3,17],[4,16,4,17],[2,22,2,23],[3,22,3,23],[4,22,4,23],[2,13,2,14],[24,7,24,8],[25,7,25,8],[2,10,2,11],[3,10,3,11],[4,10,4,11],[24,13,24,14],[25,13,25,14],[6,7,6,8],[7,7,7,8],[8,7,8,8],[9,7,9,8],[9,25,9,26],[24,16,24,17],[25,16,25,17],[5,10,5,11],[6,10,6,11],[7,10,7,11],[8,10,8,11],[9,10,9,11],[24,19,24,20],[25,19,25,20],[24,10,24,11],[25,10,25,11],[5,16,5,17],[6,16,6,17],[7,16,7,17],[8,16,8,17],[9,16,9,17],[5,22,5,23],[6,22,6,23],[7,22,7,23],[5,13,5,14],[6,13,6,14],[7,13,7,14],[8,13,8,14],[25,28,25,29],[8,22,8,23],[9,22,9,23],[24,22,24,23],[25,22,25,23],[0,28,0,30],[24,25,24,26],[25,25,25,26],[2,28,2,29],[3,28,3,29],[4,28,4,29],[5,28,5,29],[6,28,6,29],[7,28,7,29],[24,28,24,29],[8,28,8,29],[9,28,9,29],[2,25,2,26],[3,25,3,26],[4,25,4,26],[5,25,5,26],[6,25,6,26],[7,25,7,26],[8,25,8,26]]}
[null,"Aveiro",null,null,"Águeda",null,null,"Albergaria-a-Velha",null,null,"Estarreja",null,null,"Ílhavo",null,null,"Murtosa",null,null,"OLB",null,null,"OVR",null,null,"SVG",null,null,"VGS"]
[]
["Abastecimento de Água (Tarifa Variável) (Utilizador do Tipo Doméstico)","Valores (€)",null,"Valor Máximo por Escalão (€)","Valores (€)",null,"Valor Máximo por Escalão (€)","Valores (€)",null,"Valor Máximo por Escalão (€)","Valores (€)",null,"Valor Máximo por Escalão (€)","Valores (€)",null,"Valor Máximo por Escalão (€)","Valores (€)",null,"Valor Máximo por Escalão (€)","Valores (€)",null,"Valor Máximo por Escalão (€)","Valores (€)",null,"Valor Máximo por Escalão (€)","Valores (€)",null,"Valor Máximo por Escalão (€)","Valores (€)",null,"Valor Máximo por Escalão (€)"]
["Valor do m3 do 1ºEscalão (<5 m3)",0.57140000000000002,null,{"$f":"B4*5","v":2.8570000000000002},{"$f":"B4","v":0.57140000000000002},null,{"$f":"E4*5","v":2.8570000000000002},{"$f":"E4","v":0.57140000000000002},null,{"$f":"H4*5","v":2.8570000000000002},{"$f":"H4","v":0.57140000000000002},null,{"$f":"K4*5","v":2.8570000000000002},{"$f":"K4","v":0.57140000000000002},null,{"$f":"N4*5","v":2.8570000000000002},{"$f":"N4","v":0.57140000000000002},null,{"$f":"Q4*5","v":2.8570000000000002},{"$f":"Q4","v":0.57140000000000002},null,{"$f":"T4*5","v":2.8570000000000002},0.57140000000000002,null,{"$f":"W4*5","v":2.8570000000000002},{"$f":"W4","v":0.57140000000000002},null,{"$f":"Z4*5","v":2.8570000000000002},{"$f":"Z4","v":0.57140000000000002},null,{"$f":"AC4*5","v":2.8570000000000002}]
["Valor do m3 do 2ºEscalão (5-15 m3)",0.89159999999999995,null,{"$f":"B5*10","v":8.9160000000000004},0.89159999999999995,null,{"$f":"E5*10","v":8.9160000000000004},0.89159999999999995,null,{"$f":"H5*10","v":8.9160000000000004},0.89159999999999995,null,{"$f":"K5*10","v":8.9160000000000004},0.89159999999999995,null,{"$f":"N5*10","v":8.9160000000000004},0.89159999999999995,null,{"$f":"Q5*10","v":8.9160000000000004},0.89159999999999995,null,{"$f":"T5*10","v":8.9160000000000004},0.89159999999999995,null,{"$f":"W5*10","v":8.9160000000000004},0.89159999999999995,null,{"$f":"Z5*10","v":8.9160000000000004},0.89159999999999995,null,{"$f":"AC5*10","v":8.9160000000000004}]
["Valor do m3 do 3ºEscalão (15-25 m3)",1.5301,null,{"$f":"B6*10","v":15.301},1.5301,null,{"$f":"E6*10","v":15.301},1.5301,null,{"$f":"H6*10","v":15.301},1.5301,null,{"$f":"K6*10","v":15.301},1.5301,null,{"$f":"N6*10","v":15.301},1.5301,null,{"$f":"Q6*10","v":15.301},1.5301,null,{"$f":"T6*10","v":15.301},1.5301,null,{"$f":"W6*10","v":15.301},1.5301,null,{"$f":"Z6*10","v":15.301},1.5301,null,{"$f":"AC6*10","v":15.301}]
["Valor do m3 do 4ºEscalão (>25 m3)",1.8579000000000001,null,null,1.8579000000000001,null,null,1.8579000000000001,null,null,1.8579000000000001,null,null,1.8579000000000001,null,null,1.8579000000000001,null,null,1.8579000000000001,null,null,1.8579000000000001,null,null,1.8579000000000001,null,null,1.8579000000000001]
["Utilizadores do Tipo Não Doméstico",1.7049000000000001,null,null,1.7049000000000001,null,null,1.7049000000000001,null,null,1.7049000000000001,null,null,1.7049000000000001,null,null,1.7049000000000001,null,null,1.7049000000000001,null,null,1.7049000000000001,null,null,1.7049000000000001,null,null,1.7049000000000001]
["Instituições particulares sens fins lucrativos (ISFL)",0.87429999999999997,null,null,0.87429999999999997,null,null,0.87429999999999997,null,null,0.87429999999999997,null,null,0.87429999999999997,null,null,0.87429999999999997,null,null,0.87429999999999997,null,null,0.87429999999999997,null,null,0.87429999999999997,null,null,0.87429999999999997]
["Autarquias Locais",0.87429999999999997,null,null,0.87429999999999997,null,null,0.87429999999999997,null,null,0.87429999999999997,null,null,0.87429999999999997,null,null,0.87429999999999997,null,null,0.87429999999999997,null,null,0.87429999999999997,null,null,0.87429999999999997,null,null,0.87429999999999997]
[]
["Abastecimento de Água (Tarifa Fixa) (Utilizador do Tipo Doméstico)","Valores (€/mês)","Valores (€/dia)",null,"Valores (€/mês)","Valores (€/dia)",null,"Valores (€/mês)","Valores (€/dia)",null,"Valores (€/mês)","Valores (€/dia)",null,"Valores (€/mês)","Valores (€/dia)",null,"Valores (€/mês)","Valores (€/dia)",null,"Valores (€/mês)","Valores (€/dia)",null,"Valores (€/mês)","Valores (€/dia)",null,"Valores (€/mês)","Valores (€/dia)",null,"Valores (€/mês)","Valores (€/dia)"]
["Calibre 1 (<25 mm)",5.38,{"$f":"B13/$B$44","v":0.17674113009198422},null,{"$f":"B13","v":5.38},{"$f":"E13/$B$44","v":0.17674113009198422},null,{"$f":"E13","v":5.38},{"$f":"H13/$B$44","v":0.17674113009198422},null,{"$f":"H13","v":5.38},{"$f":"K13/$B$44","v":0.17674113009198422},null,{"$f":"K13","v":5.38},{"$f":"N13/$B$44","v":0.17674113009198422},null,{"$f":"N13","v":5.38},{"$f":"Q13/$B$44","v":0.17674113009198422},null,{"$f":"Q13","v":5.38},{"$f":"T13/$B$44","v":0.17674113009198422},null,{"$f":"T13","v":5.38},{"$f":"W13/$B$44","v":0.17674113009198422},null,{"$f":"W13","v":5.38},{"$f":"Z13/$B$44","v":0.17674113009198422},null,{"$f":"Z13","v":5.38},{"$f":"AC13/$B$44","v":0.17674113009198422}]
["Calibre 2 (>25 <30 mm)",23.91,0.78547963206307492,null,23.91,0.78547963206307492,null,23.91,0.78547963206307492,null,23.91,0.78547963206307492,null,23.91,0.78547963206307492,null,23.91,0.78547963206307492,null,23.91,0.78547963206307492,null,23.91,0.78547963206307492,null,23.91,0.78547963206307492,null,23.91,0.78547963206307492]
["Calibre 3 (>30 <50 mm)",56.78,1.8653088042049935,null,56.78,1.8653088042049935,null,56.78,1.8653088042049935,null,56.78,1.8653088042049935,null,56.78,1.8653088042049935,null,56.78,1.8653088042049935,null,56.78,1.8653088042049935,null,56.78,1.8653088042049935,null,56.78,1.8653088042049935,null,56.78,1.8653088042049935]
["Calibre 4 (>50 <100 mm)",83.67,2.7486859395532193,null,83.67,2.7486859395532193,null,83.67,2.7486859395532193,null,83.67,2.7486859395532193,null,83.67,2.7486859395532193,null,83.67,2.7486859395532193,null,83.67,2.7486859395532193,null,83.67,2.7486859395532193,null,83.67,2.7486859395532193,null,83.67,2.7486859395532193]
["Calibre 5 (>100 <300 mm)",125.51,4.1231931668856765,null,125.51,4.1231931668856765,null,125.51,4.1231931668856765,null,125.51,4.1231931668856765,null,125.51,4.1231931668856765,null,125.51,4.1231931668856765,null,125.51,4.1231931668856765,null,125.51,4.1231931668856765,null,125.51,4.1231931668856765,null,125.51,4.1231931668856765]
["Calibre 6 (>300 mm)",298.83,9.8170170827858065,null,298.83,9.8170170827858065,null,298.83,9.8170170827858065,null,298.83,9.8170170827858065,null,298.83,9.8170170827858065,null,298.83,9.8170170827858065,null,298.83,9.8170170827858065,null,298.83,9.8170170827858065,null,298.83,9.8170170827858065,null,298.83,9.8170170827858065]
[]
["Utilizador do Tipo Doméstico","Valores (€/mês)","Valores (€/dia)",null,"Valores (€/mês)","Valores (€/dia)",null,"Valores (€/mês)","Valores (€/dia)",null,"Valores (€/mês)","Valores (€/dia)",null,"Valores (€/mês)","Valores (€/dia)",null,"Valores (€/mês)","Valores (€/dia)",null,"Valores (€/mês)","Valores (€/dia)",null,"Valores (€/mês)","Valores (€/dia)",null,"Valores (€/mês)","Valores (€/dia)",null,"Valores (€/mês)","Valores (€/dia)"]
["Saneamento - Tx. Rec. Hídricos (Água) (Tarifa Fixa)",{"$f":"C21*B44","v":5.9540639999999998},0.1956,null,{"$f":"B21","v":5.9540639999999998},{"$f":"C21","v":0.1956},null,{"$f":"E21","v":5.9540639999999998},{"$f":"F21","v":0.1956},null,{"$f":"H21","v":5.9540639999999998},{"$f":"I21","v":0.1956},null,{"$f":"K21","v":5.9540639999999998},{"$f":"L21","v":0.1956},null,{"$f":"N21","v":5.9540639999999998},{"$f":"O21","v":0.1956},null,{"$f":"Q21","v":5.9540639999999998},{"$f":"R21","v":0.1956},null,{"$f":"T21","v":5.9540639999999998},{"$f":"U21","v":0.1956},null,{"$f":"W21","v":5.9540639999999998},{"$f":"X21","v":0.1956},null,4.92,{"$f":"AC21/B44","v":0.16162943495400789}]
["Cobrança Outras Entidades - Tx. Rec. Hídricos (Água) ",{"$f":"C22*B44","v":0},0,null,{"$f":"F22*30.44","v":1.0197400000000001},{"$f":"0.0335","v":3.3500000000000002E-2},null,{"$f":"I22*30.42","v":1.0190700000000001},{"$f":"0.0335","v":3.3500000000000002E-2},null,{"$f":"L22*30.44","v":1.0197400000000001},{"$f":"0.0335","v":3.3500000000000002E-2},null,{"$f":"O22*30.44","v":1.0197400000000001},{"$f":"0.0335","v":3.3500000000000002E-2},null,{"$f":"R22*30.44","v":1.0197400000000001},{"$f":"0.0335","v":3.3500000000000002E-2},null,{"$f":"U22*30.44","v":1.044092},{"$f":"0.0343","v":3.4299999999999997E-2},null,{"$f":"X22*30.44","v":1.0197400000000001},{"$f":"0.0335","v":3.3500000000000002E-2},null,{"$f":"AA22*30.44","v":1.0197400000000001},{"$f":"0.0335","v":3.3500000000000002E-2},null,{"$f":"AD22*30.44","v":1.0197400000000001},{"$f":"0.0335","v":3.3500000000000002E-2}]
["Cobrança Outras Entidades - Tx. Rec. Hídricos (SAN) ",{"$f":"C23*B44","v":0},0,null,{"$f":"F23*30.44","v":0.46573199999999998},1.5299999999999999E-2,null,{"$f":"I23*30.42","v":0.46542600000000001},1.5299999999999999E-2,null,{"$f":"L23*30.44","v":0.46573199999999998},1.5299999999999999E-2,null,{"$f":"O23*30.44","v":0.46573199999999998},1.5299999999999999E-2,null,{"$f":"R23*30.44","v":0.46573199999999998},1.5299999999999999E-2,null,{"$f":"U23*30.44","v":0.52052399999999999},1.7100000000000001E-2,null,{"$f":"X23*30.44","v":0.46573199999999998},1.5299999999999999E-2,null,{"$f":"AA23*30.44","v":0.46573199999999998},1.5299999999999999E-2,null,{"$f":"AD23*30.44","v":0.46573199999999998},1.5299999999999999E-2]
["Cobrança Outras Entidades - RSU Fixo",{"$f":"C24*B44","v":10.459184},0.34360000000000002,null,{"$f":"F24*30.44","v":3.503644},0.11509999999999999,null,{"$f":"I24*30.42","v":3.5013420000000002},0.11509999999999999,null,{"$f":"L24*30.44","v":3.503644},0.11509999999999999,null,{"$f":"O24*30.44","v":3.503644},0.11509999999999999,null,{"$f":"R24*30.44","v":3.503644},0.11509999999999999,null,{"$f":"U24*30.44","v":3.7136800000000001},0.122,null,{"$f":"X24*30.44","v":3.503644},0.11509999999999999,null,{"$f":"AA24*30.44","v":3.503644},0.11509999999999999,null,{"$f":"AD24*30.44","v":3.503644},0.11509999999999999]
["Saneamento (Tarifa Variável)",0.9,null,null,0.9,null,null,0.9,null,null,0.9,null,null,0.9,null,null,0.9,null,null,0.9,null,null,0.9,null,null,0.9,null,null,0.9]
["Cobrança Outras Entidades - RSU Variável (Valor por m3 consumido)",0.9,null,null,0.45,null,null,0.45,null,null,0.45,null,null,0.45,null,null,0.45,null,null,0.45,null,null,0.45,null,null,0.45,null,null,0.45]
[]
[{"$f":"IF(Síntese!$D$128=D35,D35,\"\")","v":{"$error":"#DIV/0!"}}]
[{"$f":"IF(Síntese!$D$128=D36,D36,\"\")","v":{"$error":"#DIV/0!"}}]
[{"$f":"IF(Síntese!$D$128=D37,D37,\"\")","v":{"$error":"#DIV/0!"}}]
[{"$f":"IF(Síntese!$D$128=D38,D38,\"\")","v":{"$error":"#DIV/0!"}}]
[{"$f":"IF(Síntese!$D$128=D39,D39,\"\")","v":{"$error":"#DIV/0!"}}]
[]
[null,"litros/pessoa/dia",null,"Eficiência"]
["Um Consumo Mensal por Pessoa maior do que",201,"é ","Muito Ineficiente"]
["Um Consumo Mensal por Pessoa entre 161 e",200,"é","Ineficiente"]
["Um Consumo Mensal por Pessoa entre 121 e",160,"é","Normal"]
["Um Consumo Mensal por Pessoa entre 81 e",120,"é","Eficiente"]
["Um Consumo Mensal por Pessoa menor do que",80,"é","Muito Eficiente"]
[]
["N.º de Meses",{"$f":"Início!T14/D44","v":1}]
["N.º de Meses Inteiros",{"$f":"INT(B41)","v":1},{"$f":"IF(B42=1,\"mês e\",IF(B42>1,\"meses e\",\"\"))","v":"mês e"}]
["N.º de Dias",{"$f":"ROUNDDOWN((B41-B42)*D44,4)","v":0},"dias"]
["Dias por Mês",30.44,null,30]
[]
["IVA",0.06]
[]
["Consumo m3/em cada um dos dias do mês",{"$f":"'Real vs Simulado'!E24/D44","v":0}]
["m3/por todos os dias",{"$f":"'Real vs Simulado'!E24/ApoioAdRA!D44","v":0},{"$f":"ROUNDUP($B$43*$B$49,1)","v":0}]
[]
[]
[]
[]
[null,null,null,null,"1Escalão","2Escalão","3Escalão","4Escalão",{"$f":"A21","v":"Saneamento - Tx. Rec. Hídricos (Água) (Tarifa Fixa)"},{"$f":"A22","v":"Cobrança Outras Entidades - Tx. Rec. Hídricos (Água) "},{"$f":"A23","v":"Cobrança Outras Entidades - Tx. Rec. Hídricos (SAN) "},{"$f":"A24","v":"Cobrança Outras Entidades - RSU Fixo"},{"$f":"A26","v":"Cobrança Outras Entidades - RSU Variável (Valor por m3 consumido)"}]
[]
[null,null,1]
[null,null,2,"AGD",{"$f":"E59","v":0.57140000000000002},{"$f":"F59","v":0.89159999999999995},{"$f":"G59","v":1.5301},{"$f":"H59","v":1.8579000000000001},{"$f":"F21","v":0.1956},{"$f":"F22","v":3.3500000000000002E-2},{"$f":"F23","v":1.5299999999999999E-2},{"$f":"F24","v":0.11509999999999999},{"$f":"E26","v":0.45}]
[null,null,3,"ALB",{"$f":"E59","v":0.57140000000000002},{"$f":"F59","v":0.89159999999999995},{"$f":"G59","v":1.5301},{"$f":"H59","v":1.8579000000000001},{"$f":"I21","v":0.1956},{"$f":"I22","v":3.3500000000000002E-2},{"$f":"I23","v":1.5299999999999999E-2},{"$f":"I24","v":0.11509999999999999},{"$f":"H26","v":0.45}]
[null,null,4,"AVR",{"$f":"B4","v":0.57140000000000002},{"$f":"B5","v":0.89159999999999995},{"$f":"B6","v":1.5301},{"$f":"B7","v":1.8579000000000001},{"$f":"C21","v":0.1956},{"$f":"C22","v":0},{"$f":"C23","v":0},{"$f":"C24","v":0.34360000000000002},{"$f":"B26","v":0.9}]
[null,null,5,"EST",{"$f":"E59","v":0.57140000000000002},{"$f":"F59","v":0.89159999999999995},{"$f":"G59","v":1.5301},{"$f":"H59","v":1.8579000000000001},{"$f":"L21","v":0.1956},{"$f":"L22","v":3.3500000000000002E-2},{"$f":"L23","v":1.5299999999999999E-2},{"$f":"L24","v":0.11509999999999999},{"$f":"K26","v":0.45}]
[null,null,6,"ILH",{"$f":"E59","v":0.57140000000000002},{"$f":"F59","v":0.89159999999999995},{"$f":"G59","v":1.5301},{"$f":"H59","v":1.8579000000000001},{"$f":"O21","v":0.1956},{"$f":"O22","v":3.3500000000000002E-2},{"$f":"O23","v":1.5299999999999999E-2},{"$f":"O24","v":0.11509999999999999},{"$f":"N26","v":0.45}]
[null,null,7,"MTS",{"$f":"E59","v":0.57140000000000002},{"$f":"F59","v":0.89159999999999995},{"$f":"G59","v":1.5301},{"$f":"H59","v":1.8579000000000001},{"$f":"R21","v":0.1956},{"$f":"R22","v":3.3500000000000002E-2},{"$f":"R23","v":1.5299999999999999E-2},{"$f":"R24","v":0.11509999999999999},{"$f":"Q26","v":0.45}]
[null,null,8,"OLB",{"$f":"E59","v":0.57140000000000002},{"$f":"F59","v":0.89159999999999995},{"$f":"G59","v":1.5301},{"$f":"H59","v":1.8579000000000001},{"$f":"U21","v":0.1956},{"$f":"U22","v":3.4299999999999997E-2},{"$f":"U23","v":1.7100000000000001E-2},{"$f":"U24","v":0.122},{"$f":"T26","v":0.45}]
[null,null,9,"OVR",{"$f":"E59","v":0.57140000000000002},{"$f":"F59","v":0.89159999999999995},{"$f":"G59","v":1.5301},{"$f":"H59","v":1.8579000000000001},{"$f":"X21","v":0.1956},{"$f":"X22","v":3.3500000000000002E-2},{"$f":"X23","v":1.5299999999999999E-2},{"$f":"X24","v":0.11509999999999999},{"$f":"W26","v":0.45}]
[null,null,10,"SVG",{"$f":"E59","v":0.57140000000000002},{"$f":"F59","v":0.89159999999999995},{"$f":"G59","v":1.5301},{"$f":"H59","v":1.8579000000000001},{"$f":"AA21","v":0.1956},{"$f":"AA22","v":3.3500000000000002E-2},{"$f":"AA23","v":1.5299999999999999E-2},{"$f":"AA24","v":0.11509999999999999},{"$f":"Z26","v":0.45}]
[null,null,11,"VGS",{"$f":"E59","v":0.57140000000000002},{"$f":"F59","v":0.89159999999999995},{"$f":"G59","v":1.5301},{"$f":"H59","v":1.8579000000000001},{"$f":"AD21","v":0.16162943495400789},{"$f":"AD22","v":3.3500000000000002E-2},{"$f":"AD23","v":1.5299999999999999E-2},{"$f":"AD24","v":0.11509999999999999},{"$f":"AC26","v":0.45}]